Body_Code,Body_Name,Service,Posting Date,GL Code,GL Code Desc,Doc Number,Doc Net Amount,Supplier Name
http://statistics.data.gov.uk/id/local-authority/38,Oxfordshire County Council,COMM DRAWDOWN FUNDNG,29/12/2023,8004,Design Consultant,3111579446,"-1,764,304.96",Southern Gas Networks
http://statistics.data.gov.uk/id/local-authority/38,Oxfordshire County Council,COMM DRAWDOWN FUNDNG,11/12/2023,8102,Payments to main contractor,2201178519,"-305,321.51",Milestone Infrastructure(Major Proj
http://statistics.data.gov.uk/id/local-authority/38,Oxfordshire County Council,COMM DRAWDOWN FUNDNG,12/12/2023,8102,Payments to main contractor,2201179616,"-231,857.45",Milestone Infrastructure Limited
http://statistics.data.gov.uk/id/local-authority/38,Oxfordshire County Council,Continuing Care - Support at Home - U65,12/12/2023,5688,,3111566937,"-57,713.56",REACH LTD
http://statistics.data.gov.uk/id/local-authority/38,Oxfordshire County Council,Interim Funding  - Care Homes - Over 65,12/12/2023,5687,,3111569653,"-51,571.45",Bridge House
http://statistics.data.gov.uk/id/local-authority/38,Oxfordshire County Council,Continuing Care - Care Homes - Under 65,14/12/2023,5687,,3111572906,"-48,642.00",MOP Healthcare Ltd
http://statistics.data.gov.uk/id/local-authority/38,Oxfordshire County Council,CONTRACT & PERF MNGT,12/12/2023,5526,Payments to Private Contractors,2201179618,"-46,359.18",Milestone Infrastructure Limited
http://statistics.data.gov.uk/id/local-authority/38,Oxfordshire County Council,Health Acquired Brain Injury C Homes U65,12/12/2023,5687,,3111571848,"-38,058.72",Oakleaf (Hartwell) Ltd
http://statistics.data.gov.uk/id/local-authority/38,Oxfordshire County Council,High Cost INMSS Placements,13/12/2023,5537,Payments to Other Establishments,3111572422,"-37,524.04",Chilworth House School
http://statistics.data.gov.uk/id/local-authority/38,Oxfordshire County Council,DRAINAGE REPAIRS,12/12/2023,5526,Payments to Private Contractors,2201179606,"-36,395.74",Milestone Infrastructure Limited
http://statistics.data.gov.uk/id/local-authority/38,Oxfordshire County Council,COMM DRAWDOWN FUNDNG,12/12/2023,8102,Payments to main contractor,2201179614,"-29,368.34",Milestone Infrastructure Limited
http://statistics.data.gov.uk/id/local-authority/38,Oxfordshire County Council,Support at Home 65+ Physical Support,06/12/2023,5699,,3111564348,"-28,893.87",YOD Ltd
http://statistics.data.gov.uk/id/local-authority/38,Oxfordshire County Council,Support at Home U65 Physical Support,06/12/2023,5699,,3111563456,"-23,074.80",Calvary Care Ltd
http://statistics.data.gov.uk/id/local-authority/38,Oxfordshire County Council,CHC Fast Track - Care Homes - Over 65,12/12/2023,5687,,3111569679,"-22,371.43",Bridge House
http://statistics.data.gov.uk/id/local-authority/38,Oxfordshire County Council,Witney Shores Green Access,12/12/2023,5526,Payments to Private Contractors,2201179610,"-21,766.69",Milestone Infrastructure Limited
http://statistics.data.gov.uk/id/local-authority/38,Oxfordshire County Council,Witney Shores Green Access,28/12/2023,5526,Payments to Private Contractors,2201184006,"-21,766.69",Milestone Infrastructure Limited
http://statistics.data.gov.uk/id/local-authority/38,Oxfordshire County Council,CHC Fast Track - Care Homes - Over 65,12/12/2023,5687,,3111571338,"-19,250.00",Rushcourt Nursing Home
http://statistics.data.gov.uk/id/local-authority/38,Oxfordshire County Council,COMM DRAWDOWN FUNDNG,12/12/2023,8102,Payments to main contractor,2201179605,"-17,534.24",Milestone Infrastructure Limited
http://statistics.data.gov.uk/id/local-authority/38,Oxfordshire County Council,CHC Fast Track - Care Homes - Over 65,12/12/2023,5687,,3111571417,"-16,685.71",Barchester Healthcare Homes Ltd
http://statistics.data.gov.uk/id/local-authority/38,Oxfordshire County Council,Care Homes - Over 65 Physical Sypport,12/12/2023,5685,B*Cycle tracks,3111571697,"-15,016.71",The Grange Care Centre
http://statistics.data.gov.uk/id/local-authority/38,Oxfordshire County Council,Direct payments,27/12/2023,5554,Childrens' Social Care - Direct Payments,3111578594,"-13,526.12",The Disability Resource Centre
http://statistics.data.gov.uk/id/local-authority/38,Oxfordshire County Council,COMM DRAWDOWN FUNDNG,12/12/2023,8102,Payments to main contractor,2201179608,"-13,013.00",Milestone Infrastructure Limited
http://statistics.data.gov.uk/id/local-authority/38,Oxfordshire County Council,Support at Home U65 MH OBC Contract,12/12/2023,5688,,3111566934,"-11,199.00",Radis Community Care
http://statistics.data.gov.uk/id/local-authority/38,Oxfordshire County Council,Care Homes - Under 65 Physical Sypport,12/12/2023,5687,,3111571889,"-9,664.66",Valorum Care Limited
http://statistics.data.gov.uk/id/local-authority/38,Oxfordshire County Council,COMM DRAWDOWN FUNDNG,12/12/2023,8102,Payments to main contractor,2201179611,"-9,482.82",Milestone Infrastructure Limited
http://statistics.data.gov.uk/id/local-authority/38,Oxfordshire County Council,MAINSTREAM-SECONDARY,28/12/2023,4322,"Season Tickets - Bus, Rail & Ferry",3111579045,"-9,251.00",Oxford Bus Company Ltd
http://statistics.data.gov.uk/id/local-authority/38,Oxfordshire County Council,Care Homes - Under 65 Physical Sypport,12/12/2023,5687,,3111571896,"-9,066.80",Valorum Care Limited
http://statistics.data.gov.uk/id/local-authority/38,Oxfordshire County Council,Care Homes - Over 65 Physical Sypport,12/12/2023,5685,B*Cycle tracks,3111570171,"-8,662.03",CUMNOR HILL HOUSE
http://statistics.data.gov.uk/id/local-authority/38,Oxfordshire County Council,Funded Nursing Care  - Under 65,12/12/2023,5692,,3111569270,"-6,773.24",Banbury Heights Nursing Home
http://statistics.data.gov.uk/id/local-authority/38,Oxfordshire County Council,Continuing Care - Care Homes - 65+,12/12/2023,5687,,3111570183,"-6,600.00",CUMNOR HILL HOUSE
http://statistics.data.gov.uk/id/local-authority/38,Oxfordshire County Council,Continuing Care - Care Homes - 65+,12/12/2023,5687,,3111570843,"-6,371.86",The Julie Richardson Nursing Home
http://statistics.data.gov.uk/id/local-authority/38,Oxfordshire County Council,Support at Home U65 Learning Disability,12/12/2023,5688,,3111566829,"-6,358.00",CaringPlus Healthcare Services Ltd
http://statistics.data.gov.uk/id/local-authority/38,Oxfordshire County Council,Care Homes - Over 65 Physical Sypport,12/12/2023,5687,,3111570592,"-6,342.20",Green Pastures Christian NH
http://statistics.data.gov.uk/id/local-authority/38,Oxfordshire County Council,Care Homes - Over 65 Physical Sypport,12/12/2023,5687,,3111570751,"-6,167.89",Heathfield House Nursing Home
http://statistics.data.gov.uk/id/local-authority/38,Oxfordshire County Council,Support at Home 65+ Physical Support,06/12/2023,5699,,3111564354,"-5,844.24",YOD Ltd
http://statistics.data.gov.uk/id/local-authority/38,Oxfordshire County Council,Funded Nursing Care  - Over 65,12/12/2023,5692,,3111570648,"-5,743.83",HAMBERLEY CARE 2 LIMITED
http://statistics.data.gov.uk/id/local-authority/38,Oxfordshire County Council,Care Homes - Over 65 Physical Sypport,12/12/2023,5687,,3111571063,"-5,590.00",Middletown Grange Care Home
http://statistics.data.gov.uk/id/local-authority/38,Oxfordshire County Council,Care Homes - Over 65 Memory & Cognition,12/12/2023,5686,,3111568381,"-5,440.03",Orders of St John
http://statistics.data.gov.uk/id/local-authority/38,Oxfordshire County Council,Support at Home U65 Learning Disability,12/12/2023,5688,,3111566888,"-5,361.42",Autism at Kingwood Limited
http://statistics.data.gov.uk/id/local-authority/38,Oxfordshire County Council,MAINSTREAM-SECONDARY,28/12/2023,4322,"Season Tickets - Bus, Rail & Ferry",3111579046,"-5,250.00",Oxford Bus Company Ltd
http://statistics.data.gov.uk/id/local-authority/38,Oxfordshire County Council,Support at Home 65+ Mental Health,12/12/2023,5686,,3111569182,"-5,069.12",OSJ Contract - Stirlings
http://statistics.data.gov.uk/id/local-authority/38,Oxfordshire County Council,Asset Strategy Staffing,13/12/2023,4940,Other Services,2201180020,"-5,014.70",Bruton Knowles LLP
http://statistics.data.gov.uk/id/local-authority/38,Oxfordshire County Council,CHC Fast Track - Care Homes - Over 65,12/12/2023,5687,,3111569985,"-4,824.53",Chacombe Park Care Home
http://statistics.data.gov.uk/id/local-authority/38,Oxfordshire County Council,CHC Fast Track - Care Homes - Over 65,12/12/2023,5687,,3111571831,"-4,661.43",The Langston
http://statistics.data.gov.uk/id/local-authority/38,Oxfordshire County Council,Support at Home 65+ Physical Support,12/12/2023,5686,,3111568365,"-4,574.57",Orders of St John
http://statistics.data.gov.uk/id/local-authority/38,Oxfordshire County Council,CHC Fast Track - Care Homes - Over 65,12/12/2023,5687,,3111570025,"-4,571.43",Cherwood House Care Centre
http://statistics.data.gov.uk/id/local-authority/38,Oxfordshire County Council,Care Homes - Over 65 Mental Health,12/12/2023,5686,,3111570834,"-4,542.50",Oxford Group Home Organ
http://statistics.data.gov.uk/id/local-authority/38,Oxfordshire County Council,Funded Nursing Care  - Over 65,12/12/2023,5692,,3111570182,"-4,488.35",CUMNOR HILL HOUSE
http://statistics.data.gov.uk/id/local-authority/38,Oxfordshire County Council,CHC Fast Track - Care Homes - Over 65,12/12/2023,5687,,3111570162,"-4,250.00",CUMNOR HILL HOUSE
http://statistics.data.gov.uk/id/local-authority/38,Oxfordshire County Council,Care Homes - Over 65 Memory & Cognition,12/12/2023,5686,,3111568817,"-4,245.00",Orders of St John
http://statistics.data.gov.uk/id/local-authority/38,Oxfordshire County Council,CHC Fast Track - Care Homes - Over 65,12/12/2023,5687,,3111569918,"-4,188.86",CARE UK COMMUNITY PARTNERSHIPS LIMI
http://statistics.data.gov.uk/id/local-authority/38,Oxfordshire County Council,Support at Home U65 Learning Disability,12/12/2023,5688,,3111566850,"-4,104.67",H F TRUST LTD
http://statistics.data.gov.uk/id/local-authority/38,Oxfordshire County Council,CHC Fast Track - Care Homes - Over 65,12/12/2023,5687,,3111571179,"-4,000.00",Oxford Beaumont
http://statistics.data.gov.uk/id/local-authority/38,Oxfordshire County Council,Support at Home 65+ Physical Support,06/12/2023,5699,,3111564280,"-3,866.40",Trinity Carers Services Ltd
http://statistics.data.gov.uk/id/local-authority/38,Oxfordshire County Council,CHC Fast Track - Care Homes - Over 65,12/12/2023,5687,,3111570410,"-3,857.14",Freeland House
http://statistics.data.gov.uk/id/local-authority/38,Oxfordshire County Council,Support at Home 65+ Memory & Cognition,12/12/2023,5686,,3111568678,"-3,832.75",Orders of St John
http://statistics.data.gov.uk/id/local-authority/38,Oxfordshire County Council,Continuing Care - Care Homes - 65+,12/12/2023,5687,,3111571104,"-3,776.58",Mill House Nursing Home
http://statistics.data.gov.uk/id/local-authority/38,Oxfordshire County Council,CHC Fast Track - Care Homes - Over 65,12/12/2023,5687,,3111569717,"-3,642.86",METHODIST HOMES
http://statistics.data.gov.uk/id/local-authority/38,Oxfordshire County Council,Care Homes - Over 65 Memory & Cognition,12/12/2023,5687,,3111570871,"-3,642.86",The Julie Richardson Nursing Home
http://statistics.data.gov.uk/id/local-authority/38,Oxfordshire County Council,Care Homes - Under 65 Physical Sypport,12/12/2023,5687,,3111571892,"-3,627.85",Valorum Care Limited
http://statistics.data.gov.uk/id/local-authority/38,Oxfordshire County Council,Funded Nursing Care  - Over 65,12/12/2023,5692,,3111571392,"-3,609.51",Barchester Healthcare Homes Ltd
http://statistics.data.gov.uk/id/local-authority/38,Oxfordshire County Council,Care Homes - Over 65 Memory & Cognition,12/12/2023,5687,,3111571754,"-3,600.00",Four Seasons (Headington) Ltd
http://statistics.data.gov.uk/id/local-authority/38,Oxfordshire County Council,Support at Home 65+ Memory & Cognition,13/12/2023,5693,,3111572719,"-3,461.36",Victory Locum Limited
http://statistics.data.gov.uk/id/local-authority/38,Oxfordshire County Council,Support at Home 65+ Physical Support,06/12/2023,5699,,3111564327,"-3,430.09",YOD Ltd
http://statistics.data.gov.uk/id/local-authority/38,Oxfordshire County Council,Funded Nursing Care  - Over 65,12/12/2023,5692,,3111571996,"-3,358.41",SANCTUARY CARE LTD
http://statistics.data.gov.uk/id/local-authority/38,Oxfordshire County Council,VOIDS/VACANCY COSTS,01/12/2023,3945,Rent,3111560473,"-3,358.33",SEEABILITY
http://statistics.data.gov.uk/id/local-authority/38,Oxfordshire County Council,COMM DRAWDOWN FUNDNG,12/12/2023,8004,Design Consultant,2201179615,"-3,349.51",Milestone Infrastructure Limited
http://statistics.data.gov.uk/id/local-authority/38,Oxfordshire County Council,Care Homes - Under 65 Mental Health,12/12/2023,5687,,3111571402,"-3,342.86",Barchester Healthcare Homes Ltd
http://statistics.data.gov.uk/id/local-authority/38,Oxfordshire County Council,Care Homes - Over 65 Physical Sypport,12/12/2023,5687,,3111569351,"-3,326.06",Banbury Heights Nursing Home
http://statistics.data.gov.uk/id/local-authority/38,Oxfordshire County Council,Continuing Care - Care Homes - 65+,12/12/2023,5687,,3111570625,"-3,278.57",HAMBERLEY CARE 1 LIMITED
http://statistics.data.gov.uk/id/local-authority/38,Oxfordshire County Council,Support at Home 65+ Physical Support,12/12/2023,5685,B*Cycle tracks,3111570754,"-3,240.87",Heathfield House Nursing Home
http://statistics.data.gov.uk/id/local-authority/38,Oxfordshire County Council,Care Homes - Over 65 Memory & Cognition,12/12/2023,5686,,3111570499,"-3,214.29",GCH (St Katherines) Ltd
http://statistics.data.gov.uk/id/local-authority/38,Oxfordshire County Council,CHC Fast Track - Care Homes - Over 65,12/12/2023,5687,,3111570557,"-3,200.00",Green Gates NH (BUPA)
http://statistics.data.gov.uk/id/local-authority/38,Oxfordshire County Council,Continuing Care - Care Homes - 65+,12/12/2023,5687,,3111572059,"-3,200.00",MARIA MALLABAND CARE GROUP
http://statistics.data.gov.uk/id/local-authority/38,Oxfordshire County Council,Care Homes - Over 65 Physical Sypport,12/12/2023,5687,,3111570176,"-3,147.15",CUMNOR HILL HOUSE
http://statistics.data.gov.uk/id/local-authority/38,Oxfordshire County Council,Care Homes - Over 65 Physical Sypport,12/12/2023,5687,,3111571819,"-3,120.71",The Langston
http://statistics.data.gov.uk/id/local-authority/38,Oxfordshire County Council,Support at Home 65+ Physical Support,06/12/2023,5699,,3111564003,"-3,076.64",Oasis Private Care Ltd
http://statistics.data.gov.uk/id/local-authority/38,Oxfordshire County Council,Support at Home 65+ Physical Support,13/12/2023,5693,,3111572720,"-3,076.64",Victory Locum Limited
http://statistics.data.gov.uk/id/local-authority/38,Oxfordshire County Council,Support at Home 65+ Physical Support,06/12/2023,5699,,3111563965,"-2,980.49",Kwikfix Recruitment Services Ltd
http://statistics.data.gov.uk/id/local-authority/38,Oxfordshire County Council,Care Homes - Over 65 Physical Sypport,12/12/2023,5686,,3111571322,"-2,976.59",Rosebank Care Home
http://statistics.data.gov.uk/id/local-authority/38,Oxfordshire County Council,Continuing Care - Care Homes - 65+,12/12/2023,5687,,3111571912,"-2,963.72",SANCTUARY CARE LTD
http://statistics.data.gov.uk/id/local-authority/38,Oxfordshire County Council,MAINSTREAM-SECONDARY,05/12/2023,4330,Transport to School Activities,3111561797,"-2,920.00",Bakers Commercial Services Ltd
http://statistics.data.gov.uk/id/local-authority/38,Oxfordshire County Council,Care Homes - Over 65 Physical Sypport,12/12/2023,5687,,3111570537,"-2,903.57",GCH (St Katherines) Ltd
http://statistics.data.gov.uk/id/local-authority/38,Oxfordshire County Council,CHC Fast Track - Care Homes - Over 65,12/12/2023,5687,,3111569730,"-2,878.57",METHODIST HOMES
http://statistics.data.gov.uk/id/local-authority/38,Oxfordshire County Council,Make Every Contact Count,07/12/2023,5195,Grant Aid and Donations,2201177967,"-2,750.00",Oxford University Hospitals NHS Tru
http://statistics.data.gov.uk/id/local-authority/38,Oxfordshire County Council,Funded Nursing Care  - Over 65,12/12/2023,5692,,3111571407,"-2,699.29",Barchester Healthcare Homes Ltd
http://statistics.data.gov.uk/id/local-authority/38,Oxfordshire County Council,Care Homes - Over 65 Memory & Cognition,12/12/2023,5686,,3111570107,"-2,678.57",Cleeve Lodge Residential Home
http://statistics.data.gov.uk/id/local-authority/38,Oxfordshire County Council,Continuing Care - Care Homes - 65+,12/12/2023,5687,,3111568129,"-2,583.94",Orders of St John
http://statistics.data.gov.uk/id/local-authority/38,Oxfordshire County Council,Support at Home U65 Physical Support,13/12/2023,5693,,3111572713,"-2,582.32",Victory Locum Limited
http://statistics.data.gov.uk/id/local-authority/38,Oxfordshire County Council,Support at Home U65 Physical Support,13/12/2023,5693,,3111572714,"-2,582.32",Victory Locum Limited
http://statistics.data.gov.uk/id/local-authority/38,Oxfordshire County Council,Care Homes - Over 65 Physical Sypport,12/12/2023,5687,,3111570323,"-2,571.43",Fewcott Healthcare Ltd
http://statistics.data.gov.uk/id/local-authority/38,Oxfordshire County Council,Care Homes - Over 65 Memory & Cognition,12/12/2023,5687,,3111568067,"-2,547.06",Vale House
http://statistics.data.gov.uk/id/local-authority/38,Oxfordshire County Council,Care Homes - Under 65 Physical Sypport,12/12/2023,5685,B*Cycle tracks,3111571871,"-2,543.46",The Triangle Nursing Home
http://statistics.data.gov.uk/id/local-authority/38,Oxfordshire County Council,Support at Home 65+ Physical Support,12/12/2023,5686,,3111569456,"-2,491.43",Orders of St John
http://statistics.data.gov.uk/id/local-authority/38,Oxfordshire County Council,Support at Home 65+ Physical Support,06/12/2023,5699,,3111563518,"-2,465.43",Care Outlook Ltd
http://statistics.data.gov.uk/id/local-authority/38,Oxfordshire County Council,Support at Home U65 MH OBC Contract,06/12/2023,5699,,3111563406,"-2,458.57",BBC CARE SERVICE LIMITED
http://statistics.data.gov.uk/id/local-authority/38,Oxfordshire County Council,Care Homes - Over 65 Physical Sypport,12/12/2023,5687,,3111571019,"-2,457.41",Meadow View Nursing Home
http://statistics.data.gov.uk/id/local-authority/38,Oxfordshire County Council,Support at Home 65+ Physical Support,06/12/2023,5699,,3111563267,"-2,408.20",Abi-Support Ltd
http://statistics.data.gov.uk/id/local-authority/38,Oxfordshire County Council,Funded Nursing Care  - Over 65,12/12/2023,5692,,3111571405,"-2,354.03",Barchester Healthcare Homes Ltd
http://statistics.data.gov.uk/id/local-authority/38,Oxfordshire County Council,Funded Nursing Care  - Over 65,12/12/2023,5692,,3111570639,"-2,291.26",HAMBERLEY CARE 2 LIMITED
http://statistics.data.gov.uk/id/local-authority/38,Oxfordshire County Council,Care Homes - Over 65 Physical Sypport,12/12/2023,5686,,3111570174,"-2,180.00",CUMNOR HILL HOUSE
http://statistics.data.gov.uk/id/local-authority/38,Oxfordshire County Council,NURSERY ED FUND,14/12/2023,5537,Payments to Other Establishments,3111573662,"-2,137.80",West Kidlington Primary &NurserySch
http://statistics.data.gov.uk/id/local-authority/38,Oxfordshire County Council,Support at Home U65 Learning Disability,06/12/2023,5689,,3111564729,"-2,131.67",My Carer Ltd
http://statistics.data.gov.uk/id/local-authority/38,Oxfordshire County Council,LANDLORD & TENANT,20/12/2023,7418,Rents,3111578004,"-2,122.00",OCC One Time Vendor
http://statistics.data.gov.uk/id/local-authority/38,Oxfordshire County Council,Support at Home 65+ Physical Support,12/12/2023,5687,,3111570356,"-2,121.43",Freeland House
http://statistics.data.gov.uk/id/local-authority/38,Oxfordshire County Council,Support at Home 65+ Physical Support,06/12/2023,5699,,3111563815,"-2,003.74",Direct Link Care Ltd
http://statistics.data.gov.uk/id/local-authority/38,Oxfordshire County Council,Funded Nursing Care  - Over 65,12/12/2023,5692,,3111569894,"-1,977.38",CARE UK COMMUNITY PARTNERSHIPS LIMI
http://statistics.data.gov.uk/id/local-authority/38,Oxfordshire County Council,CHC Fast Track - Care Homes - Over 65,12/12/2023,5687,,3111568020,"-1,937.14",Orders of St John
http://statistics.data.gov.uk/id/local-authority/38,Oxfordshire County Council,NURSERY ED FUND,14/12/2023,5537,Payments to Other Establishments,3111573411,"-1,924.02",Bramley Nursery Busy Bees
http://statistics.data.gov.uk/id/local-authority/38,Oxfordshire County Council,Support at Home U65 Learning Disability,12/12/2023,5686,,3111570521,"-1,885.71",GCH (St Katherines) Ltd
http://statistics.data.gov.uk/id/local-authority/38,Oxfordshire County Council,OXFORDSHIRE MUSEUM,20/12/2023,5360,Exhibitions (Purchase/Hire/Production),3111577998,"-1,875.00",OCC One Time Vendor
http://statistics.data.gov.uk/id/local-authority/38,Oxfordshire County Council,Care Homes - Over 65 Physical Sypport,12/12/2023,5686,,3111569429,"-1,854.56",Orders of St John
http://statistics.data.gov.uk/id/local-authority/38,Oxfordshire County Council,Support at Home 65+ Memory & Cognition,12/12/2023,5686,,3111570279,"-1,790.00",Enstone House
http://statistics.data.gov.uk/id/local-authority/38,Oxfordshire County Council,Care Homes - Over 65 Memory & Cognition,12/12/2023,5686,,3111570909,"-1,767.76",Leafield Rest Home
http://statistics.data.gov.uk/id/local-authority/38,Oxfordshire County Council,Care Homes - Over 65 Physical Sypport,12/12/2023,5686,,3111568752,"-1,730.92",Orders of St John
http://statistics.data.gov.uk/id/local-authority/38,Oxfordshire County Council,2 YEAR OLD FUNDING,14/12/2023,5537,Payments to Other Establishments,3111573288,"-1,728.30",Robin Playgroup
http://statistics.data.gov.uk/id/local-authority/38,Oxfordshire County Council,2 YEAR OLD FUNDING,14/12/2023,5537,Payments to Other Establishments,3111573296,"-1,728.30",Robin Playgroup
http://statistics.data.gov.uk/id/local-authority/38,Oxfordshire County Council,NURSERY ED FUND,14/12/2023,5537,Payments to Other Establishments,3111573598,"-1,710.24",Eynsham Community
http://statistics.data.gov.uk/id/local-authority/38,Oxfordshire County Council,NURSERY ED FUND,14/12/2023,5537,Payments to Other Establishments,3111573669,"-1,710.24",Southwold Primary School Academy
http://statistics.data.gov.uk/id/local-authority/38,Oxfordshire County Council,Care Homes - Over 65 Physical Sypport,12/12/2023,5687,,3111570588,"-1,671.43",Green Pastures Christian NH
http://statistics.data.gov.uk/id/local-authority/38,Oxfordshire County Council,COMM DRAWDOWN FUNDNG,11/12/2023,8102,Payments to main contractor,2201178771,"-1,661.51",Milestone Infrastructure Limited
http://statistics.data.gov.uk/id/local-authority/38,Oxfordshire County Council,Care Homes - Over 65 Physical Sypport,12/12/2023,5687,,3111571960,"-1,655.00",Wardington House Nursing Home
http://statistics.data.gov.uk/id/local-authority/38,Oxfordshire County Council,ICT Operations & Maintenance,20/12/2023,5072,Telephone - Equipment,2201183215,"-1,654.32",Vodafone
http://statistics.data.gov.uk/id/local-authority/38,Oxfordshire County Council,Support at Home 65+ Physical Support,12/12/2023,5687,,3111567880,"-1,637.66",Orders of St John
http://statistics.data.gov.uk/id/local-authority/38,Oxfordshire County Council,2 YEAR OLD FUNDING,14/12/2023,5537,Payments to Other Establishments,3111573893,"-1,604.85",St Johns CofE Academy
http://statistics.data.gov.uk/id/local-authority/38,Oxfordshire County Council,Care Homes - Over 65 Memory & Cognition,12/12/2023,5687,,3111570422,"-1,542.86",Freeland House
http://statistics.data.gov.uk/id/local-authority/38,Oxfordshire County Council,Support at Home 65+ Physical Support,13/12/2023,5693,,3111572715,"-1,538.32",Victory Locum Limited
http://statistics.data.gov.uk/id/local-authority/38,Oxfordshire County Council,Support at Home 65+ Physical Support,13/12/2023,5693,,3111572716,"-1,538.32",Victory Locum Limited
http://statistics.data.gov.uk/id/local-authority/38,Oxfordshire County Council,Funded Nursing Care  - Over 65,12/12/2023,5692,,3111570707,"-1,537.96",HEALTHCARE HOMES (SPRING) LIMITED
http://statistics.data.gov.uk/id/local-authority/38,Oxfordshire County Council,NURSERY ED FUND,14/12/2023,5537,Payments to Other Establishments,3111573826,"-1,527.00",RAFA Kidz Brize Norton
http://statistics.data.gov.uk/id/local-authority/38,Oxfordshire County Council,Care Homes - Over 65 Physical Sypport,12/12/2023,5685,B*Cycle tracks,3111567871,"-1,501.21",Orders of St John
http://statistics.data.gov.uk/id/local-authority/38,Oxfordshire County Council,Support at Home U65 Learning Disability,12/12/2023,5688,,3111567775,"-1,490.72",The Brandon Trust
http://statistics.data.gov.uk/id/local-authority/38,Oxfordshire County Council,Funded Nursing Care  - Over 65,12/12/2023,5692,,3111568739,"-1,475.19",Abbey Crest Nursing Home
http://statistics.data.gov.uk/id/local-authority/38,Oxfordshire County Council,Care Homes - Over 65 Physical Sypport,12/12/2023,5686,,3111570290,"-1,414.29",Ferendune Court (Anchor Trust)
http://statistics.data.gov.uk/id/local-authority/38,Oxfordshire County Council,Support at Home U65 Learning Disability,12/12/2023,5690,,3111567867,"-1,403.62",ADVANCE HOUSING & SUPPORT LTD
http://statistics.data.gov.uk/id/local-authority/38,Oxfordshire County Council,NURSERY ED FUND,14/12/2023,5537,Payments to Other Establishments,3111573287,"-1,389.63",Robin Playgroup
http://statistics.data.gov.uk/id/local-authority/38,Oxfordshire County Council,2 YEAR OLD FUNDING,14/12/2023,5537,Payments to Other Establishments,3111573648,"-1,370.29",Southwold Primary School Academy
http://statistics.data.gov.uk/id/local-authority/38,Oxfordshire County Council,CHC Fast Track - Care Homes - Under 65,12/12/2023,5687,,3111572081,"-1,354.29",MARIA MALLABAND CARE GROUP
http://statistics.data.gov.uk/id/local-authority/38,Oxfordshire County Council,Support at Home 65+ Physical Support,13/12/2023,5693,,3111572656,"-1,345.96",Victory Locum Limited
http://statistics.data.gov.uk/id/local-authority/38,Oxfordshire County Council,Care Homes - Over 65 Memory & Cognition,12/12/2023,5686,,3111571451,"-1,337.43",St Andrews Residential Care Home L
http://statistics.data.gov.uk/id/local-authority/38,Oxfordshire County Council,COMM DRAWDOWN FUNDNG,12/12/2023,8102,Payments to main contractor,2201179613,"-1,316.78",Milestone Infrastructure Limited
http://statistics.data.gov.uk/id/local-authority/38,Oxfordshire County Council,NURSERY ED FUND,14/12/2023,5537,Payments to Other Establishments,3111573341,"-1,312.64",Brightwell Pre-school
http://statistics.data.gov.uk/id/local-authority/38,Oxfordshire County Council,Independent Foster,06/12/2023,5561,B* Bus Shelter Reps & Cleansing,3111565037,"-1,292.94",Compass Fostering West Limited
http://statistics.data.gov.uk/id/local-authority/38,Oxfordshire County Council,NURSERY ED FUND,14/12/2023,5537,Payments to Other Establishments,3111573265,"-1,282.68",Cygnet Nursery
http://statistics.data.gov.uk/id/local-authority/38,Oxfordshire County Council,NURSERY ED FUND,14/12/2023,5537,Payments to Other Establishments,3111573285,"-1,282.68",Cygnet Nursery
http://statistics.data.gov.uk/id/local-authority/38,Oxfordshire County Council,NURSERY ED FUND,14/12/2023,5537,Payments to Other Establishments,3111573286,"-1,282.68",Cygnet Nursery
http://statistics.data.gov.uk/id/local-authority/38,Oxfordshire County Council,AAC EQUIPMENT,15/12/2023,4494,Purchase of IT Equipment,2201181034,"-1,281.12",Oxford University Hospitals NHS Tru
http://statistics.data.gov.uk/id/local-authority/38,Oxfordshire County Council,Early Years Pupil Premium,14/12/2023,5537,Payments to Other Establishments,3111573224,"-1,280.16",Hagbourne Pre-School
http://statistics.data.gov.uk/id/local-authority/38,Oxfordshire County Council,CHC Fast Track - Care Homes - Over 65,12/12/2023,5687,,3111571243,"-1,250.00",Penhurst Gardens
http://statistics.data.gov.uk/id/local-authority/38,Oxfordshire County Council,Support at Home U65 MH OBC Contract,06/12/2023,5699,,3111563395,"-1,249.89",BBC CARE SERVICE LIMITED
http://statistics.data.gov.uk/id/local-authority/38,Oxfordshire County Council,Care Homes - Over 65 Memory & Cognition,12/12/2023,5686,,3111568339,"-1,236.37",Orders of St John
http://statistics.data.gov.uk/id/local-authority/38,Oxfordshire County Council,NURSERY ED FUND,14/12/2023,5537,Payments to Other Establishments,3111573462,"-1,235.68",Mongewell Park Nursery S
http://statistics.data.gov.uk/id/local-authority/38,Oxfordshire County Council,NURSERY ED FUND,14/12/2023,5537,Payments to Other Establishments,3111573312,"-1,221.60",Grovelands Park Pre-School
http://statistics.data.gov.uk/id/local-authority/38,Oxfordshire County Council,Support at Home 65+ Physical Support,11/12/2023,5696,,3111565979,"-1,207.17",Orders of St John Care Trust
http://statistics.data.gov.uk/id/local-authority/38,Oxfordshire County Council,NURSERY ED FUND,14/12/2023,5537,Payments to Other Establishments,3111573522,"-1,172.74",Co-Op Rose Hill Nursery
http://statistics.data.gov.uk/id/local-authority/38,Oxfordshire County Council,Support at Home 65+ Mental Health,13/12/2023,5693,,3111572712,"-1,153.88",Victory Locum Limited
http://statistics.data.gov.uk/id/local-authority/38,Oxfordshire County Council,Care Homes - Over 65 Physical Sypport,12/12/2023,5686,,3111567805,"-1,112.73",Orders of St John
http://statistics.data.gov.uk/id/local-authority/38,Oxfordshire County Council,NURSERY ED FUND,14/12/2023,5537,Payments to Other Establishments,3111573227,"-1,099.44",Hagbourne Pre-School
http://statistics.data.gov.uk/id/local-authority/38,Oxfordshire County Council,NURSERY ED FUND,14/12/2023,5537,Payments to Other Establishments,3111573781,"-1,099.44",Tiny Toes Day Nursery
http://statistics.data.gov.uk/id/local-authority/38,Oxfordshire County Council,NURSERY ED FUND,14/12/2023,5537,Payments to Other Establishments,3111573707,"-1,068.90",Anna Fraser
http://statistics.data.gov.uk/id/local-authority/38,Oxfordshire County Council,NURSERY ED FUND,14/12/2023,5537,Payments to Other Establishments,3111573315,"-1,068.90",Brize Norton Village Pre
http://statistics.data.gov.uk/id/local-authority/38,Oxfordshire County Council,NURSERY ED FUND,14/12/2023,5537,Payments to Other Establishments,3111573554,"-1,068.90",Cherubs Nursery and After Class Lim
http://statistics.data.gov.uk/id/local-authority/38,Oxfordshire County Council,NURSERY ED FUND,14/12/2023,5537,Payments to Other Establishments,3111573353,"-1,068.90",Cropredy Pre-School
http://statistics.data.gov.uk/id/local-authority/38,Oxfordshire County Council,NURSERY ED FUND,14/12/2023,5537,Payments to Other Establishments,3111573354,"-1,068.90",Cropredy Pre-School
http://statistics.data.gov.uk/id/local-authority/38,Oxfordshire County Council,NURSERY ED FUND,14/12/2023,5537,Payments to Other Establishments,3111573358,"-1,068.90",Cropredy Pre-School
http://statistics.data.gov.uk/id/local-authority/38,Oxfordshire County Council,NURSERY ED FUND,14/12/2023,5537,Payments to Other Establishments,3111573360,"-1,068.90",Cropredy Pre-School
http://statistics.data.gov.uk/id/local-authority/38,Oxfordshire County Council,NURSERY ED FUND,14/12/2023,5537,Payments to Other Establishments,3111573362,"-1,068.90",Cropredy Pre-School
http://statistics.data.gov.uk/id/local-authority/38,Oxfordshire County Council,NURSERY ED FUND,14/12/2023,5537,Payments to Other Establishments,3111573375,"-1,068.90",Cropredy Pre-School
http://statistics.data.gov.uk/id/local-authority/38,Oxfordshire County Council,NURSERY ED FUND,14/12/2023,5537,Payments to Other Establishments,3111573284,"-1,068.90",Cygnet Nursery
http://statistics.data.gov.uk/id/local-authority/38,Oxfordshire County Council,NURSERY ED FUND,14/12/2023,5537,Payments to Other Establishments,3111573612,"-1,068.90",Eynsham Community
http://statistics.data.gov.uk/id/local-authority/38,Oxfordshire County Council,NURSERY ED FUND,14/12/2023,5537,Payments to Other Establishments,3111573839,"-1,068.90",Grimsbury Manor Nursery
http://statistics.data.gov.uk/id/local-authority/38,Oxfordshire County Council,NURSERY ED FUND,14/12/2023,5537,Payments to Other Establishments,3111573553,"-1,068.90",Kids Unlimited (Clearwater Place)
http://statistics.data.gov.uk/id/local-authority/38,Oxfordshire County Council,NURSERY ED FUND,14/12/2023,5537,Payments to Other Establishments,3111573517,"-1,068.90",Kidsunlimited (Milton Park)
http://statistics.data.gov.uk/id/local-authority/38,Oxfordshire County Council,NURSERY ED FUND,14/12/2023,5537,Payments to Other Establishments,3111573476,"-1,068.90",Ladygrove Day Nursery and Nursery S
http://statistics.data.gov.uk/id/local-authority/38,Oxfordshire County Council,NURSERY ED FUND,14/12/2023,5537,Payments to Other Establishments,3111573713,"-1,068.90",Little Peeple Nursery
http://statistics.data.gov.uk/id/local-authority/38,Oxfordshire County Council,NURSERY ED FUND,14/12/2023,5537,Payments to Other Establishments,3111573658,"-1,068.90",Longford Park Primary School
http://statistics.data.gov.uk/id/local-authority/38,Oxfordshire County Council,NURSERY ED FUND,14/12/2023,5537,Payments to Other Establishments,3111573671,"-1,068.90",Longford Park Primary School
http://statistics.data.gov.uk/id/local-authority/38,Oxfordshire County Council,NURSERY ED FUND,14/12/2023,5537,Payments to Other Establishments,3111573670,"-1,068.90",Mandy Stone
http://statistics.data.gov.uk/id/local-authority/38,Oxfordshire County Council,NURSERY ED FUND,14/12/2023,5537,Payments to Other Establishments,3111573458,"-1,068.90",Mongewell Park Nursery S
http://statistics.data.gov.uk/id/local-authority/38,Oxfordshire County Council,NURSERY ED FUND,14/12/2023,5537,Payments to Other Establishments,3111573267,"-1,068.90",New Trinity Pre-School
http://statistics.data.gov.uk/id/local-authority/38,Oxfordshire County Council,NURSERY ED FUND,14/12/2023,5537,Payments to Other Establishments,3111573711,"-1,068.90",Oxford's British Orchard Nursery
http://statistics.data.gov.uk/id/local-authority/38,Oxfordshire County Council,NURSERY ED FUND,14/12/2023,5537,Payments to Other Establishments,3111573305,"-1,068.90",Rainbow Pre-School
http://statistics.data.gov.uk/id/local-authority/38,Oxfordshire County Council,NURSERY ED FUND,14/12/2023,5537,Payments to Other Establishments,3111573313,"-1,068.90",Rainbow Pre-School
http://statistics.data.gov.uk/id/local-authority/38,Oxfordshire County Council,NURSERY ED FUND,14/12/2023,5537,Payments to Other Establishments,3111573483,"-1,068.90",St Marys Day Nursery
http://statistics.data.gov.uk/id/local-authority/38,Oxfordshire County Council,NURSERY ED FUND,14/12/2023,5537,Payments to Other Establishments,3111573820,"-1,068.90",The Old Station Nursery Oxford
http://statistics.data.gov.uk/id/local-authority/38,Oxfordshire County Council,NURSERY ED FUND,14/12/2023,5537,Payments to Other Establishments,3111573549,"-1,068.90",The Sunshine Centre
http://statistics.data.gov.uk/id/local-authority/38,Oxfordshire County Council,NURSERY ED FUND,14/12/2023,5537,Payments to Other Establishments,3111573787,"-1,068.90",Tiny Toes Day Nursery
http://statistics.data.gov.uk/id/local-authority/38,Oxfordshire County Council,NURSERY ED FUND,14/12/2023,5537,Payments to Other Establishments,3111573825,"-1,068.90",Toddler Town Montessori Ltd
http://statistics.data.gov.uk/id/local-authority/38,Oxfordshire County Council,NURSERY ED FUND,14/12/2023,5537,Payments to Other Establishments,3111573446,"-1,068.90",Wootton & Dry Sandford P
http://statistics.data.gov.uk/id/local-authority/38,Oxfordshire County Council,NURSERY ED FUND,14/12/2023,5537,Payments to Other Establishments,3111573777,"-1,061.26",St Nicholas C of E Primary School
http://statistics.data.gov.uk/id/local-authority/38,Oxfordshire County Council,NURSERY ED FUND,14/12/2023,5537,Payments to Other Establishments,3111573726,"-1,018.00",Bright Horizon Didcot Day Nursery
http://statistics.data.gov.uk/id/local-authority/38,Oxfordshire County Council,NURSERY ED FUND,14/12/2023,5537,Payments to Other Establishments,3111573831,"-1,005.78",Grow Learn Play Project CIC
http://statistics.data.gov.uk/id/local-authority/38,Oxfordshire County Council,Funded Nursing Care  - Over 65,12/12/2023,5692,,3111571343,"-1,004.38",Rushcourt Nursing Home
http://statistics.data.gov.uk/id/local-authority/38,Oxfordshire County Council,Bikeability cost,13/12/2023,3103,Other Training Courses and Qualification,2201179889,-990,Outspoken Training LLP
http://statistics.data.gov.uk/id/local-authority/38,Oxfordshire County Council,Support at Home 65+ Physical Support,12/12/2023,5686,,3111568569,-989.1,Orders of St John
http://statistics.data.gov.uk/id/local-authority/38,Oxfordshire County Council,NURSERY ED FUND,14/12/2023,5537,Payments to Other Establishments,3111573338,-977.28,Brightwell Pre-school
http://statistics.data.gov.uk/id/local-authority/38,Oxfordshire County Council,NURSERY ED FUND,14/12/2023,5537,Payments to Other Establishments,3111573778,-977.28,Tiny Toes Day Nursery
http://statistics.data.gov.uk/id/local-authority/38,Oxfordshire County Council,NURSERY ED FUND,14/12/2023,5537,Payments to Other Establishments,3111573757,-977.28,Watlington Primary School
http://statistics.data.gov.uk/id/local-authority/38,Oxfordshire County Council,Funded Nursing Care  - Over 65,12/12/2023,5692,,3111570244,-973,Oakland Wantage Care Home Limited
http://statistics.data.gov.uk/id/local-authority/38,Oxfordshire County Council,Support at Home 65+ Physical Support,11/12/2023,5696,,3111565926,-954.62,Orders of St John Care Trust
http://statistics.data.gov.uk/id/local-authority/38,Oxfordshire County Council,NURSERY ED FUND,14/12/2023,5537,Payments to Other Establishments,3111573377,-926.38,Cropredy Pre-School
http://statistics.data.gov.uk/id/local-authority/38,Oxfordshire County Council,NURSERY ED FUND,14/12/2023,5537,Payments to Other Establishments,3111573396,-926.38,Tiddlywinks Pre-School
http://statistics.data.gov.uk/id/local-authority/38,Oxfordshire County Council,Support at Home 65+ Physical Support,12/12/2023,5686,,3111569383,-924.43,Orders of St John
http://statistics.data.gov.uk/id/local-authority/38,Oxfordshire County Council,NURSERY ED FUND,14/12/2023,5537,Payments to Other Establishments,3111573801,-916.2,Culham Village Nursery and Preschoo
http://statistics.data.gov.uk/id/local-authority/38,Oxfordshire County Council,NURSERY ED FUND,14/12/2023,5537,Payments to Other Establishments,3111573664,-916.2,West Kidlington Primary &NurserySch
http://statistics.data.gov.uk/id/local-authority/38,Oxfordshire County Council,Funded Nursing Care  - Over 65,12/12/2023,5692,,3111571537,-910.23,St. Lukes Oxford - Free Nursing
http://statistics.data.gov.uk/id/local-authority/38,Oxfordshire County Council,Care Homes - Over 65 Physical Sypport,12/12/2023,5687,,3111570806,-901.44,Huntercombe Hall Care Home
http://statistics.data.gov.uk/id/local-authority/38,Oxfordshire County Council,Care Homes - Over 65 Physical Sypport,12/12/2023,5686,,3111570443,-892.86,The Old Vicarage
http://statistics.data.gov.uk/id/local-authority/38,Oxfordshire County Council,Funded Nursing Care  - Over 65,12/12/2023,5692,,3111568711,-878.84,Abbey Crest Nursing Home
http://statistics.data.gov.uk/id/local-authority/38,Oxfordshire County Council,Care Homes - Over 65 Physical Sypport,12/12/2023,5686,,3111568049,-865.46,Orders of St John
http://statistics.data.gov.uk/id/local-authority/38,Oxfordshire County Council,2 YEAR OLD FUNDING,14/12/2023,5537,Payments to Other Establishments,3111573539,-864.15,Rainbows Day Nursery
http://statistics.data.gov.uk/id/local-authority/38,Oxfordshire County Council,POST18 UASC DCSF FND,20/12/2023,5558,,3111577907,-858.06,MB Supported Housing Ltd
http://statistics.data.gov.uk/id/local-authority/38,Oxfordshire County Council,NURSERY ED FUND,14/12/2023,5537,Payments to Other Establishments,3111573425,-855.12,Ascott-under-Wychwood Pre-School
http://statistics.data.gov.uk/id/local-authority/38,Oxfordshire County Council,NURSERY ED FUND,14/12/2023,5537,Payments to Other Establishments,3111573773,-855.12,Deborah Taylor
http://statistics.data.gov.uk/id/local-authority/38,Oxfordshire County Council,Direct payments,20/12/2023,5554,Childrens' Social Care - Direct Payments,2201183243,-839.23,Redacted Personal Data
http://statistics.data.gov.uk/id/local-authority/38,Oxfordshire County Council,MAINSTREAM-SECONDARY,21/12/2023,4322,"Season Tickets - Bus, Rail & Ferry",3111578085,-831,Oxford Bus Company Ltd
http://statistics.data.gov.uk/id/local-authority/38,Oxfordshire County Council,Support at Home U65 Mental Health,06/12/2023,5699,,3111563457,-803.5,Calvary Care Ltd
http://statistics.data.gov.uk/id/local-authority/38,Oxfordshire County Council,NURSERY ED FUND,14/12/2023,5537,Payments to Other Establishments,3111573293,-801.64,Robin Playgroup
http://statistics.data.gov.uk/id/local-authority/38,Oxfordshire County Council,Support at Home 65+ Physical Support,13/12/2023,5693,,3111572718,-796.68,Victory Locum Limited
http://statistics.data.gov.uk/id/local-authority/38,Oxfordshire County Council,Councillors Priorities Fund,06/12/2023,4940,Other Services,3111562710,-786,Wheatley Playing Field Trust
http://statistics.data.gov.uk/id/local-authority/38,Oxfordshire County Council,Care Homes - Over 65 Memory & Cognition,12/12/2023,5686,,3111568442,-783.71,Orders of St John
http://statistics.data.gov.uk/id/local-authority/38,Oxfordshire County Council,Care Homes - Over 65 Physical Sypport,12/12/2023,5686,,3111571729,-778.57,The Grange - Goring Care Homes
http://statistics.data.gov.uk/id/local-authority/38,Oxfordshire County Council,2 YEAR OLD FUNDING,14/12/2023,5537,Payments to Other Establishments,3111573431,-777.78,Little Oak Pre-School
http://statistics.data.gov.uk/id/local-authority/38,Oxfordshire County Council,Support at Home 65+ Memory & Cognition,13/12/2023,5693,,3111572657,-769.16,Victory Locum Limited
http://statistics.data.gov.uk/id/local-authority/38,Oxfordshire County Council,Support at Home 65+ Memory & Cognition,13/12/2023,5693,,3111572665,-769.16,Victory Locum Limited
http://statistics.data.gov.uk/id/local-authority/38,Oxfordshire County Council,NURSERY ED FUND,14/12/2023,5537,Payments to Other Establishments,3111573645,-763.5,Southwold Primary School Academy
http://statistics.data.gov.uk/id/local-authority/38,Oxfordshire County Council,Support at Home 65+ Physical Support,13/12/2023,5693,,3111572721,-755.43,Victory Locum Limited
http://statistics.data.gov.uk/id/local-authority/38,Oxfordshire County Council,NURSERY ED FUND,14/12/2023,5537,Payments to Other Establishments,3111573835,-748.23,Charlton Primary School Nursery
http://statistics.data.gov.uk/id/local-authority/38,Oxfordshire County Council,Care Homes - Over 65 Memory & Cognition,12/12/2023,5687,,3111569581,-742.68,Bondcare (Henley) Ltd
http://statistics.data.gov.uk/id/local-authority/38,Oxfordshire County Council,2 YEAR OLD FUNDING,14/12/2023,5537,Payments to Other Establishments,3111573242,-740.7,Charlbury Pre-School
http://statistics.data.gov.uk/id/local-authority/38,Oxfordshire County Council,2 YEAR OLD FUNDING,14/12/2023,5537,Payments to Other Establishments,3111573419,-740.7,Little Oak Pre-School
http://statistics.data.gov.uk/id/local-authority/38,Oxfordshire County Council,2 YEAR OLD FUNDING,14/12/2023,5537,Payments to Other Establishments,3111573526,-740.7,The Sunshine Centre
http://statistics.data.gov.uk/id/local-authority/38,Oxfordshire County Council,NURSERY ED FUND,14/12/2023,5537,Payments to Other Establishments,3111573738,-732.96,Benson C of E Primary School
http://statistics.data.gov.uk/id/local-authority/38,Oxfordshire County Council,2 YEAR OLD FUNDING,14/12/2023,5537,Payments to Other Establishments,3111573388,-720.16,Camel Pre-School (PFSU)
http://statistics.data.gov.uk/id/local-authority/38,Oxfordshire County Council,NURSERY ED FUND,14/12/2023,5537,Payments to Other Establishments,3111573494,-717.72,Sunrise Nursery
http://statistics.data.gov.uk/id/local-authority/38,Oxfordshire County Council,Support at Home U65 Physical Support,06/12/2023,5699,,3111563365,-714.22,Angel Care Group
http://statistics.data.gov.uk/id/local-authority/38,Oxfordshire County Council,Support at Home 65+ Memory & Cognition,06/12/2023,5689,,3111564734,-714.17,Oasis Private Care Ltd
http://statistics.data.gov.uk/id/local-authority/38,Oxfordshire County Council,NURSERY ED FUND,14/12/2023,5537,Payments to Other Establishments,3111573524,-702.42,Co-Op Rose Hill Nursery
http://statistics.data.gov.uk/id/local-authority/38,Oxfordshire County Council,NURSERY ED FUND,14/12/2023,5537,Payments to Other Establishments,3111573436,-694.82,Little Oak Pre-School
http://statistics.data.gov.uk/id/local-authority/38,Oxfordshire County Council,2 YEAR OLD FUNDING,14/12/2023,5537,Payments to Other Establishments,3111573289,-691.32,Robin Playgroup
http://statistics.data.gov.uk/id/local-authority/38,Oxfordshire County Council,Support at Home U65 Physical Support,06/12/2023,5699,,3111564252,-686.75,The Care Workshop Limited
http://statistics.data.gov.uk/id/local-authority/38,Oxfordshire County Council,Care Homes - Over 65 Physical Sypport,12/12/2023,5687,,3111570134,-668.97,Coxwell Hall & Mews Nursing Home
http://statistics.data.gov.uk/id/local-authority/38,Oxfordshire County Council,CONTRACT & PERF MNGT,12/12/2023,5526,Payments to Private Contractors,2201179609,-663.01,Milestone Infrastructure Limited
http://statistics.data.gov.uk/id/local-authority/38,Oxfordshire County Council,Support at Home 65+ Memory & Cognition,06/12/2023,5699,,3111564270,-659.28,Trinity Carers Services Ltd
http://statistics.data.gov.uk/id/local-authority/38,Oxfordshire County Council,NURSERY ED FUND,14/12/2023,5537,Payments to Other Establishments,3111573850,-656,Nara Horton
http://statistics.data.gov.uk/id/local-authority/38,Oxfordshire County Council,NURSERY ED FUND,14/12/2023,5537,Payments to Other Establishments,3111573271,-653.1,Deddington (PFSU)
http://statistics.data.gov.uk/id/local-authority/38,Oxfordshire County Council,NURSERY ED FUND,14/12/2023,5537,Payments to Other Establishments,3111573595,-653.1,Pegasus Primary School
http://statistics.data.gov.uk/id/local-authority/38,Oxfordshire County Council,NURSERY ED FUND,14/12/2023,5537,Payments to Other Establishments,3111573342,-641.34,Brightwell Pre-school
http://statistics.data.gov.uk/id/local-authority/38,Oxfordshire County Council,NURSERY ED FUND,14/12/2023,5537,Payments to Other Establishments,3111573243,-641.34,Charlbury Pre-School
http://statistics.data.gov.uk/id/local-authority/38,Oxfordshire County Council,NURSERY ED FUND,14/12/2023,5537,Payments to Other Establishments,3111573417,-641.34,Polstead Preschool Oxford
http://statistics.data.gov.uk/id/local-authority/38,Oxfordshire County Council,2 YEAR OLD FUNDING,14/12/2023,5537,Payments to Other Establishments,3111573577,-617.25,Bridges Childcare
http://statistics.data.gov.uk/id/local-authority/38,Oxfordshire County Council,2 YEAR OLD FUNDING,14/12/2023,5537,Payments to Other Establishments,3111573322,-617.25,Paddocks Pre-School
http://statistics.data.gov.uk/id/local-authority/38,Oxfordshire County Council,NURSERY ED FUND,14/12/2023,5537,Payments to Other Establishments,3111573560,-615.78,Faringdon Infant School - Adademy
http://statistics.data.gov.uk/id/local-authority/38,Oxfordshire County Council,NURSERY ED FUND,14/12/2023,5537,Payments to Other Establishments,3111573561,-615.78,Faringdon Infant School - Adademy
http://statistics.data.gov.uk/id/local-authority/38,Oxfordshire County Council,Support at Home 65+ Physical Support,06/12/2023,5699,,3111564316,-613.9,YOD Ltd
http://statistics.data.gov.uk/id/local-authority/38,Oxfordshire County Council,NURSERY ED FUND,14/12/2023,5537,Payments to Other Establishments,3111573226,-610.8,Hagbourne Pre-School
http://statistics.data.gov.uk/id/local-authority/38,Oxfordshire County Council,NURSERY ED FUND,14/12/2023,5537,Payments to Other Establishments,3111573527,-610.8,Kennington Playgroup
http://statistics.data.gov.uk/id/local-authority/38,Oxfordshire County Council,NURSERY ED FUND,14/12/2023,5537,Payments to Other Establishments,3111573843,-610.8,Nara Horton
http://statistics.data.gov.uk/id/local-authority/38,Oxfordshire County Council,NURSERY ED FUND,14/12/2023,5537,Payments to Other Establishments,3111573722,-610.8,Tackley COFE Primary School
http://statistics.data.gov.uk/id/local-authority/38,Oxfordshire County Council,NURSERY ED FUND,14/12/2023,5537,Payments to Other Establishments,3111573723,-610.8,Tackley COFE Primary School
http://statistics.data.gov.uk/id/local-authority/38,Oxfordshire County Council,NURSERY ED FUND,14/12/2023,5537,Payments to Other Establishments,3111573724,-610.8,Tackley COFE Primary School
http://statistics.data.gov.uk/id/local-authority/38,Oxfordshire County Council,NURSERY ED FUND,14/12/2023,5537,Payments to Other Establishments,3111573548,-610.8,The Sunshine Centre
http://statistics.data.gov.uk/id/local-authority/38,Oxfordshire County Council,Support at Home 65+ Physical Support,13/12/2023,5693,,3111572711,-604.35,Victory Locum Limited
http://statistics.data.gov.uk/id/local-authority/38,Oxfordshire County Council,Support at Home 65+ Physical Support,06/12/2023,5699,,3111563463,-604.34,Calvary Care Ltd
http://statistics.data.gov.uk/id/local-authority/38,Oxfordshire County Council,Funded Nursing Care  - Over 65,12/12/2023,5692,,3111569566,-596.36,Bondcare (Henley) Ltd
http://statistics.data.gov.uk/id/local-authority/38,Oxfordshire County Council,Funded Nursing Care  - Over 65,12/12/2023,5692,,3111572114,-596.36,Wytham House
http://statistics.data.gov.uk/id/local-authority/38,Oxfordshire County Council,Support at Home 65+ Memory & Cognition,06/12/2023,5699,,3111563822,-595.1,Direct Link Care Ltd
http://statistics.data.gov.uk/id/local-authority/38,Oxfordshire County Council,NURSERY ED FUND,14/12/2023,5537,Payments to Other Establishments,3111573235,-587.93,Freeland Pre-School (PFSU)
http://statistics.data.gov.uk/id/local-authority/38,Oxfordshire County Council,Support at Home 65+ Physical Support,13/12/2023,5693,,3111572707,-576.94,Victory Locum Limited
http://statistics.data.gov.uk/id/local-authority/38,Oxfordshire County Council,Support at Home 65+ Physical Support,13/12/2023,5693,,3111572710,-576.8,Victory Locum Limited
http://statistics.data.gov.uk/id/local-authority/38,Oxfordshire County Council,Care Homes - Over 65 Physical Sypport,12/12/2023,5686,,3111571462,-571.43,ST ANNES RESIDENTIAL  HOME
http://statistics.data.gov.uk/id/local-authority/38,Oxfordshire County Council,NURSERY ED FUND,14/12/2023,5537,Payments to Other Establishments,3111573239,-570.08,Charlbury Pre-School
http://statistics.data.gov.uk/id/local-authority/38,Oxfordshire County Council,Support at Home 65+ Physical Support,06/12/2023,5699,,3111564220,-570,SureCare Oxfordshire
http://statistics.data.gov.uk/id/local-authority/38,Oxfordshire County Council,Funded Nursing Care  - Over 65,12/12/2023,5692,,3111571538,-564.97,St. Lukes Oxford - Free Nursing
http://statistics.data.gov.uk/id/local-authority/38,Oxfordshire County Council,Reactive Maintenance,20/12/2023,4531,Materials,2201183324,-553.05,CEF
http://statistics.data.gov.uk/id/local-authority/38,Oxfordshire County Council,Homes for Ukraine - Guests,12/12/2023,5896,Adult Social Care - Other Transfer Pay,3111566715,-550,Redacted Personal Data
http://statistics.data.gov.uk/id/local-authority/38,Oxfordshire County Council,NURSERY ED FUND,14/12/2023,5537,Payments to Other Establishments,3111573351,-549.76,Childrey Little Ducks Pre-School
http://statistics.data.gov.uk/id/local-authority/38,Oxfordshire County Council,NURSERY ED FUND,14/12/2023,5537,Payments to Other Establishments,3111573330,-549.76,Paddocks Pre-School
http://statistics.data.gov.uk/id/local-authority/38,Oxfordshire County Council,NURSERY ED FUND,14/12/2023,5537,Payments to Other Establishments,3111573261,-549.72,Cygnet Nursery
http://statistics.data.gov.uk/id/local-authority/38,Oxfordshire County Council,NURSERY ED FUND,14/12/2023,5537,Payments to Other Establishments,3111573266,-549.72,Cygnet Nursery
http://statistics.data.gov.uk/id/local-authority/38,Oxfordshire County Council,NURSERY ED FUND,14/12/2023,5537,Payments to Other Establishments,3111573750,-549.72,Watlington Primary School
http://statistics.data.gov.uk/id/local-authority/38,Oxfordshire County Council,NURSERY ED FUND,14/12/2023,5537,Payments to Other Establishments,3111573482,-541.14,Lake Street Nursery
http://statistics.data.gov.uk/id/local-authority/38,Oxfordshire County Council,Procurement Rebates & Income,14/12/2023,7203,Other Miscellaneous Income,3111572859,-540,Intelligent Data (Collection) Ltd
http://statistics.data.gov.uk/id/local-authority/38,Oxfordshire County Council,NURSERY ED FUND,14/12/2023,5537,Payments to Other Establishments,3111573497,-539.56,St Marys Day Nursery
http://statistics.data.gov.uk/id/local-authority/38,Oxfordshire County Council,SEN Inclusion Fund,14/12/2023,5537,Payments to Other Establishments,3111573564,-539,Cygnets Playschool
http://statistics.data.gov.uk/id/local-authority/38,Oxfordshire County Council,SEN Inclusion Fund,14/12/2023,5537,Payments to Other Establishments,3111573571,-539,John Henry Newman Academy
http://statistics.data.gov.uk/id/local-authority/38,Oxfordshire County Council,SEN Inclusion Fund,14/12/2023,5537,Payments to Other Establishments,3111573426,-539,Little Oak Pre-School
http://statistics.data.gov.uk/id/local-authority/38,Oxfordshire County Council,SEN Inclusion Fund,14/12/2023,5537,Payments to Other Establishments,3111573434,-539,Little Oak Pre-School
http://statistics.data.gov.uk/id/local-authority/38,Oxfordshire County Council,SEN Inclusion Fund,14/12/2023,5537,Payments to Other Establishments,3111573248,-539,Little Pippins Pre-Schoo
http://statistics.data.gov.uk/id/local-authority/38,Oxfordshire County Council,SEN Inclusion Fund,14/12/2023,5537,Payments to Other Establishments,3111573253,-539,Little Pippins Pre-Schoo
http://statistics.data.gov.uk/id/local-authority/38,Oxfordshire County Council,SEN Inclusion Fund,14/12/2023,5537,Payments to Other Establishments,3111573257,-539,Long Wittenham Pre-School
http://statistics.data.gov.uk/id/local-authority/38,Oxfordshire County Council,SEN Inclusion Fund,14/12/2023,5537,Payments to Other Establishments,3111573733,-539,People Place & Participation LTD
http://statistics.data.gov.uk/id/local-authority/38,Oxfordshire County Council,NURSERY ED FUND,14/12/2023,5537,Payments to Other Establishments,3111573237,-534.45,Freeland Pre-School (PFSU)
http://statistics.data.gov.uk/id/local-authority/38,Oxfordshire County Council,NURSERY ED FUND,14/12/2023,5537,Payments to Other Establishments,3111573642,-534.45,Southwold Primary School Academy
http://statistics.data.gov.uk/id/local-authority/38,Oxfordshire County Council,NURSERY ED FUND,14/12/2023,5537,Payments to Other Establishments,3111573647,-534.45,Southwold Primary School Academy
http://statistics.data.gov.uk/id/local-authority/38,Oxfordshire County Council,NURSERY ED FUND,14/12/2023,5537,Payments to Other Establishments,3111573696,-534.45,St Nicholas CE Infants'School
http://statistics.data.gov.uk/id/local-authority/38,Oxfordshire County Council,NURSERY ED FUND,14/12/2023,5537,Payments to Other Establishments,3111573806,-534.45,Windrush Church of England Primary
http://statistics.data.gov.uk/id/local-authority/38,Oxfordshire County Council,SEN Inclusion Fund,14/12/2023,5537,Payments to Other Establishments,3111573593,-531.3,Pegasus Primary School
http://statistics.data.gov.uk/id/local-authority/38,Oxfordshire County Council,MAINSTREAM-SECONDARY,28/12/2023,4322,"Season Tickets - Bus, Rail & Ferry",3111579050,-530,Oxford Bus Company Ltd
http://statistics.data.gov.uk/id/local-authority/38,Oxfordshire County Council,Support at Home 65+ Physical Support,13/12/2023,5693,,3111572659,-521.93,Victory Locum Limited
http://statistics.data.gov.uk/id/local-authority/38,Oxfordshire County Council,2 YEAR OLD FUNDING,14/12/2023,5537,Payments to Other Establishments,3111573447,-518.49,Bubbles Pre School
http://statistics.data.gov.uk/id/local-authority/38,Oxfordshire County Council,NURSERY ED FUND,14/12/2023,5537,Payments to Other Establishments,3111573453,-509,Bubbles Pre School
http://statistics.data.gov.uk/id/local-authority/38,Oxfordshire County Council,NURSERY ED FUND,14/12/2023,5537,Payments to Other Establishments,3111573220,-503.91,Hunsdon House Nursery Sc
http://statistics.data.gov.uk/id/local-authority/38,Oxfordshire County Council,Family Solutions Plus Non-staff - Centra,05/12/2023,5365,Non-Staff Subsistence and Expenses,9300062080,-502,OCC SS Oxford City Div 1 Bank
http://statistics.data.gov.uk/id/local-authority/38,Oxfordshire County Council,CAP CHRGES-PRIM SCHS,06/12/2023,8102,Payments to main contractor,2201177115,500,Amity Insulation Services Limited
http://statistics.data.gov.uk/id/local-authority/38,Oxfordshire County Council,LAC PUPIL PREMIUM,18/12/2023,5537,Payments to Other Establishments,3111574018,500,Redacted Personal Data
http://statistics.data.gov.uk/id/local-authority/38,Oxfordshire County Council,LAC PUPIL PREMIUM,18/12/2023,5537,Payments to Other Establishments,3111574015,500,Burnley High School
http://statistics.data.gov.uk/id/local-authority/38,Oxfordshire County Council,Councillors Priorities Fund,04/12/2023,4940,Other Services,3111560758,500,East Hendred Parish Council
http://statistics.data.gov.uk/id/local-authority/38,Oxfordshire County Council,L&D CORE PROGRAMME,20/12/2023,3100,Educational and Vocational Training,2201182929,500,Fiona Thurston
http://statistics.data.gov.uk/id/local-authority/38,Oxfordshire County Council,Reading Adoption Support Fund,05/12/2023,4861,Hired and Contracted Services,2201176430,500,Holistic Health Ltd
http://statistics.data.gov.uk/id/local-authority/38,Oxfordshire County Council,LDD AFTER SCHOOL,08/12/2023,5227,Other Transport Arrangements,3111565694,500,J & B Cars Ltd
http://statistics.data.gov.uk/id/local-authority/38,Oxfordshire County Council,STEPHEN FREEMAN  DID,01/12/2023,3357,,3111560644,500,McLarens
http://statistics.data.gov.uk/id/local-authority/38,Oxfordshire County Council,LAC PUPIL PREMIUM,18/12/2023,5537,Payments to Other Establishments,3111574036,500,My Choice School Arundel
http://statistics.data.gov.uk/id/local-authority/38,Oxfordshire County Council,LAC PUPIL PREMIUM,18/12/2023,5537,Payments to Other Establishments,3111574009,500,Northern House Academy (Gallery Tru
http://statistics.data.gov.uk/id/local-authority/38,Oxfordshire County Council,Business Rates and Insurance Payout,05/12/2023,5055,Insurance Costs,3111561688,500,OCC One Time Vendor
http://statistics.data.gov.uk/id/local-authority/38,Oxfordshire County Council,Business Rates and Insurance Payout,05/12/2023,5055,Insurance Costs,3111561691,500,OCC One Time Vendor
http://statistics.data.gov.uk/id/local-authority/38,Oxfordshire County Council,Business Rates and Insurance Payout,11/12/2023,5055,Insurance Costs,3111565839,500,OCC One Time Vendor
http://statistics.data.gov.uk/id/local-authority/38,Oxfordshire County Council,Business Rates and Insurance Payout,18/12/2023,5055,Insurance Costs,3111573963,500,OCC One Time Vendor
http://statistics.data.gov.uk/id/local-authority/38,Oxfordshire County Council,Business Rates and Insurance Payout,18/12/2023,5055,Insurance Costs,3111573965,500,OCC One Time Vendor
http://statistics.data.gov.uk/id/local-authority/38,Oxfordshire County Council,Business Rates and Insurance Payout,18/12/2023,5055,Insurance Costs,3111573968,500,OCC One Time Vendor
http://statistics.data.gov.uk/id/local-authority/38,Oxfordshire County Council,Development Management,20/12/2023,5251,Legal Costs,3111577554,500,OCC One Time Vendor
http://statistics.data.gov.uk/id/local-authority/38,Oxfordshire County Council,Business Rates and Insurance Payout,21/12/2023,5055,Insurance Costs,3111578134,500,OCC One Time Vendor
http://statistics.data.gov.uk/id/local-authority/38,Oxfordshire County Council,POST18 UASC DCSF FND,22/12/2023,5665,B*Fostering Project Care Fee,9300062334,500,OCC SS Oxford City Div 1 Cash
http://statistics.data.gov.uk/id/local-authority/38,Oxfordshire County Council,LANDLORD & TENANT,20/12/2023,3945,Rent,3500101926,500,Oxford City Council
http://statistics.data.gov.uk/id/local-authority/38,Oxfordshire County Council,,19/12/2023,1531,Cash Allocation Control Account,3111574383,500,Oxfordshire County Council
http://statistics.data.gov.uk/id/local-authority/38,Oxfordshire County Council,Hospital Social Work Team North,07/12/2023,5227,Other Transport Arrangements,3111565229,500,Oxon Transport Services Ltd
http://statistics.data.gov.uk/id/local-authority/38,Oxfordshire County Council,Councillors Priorities Fund,04/12/2023,4940,Other Services,3111560760,500,Redacted Personal Data
http://statistics.data.gov.uk/id/local-authority/38,Oxfordshire County Council,Councillors Priorities Fund,11/12/2023,4940,Other Services,3111566712,500,The Cornermen CIC
http://statistics.data.gov.uk/id/local-authority/38,Oxfordshire County Council,LAC PUPIL PREMIUM,18/12/2023,5537,Payments to Other Establishments,3111574014,500,The Oxford Academy
http://statistics.data.gov.uk/id/local-authority/38,Oxfordshire County Council,TRADING STANDARDS,28/12/2023,4525,Furniture,2201184001,500,Truecall
http://statistics.data.gov.uk/id/local-authority/38,Oxfordshire County Council,,05/12/2023,1325,Attachment of Earnings,3111561714,500.26,Oxford City Council
http://statistics.data.gov.uk/id/local-authority/38,Oxfordshire County Council,SEN Inclusion Fund,14/12/2023,5537,Payments to Other Establishments,3111573413,500.5,Bright Start Pre-school
http://statistics.data.gov.uk/id/local-authority/38,Oxfordshire County Council,SEN Inclusion Fund,14/12/2023,5537,Payments to Other Establishments,3111573679,500.5,Culham After School Club
http://statistics.data.gov.uk/id/local-authority/38,Oxfordshire County Council,SEN Inclusion Fund,14/12/2023,5537,Payments to Other Establishments,3111573594,500.5,Ladygrove Park Primary School
http://statistics.data.gov.uk/id/local-authority/38,Oxfordshire County Council,SEN Inclusion Fund,14/12/2023,5537,Payments to Other Establishments,3111573596,500.5,Ladygrove Park Primary School
http://statistics.data.gov.uk/id/local-authority/38,Oxfordshire County Council,Support at Home 65+ Memory & Cognition,12/12/2023,5690,,3111568595,501,Orders of St John
http://statistics.data.gov.uk/id/local-authority/38,Oxfordshire County Council,FOSTERING MAIN,05/12/2023,5227,Other Transport Arrangements,3111562005,501.11,Redacted Personal Data
http://statistics.data.gov.uk/id/local-authority/38,Oxfordshire County Council,FOSTERING MAIN,05/12/2023,5227,Other Transport Arrangements,3111562133,501.6,Redacted Personal Data
http://statistics.data.gov.uk/id/local-authority/38,Oxfordshire County Council,ALTERNATIVES TO CARE,27/12/2023,4615,Drugs and Medical Supplies,9300062340,501.6,OCC SS Oxford City Div 1 Cash
http://statistics.data.gov.uk/id/local-authority/38,Oxfordshire County Council,Family Solutions Plus Non-staff - Centra,05/12/2023,5365,Non-Staff Subsistence and Expenses,9300062077,502,OCC SS Oxford City Div 1 Bank
http://statistics.data.gov.uk/id/local-authority/38,Oxfordshire County Council,Family Solutions Plus Non-staff - Centra,05/12/2023,5365,Non-Staff Subsistence and Expenses,9300062081,502,OCC SS Oxford City Div 1 Cash
http://statistics.data.gov.uk/id/local-authority/38,Oxfordshire County Council,LANDLORD & TENANT,29/12/2023,4001,Uniform Business Rates,3500102238,502,West Oxfordshire District Council
http://statistics.data.gov.uk/id/local-authority/38,Oxfordshire County Council,LANDLORD & TENANT,29/12/2023,4001,Uniform Business Rates,3500102242,502,West Oxfordshire District Council
http://statistics.data.gov.uk/id/local-authority/38,Oxfordshire County Council,Support at Home U65 Physical Support,05/12/2023,5227,Other Transport Arrangements,3111562673,502.02,LINK SHIRES LTD
http://statistics.data.gov.uk/id/local-authority/38,Oxfordshire County Council,Direct payments,27/12/2023,5554,Childrens' Social Care - Direct Payments,3111578496,502.16,Redacted Personal Data
http://statistics.data.gov.uk/id/local-authority/38,Oxfordshire County Council,Stores stock,11/12/2023,4407,Equipment,2201178694,502.5,Thomas Graham & Sons Ltd
http://statistics.data.gov.uk/id/local-authority/38,Oxfordshire County Council,Swindon Adoption Support Fund,21/12/2023,4861,Hired and Contracted Services,2201183427,503.75,Beata Dytczak
http://statistics.data.gov.uk/id/local-authority/38,Oxfordshire County Council,NURSERY ED FUND,14/12/2023,5537,Payments to Other Establishments,3111573493,503.91,Lake Street Nursery
http://statistics.data.gov.uk/id/local-authority/38,Oxfordshire County Council,Support at Home U65 Physical Support,19/12/2023,5899,Social Care - Direct Payments,3111574602,504,Redacted Personal Data
http://statistics.data.gov.uk/id/local-authority/38,Oxfordshire County Council,LEAVING CARE CITY 2,05/12/2023,5665,B*Fostering Project Care Fee,9300062079,504,OCC SS Oxford City Div 1 Cash
http://statistics.data.gov.uk/id/local-authority/38,Oxfordshire County Council,LEAVING CARE CITY 2,28/12/2023,5663,B*Birthday Allowance,9300062352,504,OCC SS Witney Area Off Cash
http://statistics.data.gov.uk/id/local-authority/38,Oxfordshire County Council,Support at Home 65+ Physical Support,06/12/2023,5689,,3111564820,504.04,Oxfordshire Crossroads
http://statistics.data.gov.uk/id/local-authority/38,Oxfordshire County Council,Support at Home U65 Sensory Support,19/12/2023,5899,Social Care - Direct Payments,3111575130,504.4,Redacted Personal Data
http://statistics.data.gov.uk/id/local-authority/38,Oxfordshire County Council,Support at Home 65+ Mental Health,06/12/2023,5696,,3111563136,504.85,Radis Community Care
http://statistics.data.gov.uk/id/local-authority/38,Oxfordshire County Council,FOSTERING MAIN,05/12/2023,5227,Other Transport Arrangements,3111562249,504.95,Redacted Personal Data
http://statistics.data.gov.uk/id/local-authority/38,Oxfordshire County Council,FLEET COSTS,04/12/2023,4270,HTM / Other Vehicle - Hire Charges,2201176238,505,West Wallasey Fleet Hire Services
http://statistics.data.gov.uk/id/local-authority/38,Oxfordshire County Council,FLEET COSTS,04/12/2023,4270,HTM / Other Vehicle - Hire Charges,2201176245,505,West Wallasey Fleet Hire Services
http://statistics.data.gov.uk/id/local-authority/38,Oxfordshire County Council,FLEET COSTS,04/12/2023,4270,HTM / Other Vehicle - Hire Charges,2201176252,505,West Wallasey Fleet Hire Services
http://statistics.data.gov.uk/id/local-authority/38,Oxfordshire County Council,FLEET COSTS,04/12/2023,4270,HTM / Other Vehicle - Hire Charges,2201176259,505,West Wallasey Fleet Hire Services
http://statistics.data.gov.uk/id/local-authority/38,Oxfordshire County Council,FLEET COSTS,04/12/2023,4270,HTM / Other Vehicle - Hire Charges,2201176264,505,West Wallasey Fleet Hire Services
http://statistics.data.gov.uk/id/local-authority/38,Oxfordshire County Council,FLEET COSTS,04/12/2023,4270,HTM / Other Vehicle - Hire Charges,2201176267,505,West Wallasey Fleet Hire Services
http://statistics.data.gov.uk/id/local-authority/38,Oxfordshire County Council,FLEET COSTS,04/12/2023,4270,HTM / Other Vehicle - Hire Charges,2201176268,505,West Wallasey Fleet Hire Services
http://statistics.data.gov.uk/id/local-authority/38,Oxfordshire County Council,FLEET COSTS,04/12/2023,4270,HTM / Other Vehicle - Hire Charges,2201176276,505,West Wallasey Fleet Hire Services
http://statistics.data.gov.uk/id/local-authority/38,Oxfordshire County Council,FLEET COSTS,04/12/2023,4270,HTM / Other Vehicle - Hire Charges,2201176282,505,West Wallasey Fleet Hire Services
http://statistics.data.gov.uk/id/local-authority/38,Oxfordshire County Council,FLEET COSTS,04/12/2023,4270,HTM / Other Vehicle - Hire Charges,2201176291,505,West Wallasey Fleet Hire Services
http://statistics.data.gov.uk/id/local-authority/38,Oxfordshire County Council,FLEET COSTS,04/12/2023,4270,HTM / Other Vehicle - Hire Charges,2201176299,505,West Wallasey Fleet Hire Services
http://statistics.data.gov.uk/id/local-authority/38,Oxfordshire County Council,Support at Home U65 Learning Disability,19/12/2023,5899,Social Care - Direct Payments,3111575987,505.36,Purple Conversation Com In Co (DP)
http://statistics.data.gov.uk/id/local-authority/38,Oxfordshire County Council,LIBRARY COLLECTIONS,19/12/2023,4539,"Books, DVDs and CDs",3111578606,505.37,ASKEWS & HOLTS LIBRARY SERVICES LTD
http://statistics.data.gov.uk/id/local-authority/38,Oxfordshire County Council,CENTRAL PRINTING,22/12/2023,4494,Purchase of IT Equipment,2201183783,506.21,Annodata Limited
http://statistics.data.gov.uk/id/local-authority/38,Oxfordshire County Council,Support at Home 65+ Physical Support,06/12/2023,5699,,3111563579,508.2,CareUK Living Limited
http://statistics.data.gov.uk/id/local-authority/38,Oxfordshire County Council,Early Years SEN Funding,29/12/2023,5537,Payments to Other Establishments,3111579426,508.56,The Treehouse Thame Limited
http://statistics.data.gov.uk/id/local-authority/38,Oxfordshire County Council,Support at Home U65 Physical Support,12/12/2023,5690,,3111568143,508.84,The Camden Society
http://statistics.data.gov.uk/id/local-authority/38,Oxfordshire County Council,Support at Home U65 Learning Disability,12/12/2023,5690,,3111568172,508.84,The Camden Society
http://statistics.data.gov.uk/id/local-authority/38,Oxfordshire County Council,Support at Home U65 Learning Disability,12/12/2023,5690,,3111568205,508.84,The Camden Society
http://statistics.data.gov.uk/id/local-authority/38,Oxfordshire County Council,LAC PUPIL PREMIUM,18/12/2023,5537,Payments to Other Establishments,3111574032,508.98,Kingsthorne Primary School
http://statistics.data.gov.uk/id/local-authority/38,Oxfordshire County Council,FOSTERING MAIN,19/12/2023,5394,Other Expenses,3111575656,509,Redacted Personal Data
http://statistics.data.gov.uk/id/local-authority/38,Oxfordshire County Council,NURSERY ED FUND,14/12/2023,5537,Payments to Other Establishments,3111573623,509.04,The Kings School
http://statistics.data.gov.uk/id/local-authority/38,Oxfordshire County Council,NURSERY ED FUND,14/12/2023,5537,Payments to Other Establishments,3111573624,509.04,The Kings School
http://statistics.data.gov.uk/id/local-authority/38,Oxfordshire County Council,Support at Home U65 Physical Support,19/12/2023,5899,Social Care - Direct Payments,3111576201,509.12,Purple Conversation Com In Co (DP)
http://statistics.data.gov.uk/id/local-authority/38,Oxfordshire County Council,LIBRARY COLLECTIONS,13/12/2023,4539,"Books, DVDs and CDs",3111572736,509.21,ASKEWS & HOLTS LIBRARY SERVICES LTD
http://statistics.data.gov.uk/id/local-authority/38,Oxfordshire County Council,Direct payments,27/12/2023,5554,Childrens' Social Care - Direct Payments,3111578566,509.42,Purple Conversation Com In Co (DP)
http://statistics.data.gov.uk/id/local-authority/38,Oxfordshire County Council,Direct payments,27/12/2023,5554,Childrens' Social Care - Direct Payments,3111578567,509.42,Purple Conversation Com In Co (DP)
http://statistics.data.gov.uk/id/local-authority/38,Oxfordshire County Council,LIBRARY COLLECTIONS,01/12/2023,4539,"Books, DVDs and CDs",3111560516,509.57,ASKEWS & HOLTS LIBRARY SERVICES LTD
http://statistics.data.gov.uk/id/local-authority/38,Oxfordshire County Council,ON ST PARK OXFD P&D,19/12/2023,4861,Hired and Contracted Services,2201182381,510,Flowbird Smart City
http://statistics.data.gov.uk/id/local-authority/38,Oxfordshire County Council,UASC 16&17,18/12/2023,5227,Other Transport Arrangements,3111574082,510,The Oxfordshire Taxi Company Ltd T/
http://statistics.data.gov.uk/id/local-authority/38,Oxfordshire County Council,CHERWELL & WEST AREA,07/12/2023,4111,Security Costs,2201177802,510.9,Garran Lockers Ltd
http://statistics.data.gov.uk/id/local-authority/38,Oxfordshire County Council,LANDLORD & TENANT,29/12/2023,4001,Uniform Business Rates,3500102260,511,South Oxfordshire District Council
http://statistics.data.gov.uk/id/local-authority/38,Oxfordshire County Council,Support at Home U65 Physical Support,19/12/2023,5899,Social Care - Direct Payments,3111575539,511.28,Redacted Personal Data
http://statistics.data.gov.uk/id/local-authority/38,Oxfordshire County Council,Support at Home U65 Learning Disability,19/12/2023,5899,Social Care - Direct Payments,3111575822,511.96,Purple Conversation Com In Co (DP)
http://statistics.data.gov.uk/id/local-authority/38,Oxfordshire County Council,DISABILITIES TEAM-C,08/12/2023,5227,Other Transport Arrangements,3111565660,512,AKR Ltd
http://statistics.data.gov.uk/id/local-authority/38,Oxfordshire County Council,Support at Home 65+ Other /Soc Isolation,20/12/2023,5693,,3111577974,512,Derek Randall
http://statistics.data.gov.uk/id/local-authority/38,Oxfordshire County Council,FOSTERING MAIN,12/12/2023,5227,Other Transport Arrangements,3111568594,512.04,Redacted Personal Data
http://statistics.data.gov.uk/id/local-authority/38,Oxfordshire County Council,Sanitary Bin Contract,18/12/2023,4940,Other Services,2201181506,512.16,PHS Group Limited
http://statistics.data.gov.uk/id/local-authority/38,Oxfordshire County Council,Support at Home 65+ Physical Support,19/12/2023,5899,Social Care - Direct Payments,3111576237,513.2,Purple Conversation Com In Co (DP)
http://statistics.data.gov.uk/id/local-authority/38,Oxfordshire County Council,LIBRARY COLLECTIONS,04/12/2023,4539,"Books, DVDs and CDs",3111561658,513.25,ASKEWS & HOLTS LIBRARY SERVICES LTD
http://statistics.data.gov.uk/id/local-authority/38,Oxfordshire County Council,Support at Home 65+ Physical Support,11/12/2023,5696,,3111565987,513.33,Orders of St John Care Trust
http://statistics.data.gov.uk/id/local-authority/38,Oxfordshire County Council,Support at Home 65+ Physical Support,06/12/2023,5689,,3111564843,513.66,Prestige Nursing Ltd
http://statistics.data.gov.uk/id/local-authority/38,Oxfordshire County Council,,14/12/2023,1448,Blackfield Inc & Exp A/c,3111573168,514.29,OCC One Time Vendor
http://statistics.data.gov.uk/id/local-authority/38,Oxfordshire County Council,COUNTY PRINT FINSHRS,22/12/2023,5091,Postage and Delivery,2201183795,514.9,Royal Mail Group Plc
http://statistics.data.gov.uk/id/local-authority/38,Oxfordshire County Council,SHARED LIVES,12/12/2023,4861,Hired and Contracted Services,3111568445,514.92,Redacted Personal Data
http://statistics.data.gov.uk/id/local-authority/38,Oxfordshire County Council,LOOKED AFTER CITY 1,27/12/2023,5227,Other Transport Arrangements,9300062339,515,OCC SS Oxford City Div 1 Cash
http://statistics.data.gov.uk/id/local-authority/38,Oxfordshire County Council,VOIDS/VACANCY COSTS,12/12/2023,3945,Rent,3111566896,515.22,Oxford Citizens Housing Association
http://statistics.data.gov.uk/id/local-authority/38,Oxfordshire County Council,VOIDS/VACANCY COSTS,12/12/2023,3945,Rent,3111566898,515.22,Oxford Citizens Housing Association
http://statistics.data.gov.uk/id/local-authority/38,Oxfordshire County Council,Support at Home U65 MH OBC Contract,11/12/2023,5696,,3111566035,515.74,Orders of St John Care Trust
http://statistics.data.gov.uk/id/local-authority/38,Oxfordshire County Council,Support at Home U65 Physical Support,11/12/2023,5696,,3111566040,515.74,Orders of St John Care Trust
http://statistics.data.gov.uk/id/local-authority/38,Oxfordshire County Council,SEN TRANSPORT,27/12/2023,4320,Pupil / Client Travel Reimbursement,3111578648,515.76,Redacted Personal Data
http://statistics.data.gov.uk/id/local-authority/38,Oxfordshire County Council,Support at Home 65+ Physical Support,06/12/2023,5696,,3111563083,515.83,All Care GB Ltd
http://statistics.data.gov.uk/id/local-authority/38,Oxfordshire County Council,SEN TRANSPORT,29/12/2023,4320,Pupil / Client Travel Reimbursement,3111579314,515.9,Redacted Personal Data
http://statistics.data.gov.uk/id/local-authority/38,Oxfordshire County Council,SEN TRANSPORT,28/12/2023,4320,Pupil / Client Travel Reimbursement,3111579279,515.9,Redacted Personal Data
http://statistics.data.gov.uk/id/local-authority/38,Oxfordshire County Council,SEN TRANSPORT,28/12/2023,4320,Pupil / Client Travel Reimbursement,3111579079,515.9,Redacted Personal Data
http://statistics.data.gov.uk/id/local-authority/38,Oxfordshire County Council,SHARED LIVES,12/12/2023,5555,Payments to Carers,3111568316,516.39,Redacted Personal Data
http://statistics.data.gov.uk/id/local-authority/38,Oxfordshire County Council,Support at Home U65 Mental Health,11/12/2023,5696,,3111566027,516.65,Orders of St John Care Trust
http://statistics.data.gov.uk/id/local-authority/38,Oxfordshire County Council,FOSTERING MAIN,05/12/2023,5227,Other Transport Arrangements,3111561951,517,Redacted Personal Data
http://statistics.data.gov.uk/id/local-authority/38,Oxfordshire County Council,Support at Home U65 Learning Disability,19/12/2023,5899,Social Care - Direct Payments,3111576190,517.48,Purple Conversation Com In Co (DP)
http://statistics.data.gov.uk/id/local-authority/38,Oxfordshire County Council,Support at Home 65+ Physical Support,11/12/2023,5699,,3111566693,518.27,SafetyNet Care Limited
http://statistics.data.gov.uk/id/local-authority/38,Oxfordshire County Council,Children in Care Council,18/12/2023,4330,Transport to School Activities,3111574077,518.6,The Oxfordshire Taxi Company Ltd T/
http://statistics.data.gov.uk/id/local-authority/38,Oxfordshire County Council,Reactive Maintenance,14/12/2023,3787,Premises Repairs,2201180703,518.7,Aspect Contracts Limited
http://statistics.data.gov.uk/id/local-authority/38,Oxfordshire County Council,Planned Maintenance,14/12/2023,4042,Fixtures and Fittings,2201180558,519.3,Barker & Evans Ltd
http://statistics.data.gov.uk/id/local-authority/38,Oxfordshire County Council,Children in Care Non-staffing - Centrl 2,06/12/2023,5227,Other Transport Arrangements,9300062089,519.6,OCC SS Oxford City Div 1 Cash
http://statistics.data.gov.uk/id/local-authority/38,Oxfordshire County Council,Safeguarding commissioning,22/12/2023,3942,Hire of Accommodation and Facilities,2201183717,519.75,Agiito Limited
http://statistics.data.gov.uk/id/local-authority/38,Oxfordshire County Council,Support at Home U65 Learning Disability,18/12/2023,5227,Other Transport Arrangements,3111574058,519.92,The Oxfordshire Taxi Company Ltd T/
http://statistics.data.gov.uk/id/local-authority/38,Oxfordshire County Council,Support at Home 65+ Memory & Cognition,19/12/2023,5899,Social Care - Direct Payments,3111576277,519.96,Purple Conversation Com In Co (DP)
http://statistics.data.gov.uk/id/local-authority/38,Oxfordshire County Council,Wokingham Adoption Support Fund,27/12/2023,4861,Hired and Contracted Services,2201183823,520,Holistic Attachments Services
http://statistics.data.gov.uk/id/local-authority/38,Oxfordshire County Council,FOSTERING MAIN,12/12/2023,5532,B*Fostering - Loan Equipment,3111567934,520,Redacted Personal Data
http://statistics.data.gov.uk/id/local-authority/38,Oxfordshire County Council,T&I Management,11/12/2023,3942,Hire of Accommodation and Facilities,2201178630,520,The John Paul II Centre
http://statistics.data.gov.uk/id/local-authority/38,Oxfordshire County Council,Reactive Maintenance,28/12/2023,3951,Non System - Electricity,2201183934,520.15,PTSG
http://statistics.data.gov.uk/id/local-authority/38,Oxfordshire County Council,LIBRARY COLLECTIONS,04/12/2023,4539,"Books, DVDs and CDs",3111561783,520.2,ASKEWS & HOLTS LIBRARY SERVICES LTD
http://statistics.data.gov.uk/id/local-authority/38,Oxfordshire County Council,Support at Home 65+ Physical Support,06/12/2023,5699,,3111563577,520.23,Caremark (West Oxfordshire & Cherwe
http://statistics.data.gov.uk/id/local-authority/38,Oxfordshire County Council,Support at Home U65 Learning Disability,12/12/2023,5690,,3111568862,520.8,Style Acre
http://statistics.data.gov.uk/id/local-authority/38,Oxfordshire County Council,Support at Home U65 Learning Disability,12/12/2023,5690,,3111568941,520.8,Style Acre
http://statistics.data.gov.uk/id/local-authority/38,Oxfordshire County Council,Support at Home U65 Learning Disability,12/12/2023,5690,,3111568656,520.8,Turnstyle
http://statistics.data.gov.uk/id/local-authority/38,Oxfordshire County Council,ASSET RATIONALISATN,19/12/2023,4070,Cleaning services,2201182211,521.3,Parker Contract Cleaning
http://statistics.data.gov.uk/id/local-authority/38,Oxfordshire County Council,Community Support Service Bicester,06/12/2023,2040,Agency Staff,2201177223,521.7,Completely Care Ltd
http://statistics.data.gov.uk/id/local-authority/38,Oxfordshire County Council,Support at Home 65+ Subsantance Abuse,06/12/2023,5699,,3111563336,521.93,Adult Transition Services Ltd (ATrS
http://statistics.data.gov.uk/id/local-authority/38,Oxfordshire County Council,Support at Home U65 Mental Health,07/12/2023,5699,,3111565284,521.93,Calvary Care Ltd
http://statistics.data.gov.uk/id/local-authority/38,Oxfordshire County Council,Support at Home 65+ Physical Support,06/12/2023,5699,,3111563724,521.93,Clarissa�s Home Healthcare Services
http://statistics.data.gov.uk/id/local-authority/38,Oxfordshire County Council,Support at Home 65+ Physical Support,08/12/2023,5693,,3111565746,521.93,Victory Locum Limited
http://statistics.data.gov.uk/id/local-authority/38,Oxfordshire County Council,Support at Home 65+ Physical Support,14/12/2023,5693,,3111573190,521.93,Victory Locum Limited
http://statistics.data.gov.uk/id/local-authority/38,Oxfordshire County Council,PROCUREMENT,04/12/2023,4495,IT Software,2201175974,522,C Track UK
http://statistics.data.gov.uk/id/local-authority/38,Oxfordshire County Council,AGENCY RESID - DISAB,05/12/2023,5549,B*Fostering Allowance - Regulation 38,3111562017,522,Redacted Personal Data
http://statistics.data.gov.uk/id/local-authority/38,Oxfordshire County Council,AGENCY RESID - DISAB,12/12/2023,5549,B*Fostering Allowance - Regulation 38,3111567866,522,Redacted Personal Data
http://statistics.data.gov.uk/id/local-authority/38,Oxfordshire County Council,AGENCY RESID - DISAB,19/12/2023,5549,B*Fostering Allowance - Regulation 38,3111575255,522,Redacted Personal Data
http://statistics.data.gov.uk/id/local-authority/38,Oxfordshire County Council,AGENCY RESID - DISAB,19/12/2023,5549,B*Fostering Allowance - Regulation 38,3111577207,522,Redacted Personal Data
http://statistics.data.gov.uk/id/local-authority/38,Oxfordshire County Council,NURSERY ED FUND,14/12/2023,5537,Payments to Other Establishments,3111573576,522.48,John Henry Newman Academy
http://statistics.data.gov.uk/id/local-authority/38,Oxfordshire County Council,NURSERY ED FUND,14/12/2023,5537,Payments to Other Establishments,3111573269,522.56,Little Pippins Pre-Schoo
http://statistics.data.gov.uk/id/local-authority/38,Oxfordshire County Council,COMM DRAWDOWN FUNDNG,12/12/2023,8004,Design Consultant,2201179081,522.68,Milestone Infrastructure Limited
http://statistics.data.gov.uk/id/local-authority/38,Oxfordshire County Council,POST18 UASC DCSF FND,07/12/2023,4540,"Educational Supplies, Stationery & Mater",3111565466,523,Redacted Personal Data
http://statistics.data.gov.uk/id/local-authority/38,Oxfordshire County Council,Support at Home 65+ Sensory Support,19/12/2023,5899,Social Care - Direct Payments,3111576222,523.08,Purple Conversation Com In Co (DP)
http://statistics.data.gov.uk/id/local-authority/38,Oxfordshire County Council,Support at Home U65 Learning Disability,19/12/2023,5899,Social Care - Direct Payments,3111576054,523.56,Purple Conversation Com In Co (DP)
http://statistics.data.gov.uk/id/local-authority/38,Oxfordshire County Council,SEN Inclusion Fund,14/12/2023,5537,Payments to Other Establishments,3111573858,523.6,Ashbury CE Primary School - Academy
http://statistics.data.gov.uk/id/local-authority/38,Oxfordshire County Council,Support at Home 65+ Physical Support,06/12/2023,5696,,3111563089,523.62,All Care GB Ltd
http://statistics.data.gov.uk/id/local-authority/38,Oxfordshire County Council,STI TESTING+TREATMEN,21/12/2023,4940,Other Services,3111578144,524,Berkshire Healthcare NHS Trust
http://statistics.data.gov.uk/id/local-authority/38,Oxfordshire County Council,CONTRACT MANAGEMENT,29/12/2023,4001,Uniform Business Rates,3500102139,524,Cherwell District Council
http://statistics.data.gov.uk/id/local-authority/38,Oxfordshire County Council,FLEET COSTS,04/12/2023,4270,HTM / Other Vehicle - Hire Charges,2201176254,524,West Wallasey Fleet Hire Services
http://statistics.data.gov.uk/id/local-authority/38,Oxfordshire County Council,FLEET COSTS,04/12/2023,4270,HTM / Other Vehicle - Hire Charges,2201176294,524,West Wallasey Fleet Hire Services
http://statistics.data.gov.uk/id/local-authority/38,Oxfordshire County Council,Property Cleaning,19/12/2023,4070,Cleaning services,2201182041,524.44,Parker Contract Cleaning
http://statistics.data.gov.uk/id/local-authority/38,Oxfordshire County Council,Support at Home 65+ Physical Support,06/12/2023,5699,,3111564057,524.68,Oxfordshire Crossroads
http://statistics.data.gov.uk/id/local-authority/38,Oxfordshire County Council,LIBRARY COLLECTIONS,04/12/2023,4539,"Books, DVDs and CDs",3111561644,524.81,ASKEWS & HOLTS LIBRARY SERVICES LTD
http://statistics.data.gov.uk/id/local-authority/38,Oxfordshire County Council,Oxfordshire Adoption Support Fund,21/12/2023,4861,Hired and Contracted Services,2201183416,525,Connecting Through Play UK Ltd
http://statistics.data.gov.uk/id/local-authority/38,Oxfordshire County Council,SEN TRANSPORT,18/12/2023,4330,Transport to School Activities,3111574191,525,The Oxfordshire Taxi Company Ltd T/
http://statistics.data.gov.uk/id/local-authority/38,Oxfordshire County Council,MAINSTREAM-SECONDARY,18/12/2023,4330,Transport to School Activities,3111574200,525,The Oxfordshire Taxi Company Ltd T/
http://statistics.data.gov.uk/id/local-authority/38,Oxfordshire County Council,Support at Home U65 Learning Disability,12/12/2023,5690,,3111568089,525.05,The Brandon Trust
http://statistics.data.gov.uk/id/local-authority/38,Oxfordshire County Council,Support at Home U65 Learning Disability,19/12/2023,5899,Social Care - Direct Payments,3111575042,525.4,Redacted Personal Data
http://statistics.data.gov.uk/id/local-authority/38,Oxfordshire County Council,Corporate Digital Post,13/12/2023,5091,Postage and Delivery,2201179925,525.52,ROYAL MAIL GROUP LTD
http://statistics.data.gov.uk/id/local-authority/38,Oxfordshire County Council,2 YEAR OLD FUNDING,14/12/2023,5537,Payments to Other Establishments,3111573421,526.72,Ascott-under-Wychwood Pre-School
http://statistics.data.gov.uk/id/local-authority/38,Oxfordshire County Council,FLEET COSTS,04/12/2023,4270,HTM / Other Vehicle - Hire Charges,2201176273,526.75,West Wallasey Fleet Hire Services
http://statistics.data.gov.uk/id/local-authority/38,Oxfordshire County Council,Support at Home 65+ Physical Support,06/12/2023,5696,,3111563063,526.8,All Care GB Ltd
http://statistics.data.gov.uk/id/local-authority/38,Oxfordshire County Council,Support at Home 65+ Physical Support,06/12/2023,5696,,3111563138,526.8,Radis Community Care
http://statistics.data.gov.uk/id/local-authority/38,Oxfordshire County Council,Support at Home 65+ Physical Support,06/12/2023,5689,,3111564750,526.93,Oasis Private Care Ltd
http://statistics.data.gov.uk/id/local-authority/38,Oxfordshire County Council,Support at Home U65 Learning Disability,12/12/2023,5690,,3111568552,527.33,MacIntyre Care (Womaston)
http://statistics.data.gov.uk/id/local-authority/38,Oxfordshire County Council,BULLINGDON PRISON,15/12/2023,4539,"Books, DVDs and CDs",2201181094,527.52,ASKEWS & HOLTS LIBRARY SERVICES LTD
http://statistics.data.gov.uk/id/local-authority/38,Oxfordshire County Council,Support at Home 65+ Physical Support,19/12/2023,5899,Social Care - Direct Payments,3111576051,527.56,Purple Conversation Com In Co (DP)
http://statistics.data.gov.uk/id/local-authority/38,Oxfordshire County Council,POST18 UASC DCSF FND,12/12/2023,5227,Other Transport Arrangements,3111568158,527.72,Redacted Personal Data
http://statistics.data.gov.uk/id/local-authority/38,Oxfordshire County Council,Support at Home U65 Learning Disability,19/12/2023,5227,Other Transport Arrangements,3111576780,528,Vine Community Services Ltd T/A
http://statistics.data.gov.uk/id/local-authority/38,Oxfordshire County Council,Support at Home U65 Learning Disability,22/12/2023,5227,Other Transport Arrangements,3111578272,528,Vine Community Services Ltd T/A
http://statistics.data.gov.uk/id/local-authority/38,Oxfordshire County Council,Support at Home 65+ Physical Support,12/12/2023,5690,,3111567885,528.11,ADVANCE HOUSING & SUPPORT LTD
http://statistics.data.gov.uk/id/local-authority/38,Oxfordshire County Council,Support at Home 65+ Learning Disability,12/12/2023,5690,,3111568069,528.11,Style Acre
http://statistics.data.gov.uk/id/local-authority/38,Oxfordshire County Council,FLEET MAINTENANCE,18/12/2023,4220,Vehicle Workshop Spares and Consumables,2201181848,528.76,Rygor Ltd
http://statistics.data.gov.uk/id/local-authority/38,Oxfordshire County Council,Support at Home U65 Memory & Cognition,19/12/2023,5899,Social Care - Direct Payments,3111576163,529,Purple Conversation Com In Co (DP)
http://statistics.data.gov.uk/id/local-authority/38,Oxfordshire County Council,Support at Home U65 Mental Health,08/12/2023,5693,,3111565733,529.12,Henley Care Ltd
http://statistics.data.gov.uk/id/local-authority/38,Oxfordshire County Council,FLEET COSTS,04/12/2023,4270,HTM / Other Vehicle - Hire Charges,2201176289,530,West Wallasey Fleet Hire Services
http://statistics.data.gov.uk/id/local-authority/38,Oxfordshire County Council,SEN TRANSPORT,28/12/2023,4320,Pupil / Client Travel Reimbursement,3111579051,530.64,Redacted Personal Data
http://statistics.data.gov.uk/id/local-authority/38,Oxfordshire County Council,SEN TRANSPORT,28/12/2023,4320,Pupil / Client Travel Reimbursement,3111579108,530.64,Redacted Personal Data
http://statistics.data.gov.uk/id/local-authority/38,Oxfordshire County Council,SEN TRANSPORT,29/12/2023,4320,Pupil / Client Travel Reimbursement,3111579315,530.64,Redacted Personal Data
http://statistics.data.gov.uk/id/local-authority/38,Oxfordshire County Council,SEN TRANSPORT,28/12/2023,4320,Pupil / Client Travel Reimbursement,3111579053,530.64,Redacted Personal Data
http://statistics.data.gov.uk/id/local-authority/38,Oxfordshire County Council,Support at Home U65 Learning Disability,12/12/2023,5690,,3111568488,530.98,The Laurels (Witney)
http://statistics.data.gov.uk/id/local-authority/38,Oxfordshire County Council,Support at Home U65 Other /Soc Isolation,19/12/2023,5899,Social Care - Direct Payments,3111576260,531.28,Purple Conversation Com In Co (DP)
http://statistics.data.gov.uk/id/local-authority/38,Oxfordshire County Council,FOSTERING MAIN,19/12/2023,5532,B*Fostering - Loan Equipment,3111575294,531.44,Redacted Personal Data
http://statistics.data.gov.uk/id/local-authority/38,Oxfordshire County Council,Support at Home U65 Learning Disability,19/12/2023,5899,Social Care - Direct Payments,3111574432,531.48,Redacted Personal Data
http://statistics.data.gov.uk/id/local-authority/38,Oxfordshire County Council,Support at Home U65 Physical Support,19/12/2023,5899,Social Care - Direct Payments,3111575850,531.52,Purple Conversation Com In Co (DP)
http://statistics.data.gov.uk/id/local-authority/38,Oxfordshire County Council,Support at Home U65 Learning Disability,05/12/2023,5682,,3111562179,531.84,The Brandon Trust
http://statistics.data.gov.uk/id/local-authority/38,Oxfordshire County Council,Support at Home U65 Learning Disability,12/12/2023,5690,,3111568954,532.31,Style Acre
http://statistics.data.gov.uk/id/local-authority/38,Oxfordshire County Council,Sanitary Bin Contract,18/12/2023,4940,Other Services,2201181505,532.37,PHS Group Limited
http://statistics.data.gov.uk/id/local-authority/38,Oxfordshire County Council,Community Support Service Bicester,07/12/2023,2040,Agency Staff,2201177835,532.8,Completely Care Ltd
http://statistics.data.gov.uk/id/local-authority/38,Oxfordshire County Council,UASC 16&17,08/12/2023,5415,Residential Activities,9300062167,533.2,OCC SS Oxford City Div 1 Cash
http://statistics.data.gov.uk/id/local-authority/38,Oxfordshire County Council,FOSTERING MAIN,12/12/2023,5548,B*Fostering - Special Rates & Plus Amou,3111568100,533.98,Redacted Personal Data
http://statistics.data.gov.uk/id/local-authority/38,Oxfordshire County Council,SEN TRANSPORT,27/12/2023,4320,Pupil / Client Travel Reimbursement,3111578640,534.18,Redacted Personal Data
http://statistics.data.gov.uk/id/local-authority/38,Oxfordshire County Council,NURSERY ED FUND,14/12/2023,5537,Payments to Other Establishments,3111573448,534.45,Bubbles Pre School
http://statistics.data.gov.uk/id/local-authority/38,Oxfordshire County Council,NURSERY ED FUND,14/12/2023,5537,Payments to Other Establishments,3111573365,534.45,Cropredy Pre-School
http://statistics.data.gov.uk/id/local-authority/38,Oxfordshire County Council,NURSERY ED FUND,14/12/2023,5537,Payments to Other Establishments,3111573563,534.45,Dashwood Banbury Academy
http://statistics.data.gov.uk/id/local-authority/38,Oxfordshire County Council,NURSERY ED FUND,14/12/2023,5537,Payments to Other Establishments,3111573752,534.45,Glory Farm Primary School
http://statistics.data.gov.uk/id/local-authority/38,Oxfordshire County Council,NURSERY ED FUND,14/12/2023,5537,Payments to Other Establishments,3111573236,534.45,Harriers Banbury Academy
http://statistics.data.gov.uk/id/local-authority/38,Oxfordshire County Council,NURSERY ED FUND,14/12/2023,5537,Payments to Other Establishments,3111573689,534.45,Hill View Primary School
http://statistics.data.gov.uk/id/local-authority/38,Oxfordshire County Council,NURSERY ED FUND,14/12/2023,5537,Payments to Other Establishments,3111573692,534.45,Hill View Primary School
http://statistics.data.gov.uk/id/local-authority/38,Oxfordshire County Council,NURSERY ED FUND,14/12/2023,5537,Payments to Other Establishments,3111573693,534.45,Hill View Primary School
http://statistics.data.gov.uk/id/local-authority/38,Oxfordshire County Council,NURSERY ED FUND,14/12/2023,5537,Payments to Other Establishments,3111573579,534.45,Ladygrove Park Primary School
http://statistics.data.gov.uk/id/local-authority/38,Oxfordshire County Council,NURSERY ED FUND,14/12/2023,5537,Payments to Other Establishments,3111573580,534.45,Ladygrove Park Primary School
http://statistics.data.gov.uk/id/local-authority/38,Oxfordshire County Council,NURSERY ED FUND,14/12/2023,5537,Payments to Other Establishments,3111573268,534.45,New Trinity Pre-School
http://statistics.data.gov.uk/id/local-authority/38,Oxfordshire County Council,NURSERY ED FUND,14/12/2023,5537,Payments to Other Establishments,3111573886,534.45,People Place and Participation Ltd
http://statistics.data.gov.uk/id/local-authority/38,Oxfordshire County Council,NURSERY ED FUND,14/12/2023,5537,Payments to Other Establishments,3111573805,534.45,Sibford Gower Endowed Primary Schoo
http://statistics.data.gov.uk/id/local-authority/38,Oxfordshire County Council,NURSERY ED FUND,14/12/2023,5537,Payments to Other Establishments,3111573229,534.45,Small World Nursery and
http://statistics.data.gov.uk/id/local-authority/38,Oxfordshire County Council,NURSERY ED FUND,14/12/2023,5537,Payments to Other Establishments,3111573808,534.45,Windrush Church of England Primary
http://statistics.data.gov.uk/id/local-authority/38,Oxfordshire County Council,Corporate Grounds Maintenance,28/12/2023,3821,Grounds Maintenance Contracts,2201183992,535,Climbers Way Tree Care Ltd.
http://statistics.data.gov.uk/id/local-authority/38,Oxfordshire County Council,Care Homes - Over 65 Physical Sypport,12/12/2023,5686,,3111572024,535.06,HESTIA CARE LTD T/A WESSEX LODGE
http://statistics.data.gov.uk/id/local-authority/38,Oxfordshire County Council,Support at Home U65 Learning Disability,05/12/2023,5682,,3111562073,535.52,The Brandon Trust
http://statistics.data.gov.uk/id/local-authority/38,Oxfordshire County Council,Support at Home U65 Learning Disability,06/12/2023,5689,,3111564657,535.63,Greigcare Home Service
http://statistics.data.gov.uk/id/local-authority/38,Oxfordshire County Council,Support at Home 65+ Physical Support,06/12/2023,5699,,3111563440,535.67,Bridges Home Care Ltd
http://statistics.data.gov.uk/id/local-authority/38,Oxfordshire County Council,Support at Home 65+ Memory & Cognition,06/12/2023,5699,,3111564333,535.67,YOD Ltd
http://statistics.data.gov.uk/id/local-authority/38,Oxfordshire County Council,UTILITIES,13/12/2023,3950,Non System - Gas,2201180185,536.78,Total Gas & Power Ltd
http://statistics.data.gov.uk/id/local-authority/38,Oxfordshire County Council,ON ST PARK OXFD SPA,21/12/2023,4861,Hired and Contracted Services,2201183501,537,Automobile Association Limited
http://statistics.data.gov.uk/id/local-authority/38,Oxfordshire County Council,Reactive Maintenance,15/12/2023,4531,Materials,2201181068,537,CEF
http://statistics.data.gov.uk/id/local-authority/38,Oxfordshire County Council,Business Rates and Insurance Payout,29/12/2023,4001,Uniform Business Rates,3500102283,537,South Oxfordshire District Council
http://statistics.data.gov.uk/id/local-authority/38,Oxfordshire County Council,REAL COST ALLOWANCES,05/12/2023,5662,B*Christmas Allowance,3111562427,537.43,Redacted Personal Data
http://statistics.data.gov.uk/id/local-authority/38,Oxfordshire County Council,Support at Home U65 MH OBC Contract,19/12/2023,5899,Social Care - Direct Payments,3111574407,537.56,Redacted Personal Data
http://statistics.data.gov.uk/id/local-authority/38,Oxfordshire County Council,"CITY, SOUTH & VALE",19/12/2023,4685,Clothing and Uniforms,2201182501,537.6,Arco Wessex
http://statistics.data.gov.uk/id/local-authority/38,Oxfordshire County Council,UASC 16&17,19/12/2023,5365,Non-Staff Subsistence and Expenses,9300062274,537.6,OCC SS Oxford City Div 1 Cash
http://statistics.data.gov.uk/id/local-authority/38,Oxfordshire County Council,ECH Central Costs,12/12/2023,5696,,3111567115,537.63,BPHA Limited
http://statistics.data.gov.uk/id/local-authority/38,Oxfordshire County Council,CLOSED LANDFILL,22/12/2023,4861,Hired and Contracted Services,2201183740,537.69,FCC Environment (UK) Ltd
http://statistics.data.gov.uk/id/local-authority/38,Oxfordshire County Council,Support at Home 65+ Physical Support,06/12/2023,5696,,3111563028,537.78,All Care GB Ltd
http://statistics.data.gov.uk/id/local-authority/38,Oxfordshire County Council,Support at Home 65+ Learning Disability,11/12/2023,5696,,3111566000,538.34,Orders of St John Care Trust
http://statistics.data.gov.uk/id/local-authority/38,Oxfordshire County Council,Support at Home U65 Physical Support,11/12/2023,5696,,3111566009,538.34,Orders of St John Care Trust
http://statistics.data.gov.uk/id/local-authority/38,Oxfordshire County Council,Support at Home 65+ Physical Support,11/12/2023,5696,,3111566021,538.34,Orders of St John Care Trust
http://statistics.data.gov.uk/id/local-authority/38,Oxfordshire County Council,Support at Home U65 Mental Health,06/12/2023,5699,,3111564211,538.41,Same Ways Care Ltd
http://statistics.data.gov.uk/id/local-authority/38,Oxfordshire County Council,SEN Inclusion Fund,14/12/2023,5537,Payments to Other Establishments,3111573797,539,Barton Park Primary School
http://statistics.data.gov.uk/id/local-authority/38,Oxfordshire County Council,SEN Inclusion Fund,14/12/2023,5537,Payments to Other Establishments,3111573602,539,Eynsham Community
http://statistics.data.gov.uk/id/local-authority/38,Oxfordshire County Council,SEN Inclusion Fund,14/12/2023,5537,Payments to Other Establishments,3111573605,539,Eynsham Community
http://statistics.data.gov.uk/id/local-authority/38,Oxfordshire County Council,SEN Inclusion Fund,14/12/2023,5537,Payments to Other Establishments,3111573608,539,Eynsham Community
http://statistics.data.gov.uk/id/local-authority/38,Oxfordshire County Council,SEN Inclusion Fund,14/12/2023,5537,Payments to Other Establishments,3111573609,539,Eynsham Community
http://statistics.data.gov.uk/id/local-authority/38,Oxfordshire County Council,SEN Inclusion Fund,14/12/2023,5537,Payments to Other Establishments,3111573228,539,Freeland Pre-School (PFSU)
http://statistics.data.gov.uk/id/local-authority/38,Oxfordshire County Council,SEN Inclusion Fund,14/12/2023,5537,Payments to Other Establishments,3111573702,539,Gagle Brook Primary School
http://statistics.data.gov.uk/id/local-authority/38,Oxfordshire County Council,SEN Inclusion Fund,14/12/2023,5537,Payments to Other Establishments,3111573704,539,Gagle Brook Primary School
http://statistics.data.gov.uk/id/local-authority/38,Oxfordshire County Council,SEN Inclusion Fund,14/12/2023,5537,Payments to Other Establishments,3111573770,539,GEMS Wantage Primary Academy
http://statistics.data.gov.uk/id/local-authority/38,Oxfordshire County Council,SEN Inclusion Fund,14/12/2023,5537,Payments to Other Establishments,3111573427,539,Ladybird Pre-School Limited
http://statistics.data.gov.uk/id/local-authority/38,Oxfordshire County Council,SEN Inclusion Fund,14/12/2023,5537,Payments to Other Establishments,3111573660,539,Longford Park Primary School
http://statistics.data.gov.uk/id/local-authority/38,Oxfordshire County Council,SEN Inclusion Fund,14/12/2023,5537,Payments to Other Establishments,3111573690,539,Longford Park Primary School
http://statistics.data.gov.uk/id/local-authority/38,Oxfordshire County Council,SEN Inclusion Fund,14/12/2023,5537,Payments to Other Establishments,3111573259,539,New Trinity Pre-School
http://statistics.data.gov.uk/id/local-authority/38,Oxfordshire County Council,SEN Inclusion Fund,14/12/2023,5537,Payments to Other Establishments,3111573585,539,Orchard Meadow Primary School
http://statistics.data.gov.uk/id/local-authority/38,Oxfordshire County Council,SEN Inclusion Fund,14/12/2023,5537,Payments to Other Establishments,3111573328,539,Paddocks Pre-School
http://statistics.data.gov.uk/id/local-authority/38,Oxfordshire County Council,SEN Inclusion Fund,14/12/2023,5537,Payments to Other Establishments,3111573523,539,PUDDLEDUCK NURSERY
http://statistics.data.gov.uk/id/local-authority/38,Oxfordshire County Council,SEN Inclusion Fund,14/12/2023,5537,Payments to Other Establishments,3111573848,539,RAFA Kidz Brize Norton
http://statistics.data.gov.uk/id/local-authority/38,Oxfordshire County Council,SEN Inclusion Fund,14/12/2023,5537,Payments to Other Establishments,3111573849,539,RAFA Kidz Brize Norton
http://statistics.data.gov.uk/id/local-authority/38,Oxfordshire County Council,SEN Inclusion Fund,14/12/2023,5537,Payments to Other Establishments,3111573851,539,RAFA Kidz Brize Norton
http://statistics.data.gov.uk/id/local-authority/38,Oxfordshire County Council,SEN Inclusion Fund,14/12/2023,5537,Payments to Other Establishments,3111573852,539,RAFA Kidz Brize Norton
http://statistics.data.gov.uk/id/local-authority/38,Oxfordshire County Council,SEN Inclusion Fund,14/12/2023,5537,Payments to Other Establishments,3111573853,539,RAFA Kidz Brize Norton
http://statistics.data.gov.uk/id/local-authority/38,Oxfordshire County Council,SEN Inclusion Fund,14/12/2023,5537,Payments to Other Establishments,3111573551,539,Rainbows Day Nursery
http://statistics.data.gov.uk/id/local-authority/38,Oxfordshire County Council,SEN Inclusion Fund,14/12/2023,5537,Payments to Other Establishments,3111573552,539,Rainbows Day Nursery
http://statistics.data.gov.uk/id/local-authority/38,Oxfordshire County Council,SEN Inclusion Fund,14/12/2023,5537,Payments to Other Establishments,3111573601,539,St Christophers Primary School -
http://statistics.data.gov.uk/id/local-authority/38,Oxfordshire County Council,SEN Inclusion Fund,14/12/2023,5537,Payments to Other Establishments,3111573611,539,St Christophers Primary School -
http://statistics.data.gov.uk/id/local-authority/38,Oxfordshire County Council,SEN Inclusion Fund,14/12/2023,5537,Payments to Other Establishments,3111573613,539,St Christophers Primary School -
http://statistics.data.gov.uk/id/local-authority/38,Oxfordshire County Council,SEN Inclusion Fund,14/12/2023,5537,Payments to Other Establishments,3111573629,539,St Josephs Catholic Primary School
http://statistics.data.gov.uk/id/local-authority/38,Oxfordshire County Council,SEN Inclusion Fund,14/12/2023,5537,Payments to Other Establishments,3111573854,539,The Elms Primary School
http://statistics.data.gov.uk/id/local-authority/38,Oxfordshire County Council,SEN Inclusion Fund,14/12/2023,5537,Payments to Other Establishments,3111573395,539,Tiddlywinks Pre-School
http://statistics.data.gov.uk/id/local-authority/38,Oxfordshire County Council,SEN Inclusion Fund,14/12/2023,5537,Payments to Other Establishments,3111573774,539,Witney Community Primary Nursery
http://statistics.data.gov.uk/id/local-authority/38,Oxfordshire County Council,SEN Inclusion Fund,14/12/2023,5537,Payments to Other Establishments,3111573639,539,Wolvercote Primary School
http://statistics.data.gov.uk/id/local-authority/38,Oxfordshire County Council,SEN Inclusion Fund,14/12/2023,5537,Payments to Other Establishments,3111573657,539,Wolvercote Primary School
http://statistics.data.gov.uk/id/local-authority/38,Oxfordshire County Council,,14/12/2023,1531,Cash Allocation Control Account,3111572860,540,Intelligent Data (Collection) Ltd
http://statistics.data.gov.uk/id/local-authority/38,Oxfordshire County Council,Bikeability cost,05/12/2023,3103,Other Training Courses and Qualification,2201176415,540,Outspoken Training LLP
http://statistics.data.gov.uk/id/local-authority/38,Oxfordshire County Council,Support at Home 65+ Physical Support,06/12/2023,5227,Other Transport Arrangements,3111565213,540,St. Priestley Ltd
http://statistics.data.gov.uk/id/local-authority/38,Oxfordshire County Council,Bikeability cost,08/12/2023,3103,Other Training Courses and Qualification,2201178055,540,Windrush Bike Project CIC
http://statistics.data.gov.uk/id/local-authority/38,Oxfordshire County Council,Support at Home U65 Learning Disability,12/12/2023,5690,,3111568802,540.29,Style Acre
http://statistics.data.gov.uk/id/local-authority/38,Oxfordshire County Council,SHARED LIVES,12/12/2023,5555,Payments to Carers,3111568599,541,Redacted Personal Data
http://statistics.data.gov.uk/id/local-authority/38,Oxfordshire County Council,Support at Home U65 HFA,19/12/2023,5899,Social Care - Direct Payments,3111575504,541.52,Redacted Personal Data
http://statistics.data.gov.uk/id/local-authority/38,Oxfordshire County Council,FOSTERING MAIN,12/12/2023,5549,B*Fostering Allowance - Regulation 38,3111567520,542,Redacted Personal Data
http://statistics.data.gov.uk/id/local-authority/38,Oxfordshire County Council,FOSTERING MAIN,19/12/2023,5549,B*Fostering Allowance - Regulation 38,3111574967,542,Redacted Personal Data
http://statistics.data.gov.uk/id/local-authority/38,Oxfordshire County Council,FOSTERING MAIN,19/12/2023,5549,B*Fostering Allowance - Regulation 38,3111576985,542,Redacted Personal Data
http://statistics.data.gov.uk/id/local-authority/38,Oxfordshire County Council,FOSTERING MAIN,19/12/2023,5549,B*Fostering Allowance - Regulation 38,3111574929,542,Redacted Personal Data
http://statistics.data.gov.uk/id/local-authority/38,Oxfordshire County Council,FOSTERING MAIN,19/12/2023,5549,B*Fostering Allowance - Regulation 38,3111576959,542,Redacted Personal Data
http://statistics.data.gov.uk/id/local-authority/38,Oxfordshire County Council,FOSTERING MAIN,05/12/2023,5549,B*Fostering Allowance - Regulation 38,3111561833,542,Redacted Personal Data
http://statistics.data.gov.uk/id/local-authority/38,Oxfordshire County Council,FOSTERING MAIN,12/12/2023,5549,B*Fostering Allowance - Regulation 38,3111567523,542,Redacted Personal Data
http://statistics.data.gov.uk/id/local-authority/38,Oxfordshire County Council,FOSTERING MAIN,19/12/2023,5549,B*Fostering Allowance - Regulation 38,3111574970,542,Redacted Personal Data
http://statistics.data.gov.uk/id/local-authority/38,Oxfordshire County Council,FOSTERING MAIN,05/12/2023,5549,B*Fostering Allowance - Regulation 38,3111561837,542,Redacted Personal Data
http://statistics.data.gov.uk/id/local-authority/38,Oxfordshire County Council,FOSTERING MAIN,12/12/2023,5549,B*Fostering Allowance - Regulation 38,3111567532,542,Redacted Personal Data
http://statistics.data.gov.uk/id/local-authority/38,Oxfordshire County Council,FOSTERING MAIN,19/12/2023,5549,B*Fostering Allowance - Regulation 38,3111574982,542,Redacted Personal Data
http://statistics.data.gov.uk/id/local-authority/38,Oxfordshire County Council,FOSTERING MAIN,19/12/2023,5549,B*Fostering Allowance - Regulation 38,3111576993,542,Redacted Personal Data
http://statistics.data.gov.uk/id/local-authority/38,Oxfordshire County Council,FOSTERING MAIN,12/12/2023,5569,,3111567610,542,Redacted Personal Data
http://statistics.data.gov.uk/id/local-authority/38,Oxfordshire County Council,FOSTERING MAIN,19/12/2023,5569,,3111577051,542,Redacted Personal Data
http://statistics.data.gov.uk/id/local-authority/38,Oxfordshire County Council,AGENCY RESID - DISAB,05/12/2023,5549,B*Fostering Allowance - Regulation 38,3111562056,542,Redacted Personal Data
http://statistics.data.gov.uk/id/local-authority/38,Oxfordshire County Council,AGENCY RESID - DISAB,12/12/2023,5549,B*Fostering Allowance - Regulation 38,3111567904,542,Redacted Personal Data
http://statistics.data.gov.uk/id/local-authority/38,Oxfordshire County Council,AGENCY RESID - DISAB,19/12/2023,5549,B*Fostering Allowance - Regulation 38,3111575286,542,Redacted Personal Data
http://statistics.data.gov.uk/id/local-authority/38,Oxfordshire County Council,AGENCY RESID - DISAB,19/12/2023,5549,B*Fostering Allowance - Regulation 38,3111577238,542,Redacted Personal Data
http://statistics.data.gov.uk/id/local-authority/38,Oxfordshire County Council,FOSTERING MAIN,05/12/2023,5549,B*Fostering Allowance - Regulation 38,3111562047,542,Redacted Personal Data
http://statistics.data.gov.uk/id/local-authority/38,Oxfordshire County Council,FOSTERING MAIN,12/12/2023,5549,B*Fostering Allowance - Regulation 38,3111567895,542,Redacted Personal Data
http://statistics.data.gov.uk/id/local-authority/38,Oxfordshire County Council,FOSTERING MAIN,19/12/2023,5549,B*Fostering Allowance - Regulation 38,3111575280,542,Redacted Personal Data
http://statistics.data.gov.uk/id/local-authority/38,Oxfordshire County Council,FOSTERING MAIN,19/12/2023,5549,B*Fostering Allowance - Regulation 38,3111577231,542,Redacted Personal Data
http://statistics.data.gov.uk/id/local-authority/38,Oxfordshire County Council,FOSTERING MAIN,05/12/2023,5549,B*Fostering Allowance - Regulation 38,3111562175,542,Redacted Personal Data
http://statistics.data.gov.uk/id/local-authority/38,Oxfordshire County Council,FOSTERING MAIN,12/12/2023,5549,B*Fostering Allowance - Regulation 38,3111568052,542,Redacted Personal Data
http://statistics.data.gov.uk/id/local-authority/38,Oxfordshire County Council,FOSTERING MAIN,19/12/2023,5549,B*Fostering Allowance - Regulation 38,3111575372,542,Redacted Personal Data
http://statistics.data.gov.uk/id/local-authority/38,Oxfordshire County Council,FOSTERING MAIN,19/12/2023,5549,B*Fostering Allowance - Regulation 38,3111577337,542,Redacted Personal Data
http://statistics.data.gov.uk/id/local-authority/38,Oxfordshire County Council,FOSTERING MAIN,05/12/2023,5549,B*Fostering Allowance - Regulation 38,3111562232,542,Redacted Personal Data
http://statistics.data.gov.uk/id/local-authority/38,Oxfordshire County Council,FOSTERING MAIN,12/12/2023,5549,B*Fostering Allowance - Regulation 38,3111568122,542,Redacted Personal Data
http://statistics.data.gov.uk/id/local-authority/38,Oxfordshire County Council,FOSTERING MAIN,19/12/2023,5549,B*Fostering Allowance - Regulation 38,3111575405,542,Redacted Personal Data
http://statistics.data.gov.uk/id/local-authority/38,Oxfordshire County Council,FOSTERING MAIN,19/12/2023,5549,B*Fostering Allowance - Regulation 38,3111577378,542,Redacted Personal Data
http://statistics.data.gov.uk/id/local-authority/38,Oxfordshire County Council,FOSTERING MAIN,05/12/2023,5549,B*Fostering Allowance - Regulation 38,3111562475,542,Redacted Personal Data
http://statistics.data.gov.uk/id/local-authority/38,Oxfordshire County Council,FOSTERING MAIN,12/12/2023,5549,B*Fostering Allowance - Regulation 38,3111568619,542,Redacted Personal Data
http://statistics.data.gov.uk/id/local-authority/38,Oxfordshire County Council,FOSTERING MAIN,19/12/2023,5549,B*Fostering Allowance - Regulation 38,3111575641,542,Redacted Personal Data
http://statistics.data.gov.uk/id/local-authority/38,Oxfordshire County Council,FOSTERING MAIN,19/12/2023,5549,B*Fostering Allowance - Regulation 38,3111577532,542,Redacted Personal Data
http://statistics.data.gov.uk/id/local-authority/38,Oxfordshire County Council,FOSTERING MAIN,05/12/2023,5549,B*Fostering Allowance - Regulation 38,3111561874,542,Redacted Personal Data
http://statistics.data.gov.uk/id/local-authority/38,Oxfordshire County Council,FOSTERING MAIN,12/12/2023,5549,B*Fostering Allowance - Regulation 38,3111567632,542,Redacted Personal Data
http://statistics.data.gov.uk/id/local-authority/38,Oxfordshire County Council,FOSTERING MAIN,19/12/2023,5549,B*Fostering Allowance - Regulation 38,3111575071,542,Redacted Personal Data
http://statistics.data.gov.uk/id/local-authority/38,Oxfordshire County Council,FOSTERING MAIN,19/12/2023,5549,B*Fostering Allowance - Regulation 38,3111577060,542,Redacted Personal Data
http://statistics.data.gov.uk/id/local-authority/38,Oxfordshire County Council,FOSTERING MAIN,05/12/2023,5549,B*Fostering Allowance - Regulation 38,3111562389,542,Redacted Personal Data
http://statistics.data.gov.uk/id/local-authority/38,Oxfordshire County Council,FOSTERING MAIN,12/12/2023,5549,B*Fostering Allowance - Regulation 38,3111568452,542,Redacted Personal Data
http://statistics.data.gov.uk/id/local-authority/38,Oxfordshire County Council,FOSTERING MAIN,19/12/2023,5549,B*Fostering Allowance - Regulation 38,3111575551,542,Redacted Personal Data
http://statistics.data.gov.uk/id/local-authority/38,Oxfordshire County Council,FOSTERING MAIN,19/12/2023,5549,B*Fostering Allowance - Regulation 38,3111577490,542,Redacted Personal Data
http://statistics.data.gov.uk/id/local-authority/38,Oxfordshire County Council,FOSTERING MAIN,05/12/2023,5549,B*Fostering Allowance - Regulation 38,3111562504,542,Redacted Personal Data
http://statistics.data.gov.uk/id/local-authority/38,Oxfordshire County Council,FOSTERING MAIN,12/12/2023,5549,B*Fostering Allowance - Regulation 38,3111568664,542,Redacted Personal Data
http://statistics.data.gov.uk/id/local-authority/38,Oxfordshire County Council,FOSTERING MAIN,19/12/2023,5549,B*Fostering Allowance - Regulation 38,3111575680,542,Redacted Personal Data
http://statistics.data.gov.uk/id/local-authority/38,Oxfordshire County Council,FOSTERING MAIN,19/12/2023,5549,B*Fostering Allowance - Regulation 38,3111577545,542,Redacted Personal Data
http://statistics.data.gov.uk/id/local-authority/38,Oxfordshire County Council,Support at Home U65 Learning Disability,27/12/2023,5899,Social Care - Direct Payments,3111578618,542.13,Redacted Personal Data
http://statistics.data.gov.uk/id/local-authority/38,Oxfordshire County Council,FLEET MAINTENANCE,22/12/2023,4220,Vehicle Workshop Spares and Consumables,2201183693,542.31,VOLVO GROUP UK LTD
http://statistics.data.gov.uk/id/local-authority/38,Oxfordshire County Council,FOSTERING MAIN,19/12/2023,5227,Other Transport Arrangements,3111575417,542.54,Redacted Personal Data
http://statistics.data.gov.uk/id/local-authority/38,Oxfordshire County Council,LAC PUPIL PREMIUM,18/12/2023,5537,Payments to Other Establishments,3111573976,543,The Propeller Academy Trust
http://statistics.data.gov.uk/id/local-authority/38,Oxfordshire County Council,POST18 UASC DCSF FND,20/12/2023,4540,"Educational Supplies, Stationery & Mater",3111577900,544,Redacted Personal Data
http://statistics.data.gov.uk/id/local-authority/38,Oxfordshire County Council,Support at Home 65+ Physical Support,05/12/2023,5227,Other Transport Arrangements,3111562674,544,LINK SHIRES LTD
http://statistics.data.gov.uk/id/local-authority/38,Oxfordshire County Council,Support at Home U65 MH OBC Contract,19/12/2023,5899,Social Care - Direct Payments,3111576120,544.32,Purple Conversation Com In Co (DP)
http://statistics.data.gov.uk/id/local-authority/38,Oxfordshire County Council,TRANSPORT COSTS,07/12/2023,4330,Transport to School Activities,3111565615,545,Unitaxi Ltd
http://statistics.data.gov.uk/id/local-authority/38,Oxfordshire County Council,SEN TRANSPORT,28/12/2023,4320,Pupil / Client Travel Reimbursement,3111579246,545.38,Redacted Personal Data
http://statistics.data.gov.uk/id/local-authority/38,Oxfordshire County Council,CLOSED LANDFILL,22/12/2023,4861,Hired and Contracted Services,2201183738,545.7,FCC Environment (UK) Ltd
http://statistics.data.gov.uk/id/local-authority/38,Oxfordshire County Council,Planned Maintenance,19/12/2023,3787,Premises Repairs,2201182020,546,Oxford Fire and Security services L
http://statistics.data.gov.uk/id/local-authority/38,Oxfordshire County Council,FOSTERING MAIN,05/12/2023,5227,Other Transport Arrangements,3111562145,546.47,Redacted Personal Data
http://statistics.data.gov.uk/id/local-authority/38,Oxfordshire County Council,NURSERY ED FUND,14/12/2023,5537,Payments to Other Establishments,3111573684,546.48,The Old Station Nursery Heyford Par
http://statistics.data.gov.uk/id/local-authority/38,Oxfordshire County Council,Support at Home U65 Learning Disability,06/12/2023,5693,,3111564932,547.25,Autism at Kingwood Limited
http://statistics.data.gov.uk/id/local-authority/38,Oxfordshire County Council,Support at Home U65 HFA,12/12/2023,5690,,3111567909,547.37,Autism at Kingwood Limited
http://statistics.data.gov.uk/id/local-authority/38,Oxfordshire County Council,Support at Home 65+ Mental Health,06/12/2023,5696,,3111563008,548.75,All Care GB Ltd
http://statistics.data.gov.uk/id/local-authority/38,Oxfordshire County Council,FAM GRP CONFERENCES,11/12/2023,4940,Other Services,2201178786,549,Emma Wood
http://statistics.data.gov.uk/id/local-authority/38,Oxfordshire County Council,Support at Home 65+ Memory & Cognition,19/12/2023,5899,Social Care - Direct Payments,3111575684,549.36,Redacted Personal Data
http://statistics.data.gov.uk/id/local-authority/38,Oxfordshire County Council,Support at Home U65 MH OBC Contract,06/12/2023,5699,,3111563321,549.4,Adult Transition Services Ltd (ATrS
http://statistics.data.gov.uk/id/local-authority/38,Oxfordshire County Council,FAM GRP CONFERENCES,18/12/2023,4940,Other Services,2201181520,549.4,Andy Robinson
http://statistics.data.gov.uk/id/local-authority/38,Oxfordshire County Council,Support at Home 65+ Memory & Cognition,06/12/2023,5699,,3111563492,549.4,Care Outlook Ltd
http://statistics.data.gov.uk/id/local-authority/38,Oxfordshire County Council,Support at Home U65 Physical Support,06/12/2023,5693,,3111564584,549.4,Direct Link Care Ltd
http://statistics.data.gov.uk/id/local-authority/38,Oxfordshire County Council,Support at Home U65 Memory & Cognition,19/12/2023,5899,Social Care - Direct Payments,3111574646,549.4,Redacted Personal Data
http://statistics.data.gov.uk/id/local-authority/38,Oxfordshire County Council,Support at Home U65 Physical Support,06/12/2023,5699,,3111564148,549.4,Ringstead Healthcare Limited
http://statistics.data.gov.uk/id/local-authority/38,Oxfordshire County Council,Support at Home 65+ Mental Health,01/12/2023,5693,,3111560585,549.4,Star Projections
http://statistics.data.gov.uk/id/local-authority/38,Oxfordshire County Council,Support at Home 65+ Mental Health,01/12/2023,5693,,3111560586,549.4,Star Projections
http://statistics.data.gov.uk/id/local-authority/38,Oxfordshire County Council,Support at Home U65 Other /Soc Isolation,06/12/2023,5699,,3111564213,549.4,SureCare Oxfordshire
http://statistics.data.gov.uk/id/local-authority/38,Oxfordshire County Council,Support at Home 65+ Physical Support,06/12/2023,5699,,3111564272,549.4,Trinity Carers Services Ltd
http://statistics.data.gov.uk/id/local-authority/38,Oxfordshire County Council,Support at Home U65 Learning Disability,27/12/2023,5693,,3111578735,549.4,UNITED RESPONSE
http://statistics.data.gov.uk/id/local-authority/38,Oxfordshire County Council,Support at Home 65+ Memory & Cognition,06/12/2023,5699,,3111564357,549.4,YOD Ltd
http://statistics.data.gov.uk/id/local-authority/38,Oxfordshire County Council,SPECIAL GUARDIANSHIP,19/12/2023,5661,B*Carriageway pre surf. dressing patchin,3111576417,549.45,Redacted Personal Data
http://statistics.data.gov.uk/id/local-authority/38,Oxfordshire County Council,NURSERY ED FUND,14/12/2023,5537,Payments to Other Establishments,3111573450,549.72,Bubbles Pre School
http://statistics.data.gov.uk/id/local-authority/38,Oxfordshire County Council,NURSERY ED FUND,14/12/2023,5537,Payments to Other Establishments,3111573232,549.72,Hunsdon House Nursery Sc
http://statistics.data.gov.uk/id/local-authority/38,Oxfordshire County Council,NURSERY ED FUND,14/12/2023,5537,Payments to Other Establishments,3111573528,549.72,The Oxford Nursery (Summertown)
http://statistics.data.gov.uk/id/local-authority/38,Oxfordshire County Council,NURSERY ED FUND,14/12/2023,5537,Payments to Other Establishments,3111573734,549.9,Tackley COFE Primary School
http://statistics.data.gov.uk/id/local-authority/38,Oxfordshire County Council,Homes for Ukraine - Guests,22/12/2023,5896,Adult Social Care - Other Transfer Pay,3500101996,550,Redacted Personal Data
http://statistics.data.gov.uk/id/local-authority/38,Oxfordshire County Council,Homes for Ukraine - Guests,06/12/2023,5896,Adult Social Care - Other Transfer Pay,3500101661,550,Redacted Personal Data
http://statistics.data.gov.uk/id/local-authority/38,Oxfordshire County Council,,12/12/2023,1433,U/C Misc Payments,3111566716,550,Redacted Personal Data
http://statistics.data.gov.uk/id/local-authority/38,Oxfordshire County Council,Homes for Ukraine - Guests,13/12/2023,5896,Adult Social Care - Other Transfer Pay,3500101837,550,Redacted Personal Data
http://statistics.data.gov.uk/id/local-authority/38,Oxfordshire County Council,Homes for Ukraine - Guests,25/12/2023,5896,Adult Social Care - Other Transfer Pay,3500102032,550,Redacted Personal Data
http://statistics.data.gov.uk/id/local-authority/38,Oxfordshire County Council,Homes for Ukraine - Guests,01/12/2023,5896,Adult Social Care - Other Transfer Pay,3500101571,550,Redacted Personal Data
http://statistics.data.gov.uk/id/local-authority/38,Oxfordshire County Council,Homes for Ukraine - Guests,11/12/2023,5896,Adult Social Care - Other Transfer Pay,3500101773,550,Redacted Personal Data
http://statistics.data.gov.uk/id/local-authority/38,Oxfordshire County Council,Homes for Ukraine - Guests,06/12/2023,5896,Adult Social Care - Other Transfer Pay,3500101668,550,Redacted Personal Data
http://statistics.data.gov.uk/id/local-authority/38,Oxfordshire County Council,Homes for Ukraine - Guests,04/12/2023,5896,Adult Social Care - Other Transfer Pay,3500101601,550,Redacted Personal Data
http://statistics.data.gov.uk/id/local-authority/38,Oxfordshire County Council,Homes for Ukraine - Guests,13/12/2023,5896,Adult Social Care - Other Transfer Pay,3500101819,550,Redacted Personal Data
http://statistics.data.gov.uk/id/local-authority/38,Oxfordshire County Council,Homes for Ukraine - Guests,19/12/2023,5896,Adult Social Care - Other Transfer Pay,3500101905,550,Redacted Personal Data
http://statistics.data.gov.uk/id/local-authority/38,Oxfordshire County Council,Homes for Ukraine - Guests,06/12/2023,5896,Adult Social Care - Other Transfer Pay,3500101649,550,Redacted Personal Data
http://statistics.data.gov.uk/id/local-authority/38,Oxfordshire County Council,Homes for Ukraine - Guests,27/12/2023,5896,Adult Social Care - Other Transfer Pay,3500102096,550,Redacted Personal Data
http://statistics.data.gov.uk/id/local-authority/38,Oxfordshire County Council,Homes for Ukraine - Guests,14/12/2023,5896,Adult Social Care - Other Transfer Pay,3500101843,550,Redacted Personal Data
http://statistics.data.gov.uk/id/local-authority/38,Oxfordshire County Council,Homes for Ukraine - Guests,06/12/2023,5896,Adult Social Care - Other Transfer Pay,3500101665,550,Redacted Personal Data
http://statistics.data.gov.uk/id/local-authority/38,Oxfordshire County Council,Homes for Ukraine - Guests,11/12/2023,5896,Adult Social Care - Other Transfer Pay,3500101771,550,Redacted Personal Data
http://statistics.data.gov.uk/id/local-authority/38,Oxfordshire County Council,Homes for Ukraine - Guests,12/12/2023,5896,Adult Social Care - Other Transfer Pay,3500101782,550,Redacted Personal Data
http://statistics.data.gov.uk/id/local-authority/38,Oxfordshire County Council,Homes for Ukraine - Guests,28/12/2023,5896,Adult Social Care - Other Transfer Pay,3500102104,550,Redacted Personal Data
http://statistics.data.gov.uk/id/local-authority/38,Oxfordshire County Council,Homes for Ukraine - Guests,06/12/2023,5896,Adult Social Care - Other Transfer Pay,3500101650,550,Redacted Personal Data
http://statistics.data.gov.uk/id/local-authority/38,Oxfordshire County Council,Homes for Ukraine - Guests,26/12/2023,5896,Adult Social Care - Other Transfer Pay,3500102052,550,Redacted Personal Data
http://statistics.data.gov.uk/id/local-authority/38,Oxfordshire County Council,Homes for Ukraine - Guests,12/12/2023,5896,Adult Social Care - Other Transfer Pay,3500101799,550,Redacted Personal Data
http://statistics.data.gov.uk/id/local-authority/38,Oxfordshire County Council,Homes for Ukraine - Guests,07/12/2023,5896,Adult Social Care - Other Transfer Pay,3500101680,550,Redacted Personal Data
http://statistics.data.gov.uk/id/local-authority/38,Oxfordshire County Council,Homes for Ukraine - Guests,14/12/2023,5896,Adult Social Care - Other Transfer Pay,3500101856,550,Redacted Personal Data
http://statistics.data.gov.uk/id/local-authority/38,Oxfordshire County Council,Homes for Ukraine - Guests,11/12/2023,5896,Adult Social Care - Other Transfer Pay,3500101772,550,Redacted Personal Data
http://statistics.data.gov.uk/id/local-authority/38,Oxfordshire County Council,Homes for Ukraine - Guests,20/12/2023,5896,Adult Social Care - Other Transfer Pay,3500101942,550,Redacted Personal Data
http://statistics.data.gov.uk/id/local-authority/38,Oxfordshire County Council,Homes for Ukraine - Guests,25/12/2023,5896,Adult Social Care - Other Transfer Pay,3500102016,550,Redacted Personal Data
http://statistics.data.gov.uk/id/local-authority/38,Oxfordshire County Council,Homes for Ukraine - Guests,27/12/2023,5896,Adult Social Care - Other Transfer Pay,3500102095,550,Redacted Personal Data
http://statistics.data.gov.uk/id/local-authority/38,Oxfordshire County Council,Homes for Ukraine - Guests,01/12/2023,5896,Adult Social Care - Other Transfer Pay,3500101567,550,Redacted Personal Data
http://statistics.data.gov.uk/id/local-authority/38,Oxfordshire County Council,Homes for Ukraine - Guests,18/12/2023,5896,Adult Social Care - Other Transfer Pay,3500101874,550,Redacted Personal Data
http://statistics.data.gov.uk/id/local-authority/38,Oxfordshire County Council,Homes for Ukraine - Guests,07/12/2023,5896,Adult Social Care - Other Transfer Pay,3500101688,550,Redacted Personal Data
http://statistics.data.gov.uk/id/local-authority/38,Oxfordshire County Council,Homes for Ukraine - Guests,06/12/2023,5896,Adult Social Care - Other Transfer Pay,3500101655,550,Redacted Personal Data
http://statistics.data.gov.uk/id/local-authority/38,Oxfordshire County Council,Homes for Ukraine - Guests,27/12/2023,5896,Adult Social Care - Other Transfer Pay,3500102093,550,Redacted Personal Data
http://statistics.data.gov.uk/id/local-authority/38,Oxfordshire County Council,Homes for Ukraine - Guests,28/12/2023,5896,Adult Social Care - Other Transfer Pay,3500102123,550,Redacted Personal Data
http://statistics.data.gov.uk/id/local-authority/38,Oxfordshire County Council,Homes for Ukraine - Guests,20/12/2023,5896,Adult Social Care - Other Transfer Pay,3500101969,550,Redacted Personal Data
http://statistics.data.gov.uk/id/local-authority/38,Oxfordshire County Council,Homes for Ukraine - Guests,19/12/2023,5896,Adult Social Care - Other Transfer Pay,3500101886,550,Redacted Personal Data
http://statistics.data.gov.uk/id/local-authority/38,Oxfordshire County Council,Homes for Ukraine - Guests,29/12/2023,5896,Adult Social Care - Other Transfer Pay,3500102306,550,Redacted Personal Data
http://statistics.data.gov.uk/id/local-authority/38,Oxfordshire County Council,Homes for Ukraine - Guests,27/12/2023,5896,Adult Social Care - Other Transfer Pay,3500102092,550,Redacted Personal Data
http://statistics.data.gov.uk/id/local-authority/38,Oxfordshire County Council,Homes for Ukraine - Guests,28/12/2023,5896,Adult Social Care - Other Transfer Pay,3500102101,550,Redacted Personal Data
http://statistics.data.gov.uk/id/local-authority/38,Oxfordshire County Council,Homes for Ukraine - Guests,25/12/2023,5896,Adult Social Care - Other Transfer Pay,3500102022,550,Redacted Personal Data
http://statistics.data.gov.uk/id/local-authority/38,Oxfordshire County Council,Homes for Ukraine - Guests,08/12/2023,5896,Adult Social Care - Other Transfer Pay,3500101712,550,Redacted Personal Data
http://statistics.data.gov.uk/id/local-authority/38,Oxfordshire County Council,Homes for Ukraine - Guests,20/12/2023,5896,Adult Social Care - Other Transfer Pay,3500101958,550,Redacted Personal Data
http://statistics.data.gov.uk/id/local-authority/38,Oxfordshire County Council,Homes for Ukraine - Guests,28/12/2023,5896,Adult Social Care - Other Transfer Pay,3500102125,550,Redacted Personal Data
http://statistics.data.gov.uk/id/local-authority/38,Oxfordshire County Council,Homes for Ukraine - Guests,13/12/2023,5896,Adult Social Care - Other Transfer Pay,3500101822,550,Redacted Personal Data
http://statistics.data.gov.uk/id/local-authority/38,Oxfordshire County Council,Homes for Ukraine - Guests,05/12/2023,5896,Adult Social Care - Other Transfer Pay,3500101616,550,Redacted Personal Data
http://statistics.data.gov.uk/id/local-authority/38,Oxfordshire County Council,Homes for Ukraine - Guests,20/12/2023,5896,Adult Social Care - Other Transfer Pay,3500101948,550,Redacted Personal Data
http://statistics.data.gov.uk/id/local-authority/38,Oxfordshire County Council,Homes for Ukraine - Guests,13/12/2023,5896,Adult Social Care - Other Transfer Pay,3500101818,550,Redacted Personal Data
http://statistics.data.gov.uk/id/local-authority/38,Oxfordshire County Council,Homes for Ukraine - Guests,27/12/2023,5896,Adult Social Care - Other Transfer Pay,3500102074,550,Redacted Personal Data
http://statistics.data.gov.uk/id/local-authority/38,Oxfordshire County Council,Homes for Ukraine - Guests,12/12/2023,5896,Adult Social Care - Other Transfer Pay,3500101809,550,Redacted Personal Data
http://statistics.data.gov.uk/id/local-authority/38,Oxfordshire County Council,Homes for Ukraine - Guests,28/12/2023,5896,Adult Social Care - Other Transfer Pay,3500102100,550,Redacted Personal Data
http://statistics.data.gov.uk/id/local-authority/38,Oxfordshire County Council,Homes for Ukraine - Guests,13/12/2023,5896,Adult Social Care - Other Transfer Pay,3500101816,550,Redacted Personal Data
http://statistics.data.gov.uk/id/local-authority/38,Oxfordshire County Council,Homes for Ukraine - Guests,19/12/2023,5896,Adult Social Care - Other Transfer Pay,3500101894,550,Redacted Personal Data
http://statistics.data.gov.uk/id/local-authority/38,Oxfordshire County Council,Homes for Ukraine - Guests,27/12/2023,5896,Adult Social Care - Other Transfer Pay,3500102094,550,Redacted Personal Data
http://statistics.data.gov.uk/id/local-authority/38,Oxfordshire County Council,Homes for Ukraine - Guests,13/12/2023,5896,Adult Social Care - Other Transfer Pay,3500101835,550,Redacted Personal Data
http://statistics.data.gov.uk/id/local-authority/38,Oxfordshire County Council,Homes for Ukraine - Guests,18/12/2023,5896,Adult Social Care - Other Transfer Pay,3500101880,550,Redacted Personal Data
http://statistics.data.gov.uk/id/local-authority/38,Oxfordshire County Council,LDD AFTER SCHOOL,12/12/2023,5227,Other Transport Arrangements,3111566778,550,Blackstar Chauffeur Ltd T/A Blackst
http://statistics.data.gov.uk/id/local-authority/38,Oxfordshire County Council,Homes for Ukraine - Guests,14/12/2023,5896,Adult Social Care - Other Transfer Pay,3500101851,550,Redacted Personal Data
http://statistics.data.gov.uk/id/local-authority/38,Oxfordshire County Council,Homes for Ukraine - Guests,05/12/2023,5896,Adult Social Care - Other Transfer Pay,3500101610,550,Redacted Personal Data
http://statistics.data.gov.uk/id/local-authority/38,Oxfordshire County Council,Homes for Ukraine - Guests,22/12/2023,5896,Adult Social Care - Other Transfer Pay,3500102000,550,Redacted Personal Data
http://statistics.data.gov.uk/id/local-authority/38,Oxfordshire County Council,Homes for Ukraine - Guests,19/12/2023,5896,Adult Social Care - Other Transfer Pay,3500101903,550,Redacted Personal Data
http://statistics.data.gov.uk/id/local-authority/38,Oxfordshire County Council,Homes for Ukraine - Guests,27/12/2023,5896,Adult Social Care - Other Transfer Pay,3500102082,550,Redacted Personal Data
http://statistics.data.gov.uk/id/local-authority/38,Oxfordshire County Council,Homes for Ukraine - Guests,20/12/2023,5896,Adult Social Care - Other Transfer Pay,3500101945,550,Redacted Personal Data
http://statistics.data.gov.uk/id/local-authority/38,Oxfordshire County Council,Homes for Ukraine - Guests,28/12/2023,5896,Adult Social Care - Other Transfer Pay,3500102111,550,Redacted Personal Data
http://statistics.data.gov.uk/id/local-authority/38,Oxfordshire County Council,Homes for Ukraine - Guests,29/12/2023,5896,Adult Social Care - Other Transfer Pay,3500102313,550,Redacted Personal Data
http://statistics.data.gov.uk/id/local-authority/38,Oxfordshire County Council,Homes for Ukraine - Guests,05/12/2023,5896,Adult Social Care - Other Transfer Pay,3500101609,550,Redacted Personal Data
http://statistics.data.gov.uk/id/local-authority/38,Oxfordshire County Council,Homes for Ukraine - Guests,12/12/2023,5896,Adult Social Care - Other Transfer Pay,3500101801,550,Redacted Personal Data
http://statistics.data.gov.uk/id/local-authority/38,Oxfordshire County Council,LAC PUPIL PREMIUM,18/12/2023,5537,Payments to Other Establishments,3111574013,550,Cavalry Primary School
http://statistics.data.gov.uk/id/local-authority/38,Oxfordshire County Council,Homes for Ukraine - Guests,20/12/2023,5896,Adult Social Care - Other Transfer Pay,3500101944,550,Redacted Personal Data
http://statistics.data.gov.uk/id/local-authority/38,Oxfordshire County Council,Homes for Ukraine - Guests,14/12/2023,5896,Adult Social Care - Other Transfer Pay,3500101853,550,Redacted Personal Data
http://statistics.data.gov.uk/id/local-authority/38,Oxfordshire County Council,Homes for Ukraine - Guests,25/12/2023,5896,Adult Social Care - Other Transfer Pay,3500102035,550,Redacted Personal Data
http://statistics.data.gov.uk/id/local-authority/38,Oxfordshire County Council,Homes for Ukraine - Guests,05/12/2023,5896,Adult Social Care - Other Transfer Pay,3500101621,550,Redacted Personal Data
http://statistics.data.gov.uk/id/local-authority/38,Oxfordshire County Council,Homes for Ukraine - Guests,01/12/2023,5896,Adult Social Care - Other Transfer Pay,3500101576,550,Redacted Personal Data
http://statistics.data.gov.uk/id/local-authority/38,Oxfordshire County Council,Homes for Ukraine - Guests,11/12/2023,5896,Adult Social Care - Other Transfer Pay,3500101774,550,Redacted Personal Data
http://statistics.data.gov.uk/id/local-authority/38,Oxfordshire County Council,Homes for Ukraine - Guests,05/12/2023,5896,Adult Social Care - Other Transfer Pay,3500101628,550,Redacted Personal Data
http://statistics.data.gov.uk/id/local-authority/38,Oxfordshire County Council,Homes for Ukraine - Guests,01/12/2023,5896,Adult Social Care - Other Transfer Pay,3500101575,550,Redacted Personal Data
http://statistics.data.gov.uk/id/local-authority/38,Oxfordshire County Council,Homes for Ukraine - Guests,05/12/2023,5896,Adult Social Care - Other Transfer Pay,3500101612,550,Redacted Personal Data
http://statistics.data.gov.uk/id/local-authority/38,Oxfordshire County Council,Homes for Ukraine - Guests,18/12/2023,5896,Adult Social Care - Other Transfer Pay,3500101872,550,Redacted Personal Data
http://statistics.data.gov.uk/id/local-authority/38,Oxfordshire County Council,Homes for Ukraine - Guests,06/12/2023,5896,Adult Social Care - Other Transfer Pay,3500101646,550,Redacted Personal Data
http://statistics.data.gov.uk/id/local-authority/38,Oxfordshire County Council,Homes for Ukraine - Guests,20/12/2023,5896,Adult Social Care - Other Transfer Pay,3500101940,550,Redacted Personal Data
http://statistics.data.gov.uk/id/local-authority/38,Oxfordshire County Council,Homes for Ukraine - Guests,28/12/2023,5896,Adult Social Care - Other Transfer Pay,3500102108,550,Redacted Personal Data
http://statistics.data.gov.uk/id/local-authority/38,Oxfordshire County Council,Homes for Ukraine - Guests,21/12/2023,5896,Adult Social Care - Other Transfer Pay,3500101982,550,Redacted Personal Data
http://statistics.data.gov.uk/id/local-authority/38,Oxfordshire County Council,Homes for Ukraine - Guests,05/12/2023,5896,Adult Social Care - Other Transfer Pay,3500101624,550,Redacted Personal Data
http://statistics.data.gov.uk/id/local-authority/38,Oxfordshire County Council,Homes for Ukraine - Guests,18/12/2023,5896,Adult Social Care - Other Transfer Pay,3500101873,550,Redacted Personal Data
http://statistics.data.gov.uk/id/local-authority/38,Oxfordshire County Council,Homes for Ukraine - Guests,12/12/2023,5896,Adult Social Care - Other Transfer Pay,3500101786,550,Redacted Personal Data
http://statistics.data.gov.uk/id/local-authority/38,Oxfordshire County Council,Homes for Ukraine - Guests,20/12/2023,5896,Adult Social Care - Other Transfer Pay,3500101961,550,Redacted Personal Data
http://statistics.data.gov.uk/id/local-authority/38,Oxfordshire County Council,Homes for Ukraine - Guests,12/12/2023,5896,Adult Social Care - Other Transfer Pay,3500101803,550,Redacted Personal Data
http://statistics.data.gov.uk/id/local-authority/38,Oxfordshire County Council,Homes for Ukraine - Guests,06/12/2023,5896,Adult Social Care - Other Transfer Pay,3500101643,550,Redacted Personal Data
http://statistics.data.gov.uk/id/local-authority/38,Oxfordshire County Council,Homes for Ukraine - Guests,19/12/2023,5896,Adult Social Care - Other Transfer Pay,3500101907,550,Redacted Personal Data
http://statistics.data.gov.uk/id/local-authority/38,Oxfordshire County Council,Homes for Ukraine - Guests,21/12/2023,5896,Adult Social Care - Other Transfer Pay,3500101984,550,Redacted Personal Data
http://statistics.data.gov.uk/id/local-authority/38,Oxfordshire County Council,Homes for Ukraine - Guests,11/12/2023,5896,Adult Social Care - Other Transfer Pay,3500101769,550,Redacted Personal Data
http://statistics.data.gov.uk/id/local-authority/38,Oxfordshire County Council,Homes for Ukraine - Guests,04/12/2023,5896,Adult Social Care - Other Transfer Pay,3500101603,550,Redacted Personal Data
http://statistics.data.gov.uk/id/local-authority/38,Oxfordshire County Council,Homes for Ukraine - Guests,19/12/2023,5896,Adult Social Care - Other Transfer Pay,3500101900,550,Redacted Personal Data
http://statistics.data.gov.uk/id/local-authority/38,Oxfordshire County Council,Homes for Ukraine - Guests,07/12/2023,5896,Adult Social Care - Other Transfer Pay,3500101690,550,Redacted Personal Data
http://statistics.data.gov.uk/id/local-authority/38,Oxfordshire County Council,Homes for Ukraine - Guests,26/12/2023,5896,Adult Social Care - Other Transfer Pay,3500102059,550,Redacted Personal Data
http://statistics.data.gov.uk/id/local-authority/38,Oxfordshire County Council,Homes for Ukraine - Guests,25/12/2023,5896,Adult Social Care - Other Transfer Pay,3500102029,550,Redacted Personal Data
http://statistics.data.gov.uk/id/local-authority/38,Oxfordshire County Council,Homes for Ukraine - Guests,20/12/2023,5896,Adult Social Care - Other Transfer Pay,3500101963,550,Redacted Personal Data
http://statistics.data.gov.uk/id/local-authority/38,Oxfordshire County Council,Homes for Ukraine - Guests,14/12/2023,5896,Adult Social Care - Other Transfer Pay,3500101841,550,Redacted Personal Data
http://statistics.data.gov.uk/id/local-authority/38,Oxfordshire County Council,Homes for Ukraine - Guests,22/12/2023,5896,Adult Social Care - Other Transfer Pay,3500101999,550,Redacted Personal Data
http://statistics.data.gov.uk/id/local-authority/38,Oxfordshire County Council,Homes for Ukraine - Guests,08/12/2023,5896,Adult Social Care - Other Transfer Pay,3500101696,550,Redacted Personal Data
http://statistics.data.gov.uk/id/local-authority/38,Oxfordshire County Council,Homes for Ukraine - Guests,11/12/2023,5896,Adult Social Care - Other Transfer Pay,3500101777,550,Redacted Personal Data
http://statistics.data.gov.uk/id/local-authority/38,Oxfordshire County Council,Homes for Ukraine - Guests,12/12/2023,5896,Adult Social Care - Other Transfer Pay,3500101796,550,Redacted Personal Data
http://statistics.data.gov.uk/id/local-authority/38,Oxfordshire County Council,Homes for Ukraine - Guests,06/12/2023,5896,Adult Social Care - Other Transfer Pay,3500101641,550,Redacted Personal Data
http://statistics.data.gov.uk/id/local-authority/38,Oxfordshire County Council,Homes for Ukraine - Guests,25/12/2023,5896,Adult Social Care - Other Transfer Pay,3500102041,550,Redacted Personal Data
http://statistics.data.gov.uk/id/local-authority/38,Oxfordshire County Council,Homes for Ukraine - Guests,25/12/2023,5896,Adult Social Care - Other Transfer Pay,3500102012,550,Redacted Personal Data
http://statistics.data.gov.uk/id/local-authority/38,Oxfordshire County Council,Homes for Ukraine - Guests,25/12/2023,5896,Adult Social Care - Other Transfer Pay,3500102030,550,Redacted Personal Data
http://statistics.data.gov.uk/id/local-authority/38,Oxfordshire County Council,Homes for Ukraine - Guests,06/12/2023,5896,Adult Social Care - Other Transfer Pay,3500101658,550,Redacted Personal Data
http://statistics.data.gov.uk/id/local-authority/38,Oxfordshire County Council,Homes for Ukraine - Guests,28/12/2023,5896,Adult Social Care - Other Transfer Pay,3500102122,550,Redacted Personal Data
http://statistics.data.gov.uk/id/local-authority/38,Oxfordshire County Council,Homes for Ukraine - Guests,25/12/2023,5896,Adult Social Care - Other Transfer Pay,3500102014,550,Redacted Personal Data
http://statistics.data.gov.uk/id/local-authority/38,Oxfordshire County Council,Homes for Ukraine - Guests,12/12/2023,5896,Adult Social Care - Other Transfer Pay,3500101797,550,Redacted Personal Data
http://statistics.data.gov.uk/id/local-authority/38,Oxfordshire County Council,Homes for Ukraine - Guests,19/12/2023,5896,Adult Social Care - Other Transfer Pay,3500101890,550,Redacted Personal Data
http://statistics.data.gov.uk/id/local-authority/38,Oxfordshire County Council,Homes for Ukraine - Guests,05/12/2023,5896,Adult Social Care - Other Transfer Pay,3500101629,550,Redacted Personal Data
http://statistics.data.gov.uk/id/local-authority/38,Oxfordshire County Council,Homes for Ukraine - Guests,28/12/2023,5896,Adult Social Care - Other Transfer Pay,3500102118,550,Redacted Personal Data
http://statistics.data.gov.uk/id/local-authority/38,Oxfordshire County Council,Homes for Ukraine - Guests,27/12/2023,5896,Adult Social Care - Other Transfer Pay,3500102078,550,Redacted Personal Data
http://statistics.data.gov.uk/id/local-authority/38,Oxfordshire County Council,Homes for Ukraine - Guests,14/12/2023,5896,Adult Social Care - Other Transfer Pay,3500101846,550,Redacted Personal Data
http://statistics.data.gov.uk/id/local-authority/38,Oxfordshire County Council,Homes for Ukraine - Guests,19/12/2023,5896,Adult Social Care - Other Transfer Pay,3500101908,550,Redacted Personal Data
http://statistics.data.gov.uk/id/local-authority/38,Oxfordshire County Council,Homes for Ukraine - Guests,15/12/2023,5896,Adult Social Care - Other Transfer Pay,3500101860,550,Redacted Personal Data
http://statistics.data.gov.uk/id/local-authority/38,Oxfordshire County Council,Homes for Ukraine - Guests,12/12/2023,5896,Adult Social Care - Other Transfer Pay,3500101790,550,Redacted Personal Data
http://statistics.data.gov.uk/id/local-authority/38,Oxfordshire County Council,Homes for Ukraine - Guests,11/12/2023,5896,Adult Social Care - Other Transfer Pay,3500101780,550,Redacted Personal Data
http://statistics.data.gov.uk/id/local-authority/38,Oxfordshire County Council,Homes for Ukraine - Guests,14/12/2023,5896,Adult Social Care - Other Transfer Pay,3500101847,550,Redacted Personal Data
http://statistics.data.gov.uk/id/local-authority/38,Oxfordshire County Council,Homes for Ukraine - Guests,05/12/2023,5896,Adult Social Care - Other Transfer Pay,3500101633,550,Redacted Personal Data
http://statistics.data.gov.uk/id/local-authority/38,Oxfordshire County Council,Homes for Ukraine - Guests,20/12/2023,5896,Adult Social Care - Other Transfer Pay,3500101941,550,Redacted Personal Data
http://statistics.data.gov.uk/id/local-authority/38,Oxfordshire County Council,Homes for Ukraine - Guests,25/12/2023,5896,Adult Social Care - Other Transfer Pay,3500102048,550,Redacted Personal Data
http://statistics.data.gov.uk/id/local-authority/38,Oxfordshire County Council,Homes for Ukraine - Guests,20/12/2023,5896,Adult Social Care - Other Transfer Pay,3500101947,550,Redacted Personal Data
http://statistics.data.gov.uk/id/local-authority/38,Oxfordshire County Council,Homes for Ukraine - Guests,25/12/2023,5896,Adult Social Care - Other Transfer Pay,3500102024,550,Redacted Personal Data
http://statistics.data.gov.uk/id/local-authority/38,Oxfordshire County Council,Homes for Ukraine - Guests,14/12/2023,5896,Adult Social Care - Other Transfer Pay,3500101842,550,Redacted Personal Data
http://statistics.data.gov.uk/id/local-authority/38,Oxfordshire County Council,Homes for Ukraine - Guests,06/12/2023,5896,Adult Social Care - Other Transfer Pay,3500101642,550,Redacted Personal Data
http://statistics.data.gov.uk/id/local-authority/38,Oxfordshire County Council,LAC PUPIL PREMIUM,18/12/2023,5537,Payments to Other Establishments,3111573987,550,Eynsham Partnership Academy
http://statistics.data.gov.uk/id/local-authority/38,Oxfordshire County Council,Homes for Ukraine - Guests,13/12/2023,5896,Adult Social Care - Other Transfer Pay,3500101832,550,Redacted Personal Data
http://statistics.data.gov.uk/id/local-authority/38,Oxfordshire County Council,Homes for Ukraine - Guests,20/12/2023,5896,Adult Social Care - Other Transfer Pay,3500101936,550,Redacted Personal Data
http://statistics.data.gov.uk/id/local-authority/38,Oxfordshire County Council,Homes for Ukraine - Guests,08/12/2023,5896,Adult Social Care - Other Transfer Pay,3500101715,550,Redacted Personal Data
http://statistics.data.gov.uk/id/local-authority/38,Oxfordshire County Council,Homes for Ukraine - Guests,25/12/2023,5896,Adult Social Care - Other Transfer Pay,3500102031,550,Redacted Personal Data
http://statistics.data.gov.uk/id/local-authority/38,Oxfordshire County Council,Homes for Ukraine - Guests,08/12/2023,5896,Adult Social Care - Other Transfer Pay,3500101706,550,Redacted Personal Data
http://statistics.data.gov.uk/id/local-authority/38,Oxfordshire County Council,Homes for Ukraine - Guests,20/12/2023,5896,Adult Social Care - Other Transfer Pay,3500101974,550,Redacted Personal Data
http://statistics.data.gov.uk/id/local-authority/38,Oxfordshire County Council,Homes for Ukraine - Guests,06/12/2023,5896,Adult Social Care - Other Transfer Pay,3500101644,550,Redacted Personal Data
http://statistics.data.gov.uk/id/local-authority/38,Oxfordshire County Council,Homes for Ukraine - Guests,01/12/2023,5896,Adult Social Care - Other Transfer Pay,3500101572,550,Redacted Personal Data
http://statistics.data.gov.uk/id/local-authority/38,Oxfordshire County Council,Homes for Ukraine - Guests,14/12/2023,5896,Adult Social Care - Other Transfer Pay,3500101844,550,Redacted Personal Data
http://statistics.data.gov.uk/id/local-authority/38,Oxfordshire County Council,Homes for Ukraine - Guests,13/12/2023,5896,Adult Social Care - Other Transfer Pay,3500101823,550,Redacted Personal Data
http://statistics.data.gov.uk/id/local-authority/38,Oxfordshire County Council,Homes for Ukraine - Guests,26/12/2023,5896,Adult Social Care - Other Transfer Pay,3500102054,550,Redacted Personal Data
http://statistics.data.gov.uk/id/local-authority/38,Oxfordshire County Council,Homes for Ukraine - Guests,05/12/2023,5896,Adult Social Care - Other Transfer Pay,3500101632,550,Redacted Personal Data
http://statistics.data.gov.uk/id/local-authority/38,Oxfordshire County Council,Homes for Ukraine - Guests,01/12/2023,5896,Adult Social Care - Other Transfer Pay,3500101580,550,Redacted Personal Data
http://statistics.data.gov.uk/id/local-authority/38,Oxfordshire County Council,Homes for Ukraine - Guests,19/12/2023,5896,Adult Social Care - Other Transfer Pay,3500101887,550,Redacted Personal Data
http://statistics.data.gov.uk/id/local-authority/38,Oxfordshire County Council,Homes for Ukraine - Guests,13/12/2023,5896,Adult Social Care - Other Transfer Pay,3500101830,550,Redacted Personal Data
http://statistics.data.gov.uk/id/local-authority/38,Oxfordshire County Council,Homes for Ukraine - Guests,27/12/2023,5896,Adult Social Care - Other Transfer Pay,3500102073,550,Redacted Personal Data
http://statistics.data.gov.uk/id/local-authority/38,Oxfordshire County Council,Support at Home U65 Physical Support,04/12/2023,5227,Other Transport Arrangements,3111560738,550,Go Green Taxis
http://statistics.data.gov.uk/id/local-authority/38,Oxfordshire County Council,Homes for Ukraine - Guests,15/12/2023,5896,Adult Social Care - Other Transfer Pay,3500101862,550,Redacted Personal Data
http://statistics.data.gov.uk/id/local-authority/38,Oxfordshire County Council,Homes for Ukraine - Guests,25/12/2023,5896,Adult Social Care - Other Transfer Pay,3500102019,550,Redacted Personal Data
http://statistics.data.gov.uk/id/local-authority/38,Oxfordshire County Council,Homes for Ukraine - Guests,19/12/2023,5896,Adult Social Care - Other Transfer Pay,3500101906,550,Redacted Personal Data
http://statistics.data.gov.uk/id/local-authority/38,Oxfordshire County Council,Homes for Ukraine - Guests,13/12/2023,5896,Adult Social Care - Other Transfer Pay,3500101817,550,Redacted Personal Data
http://statistics.data.gov.uk/id/local-authority/38,Oxfordshire County Council,Homes for Ukraine - Guests,13/12/2023,5896,Adult Social Care - Other Transfer Pay,3500101826,550,Redacted Personal Data
http://statistics.data.gov.uk/id/local-authority/38,Oxfordshire County Council,Homes for Ukraine - Guests,29/12/2023,5896,Adult Social Care - Other Transfer Pay,3500102310,550,Redacted Personal Data
http://statistics.data.gov.uk/id/local-authority/38,Oxfordshire County Council,Homes for Ukraine - Guests,20/12/2023,5896,Adult Social Care - Other Transfer Pay,3500101935,550,Redacted Personal Data
http://statistics.data.gov.uk/id/local-authority/38,Oxfordshire County Council,Homes for Ukraine - Guests,06/12/2023,5896,Adult Social Care - Other Transfer Pay,3500101657,550,Redacted Personal Data
http://statistics.data.gov.uk/id/local-authority/38,Oxfordshire County Council,Homes for Ukraine - Guests,01/12/2023,5896,Adult Social Care - Other Transfer Pay,3500101564,550,Redacted Personal Data
http://statistics.data.gov.uk/id/local-authority/38,Oxfordshire County Council,Homes for Ukraine - Guests,25/12/2023,5896,Adult Social Care - Other Transfer Pay,3500102013,550,Redacted Personal Data
http://statistics.data.gov.uk/id/local-authority/38,Oxfordshire County Council,Homes for Ukraine - Guests,28/12/2023,5896,Adult Social Care - Other Transfer Pay,3500102127,550,Redacted Personal Data
http://statistics.data.gov.uk/id/local-authority/38,Oxfordshire County Council,Homes for Ukraine - Guests,12/12/2023,5896,Adult Social Care - Other Transfer Pay,3500101785,550,Redacted Personal Data
http://statistics.data.gov.uk/id/local-authority/38,Oxfordshire County Council,Homes for Ukraine - Guests,25/12/2023,5896,Adult Social Care - Other Transfer Pay,3500102018,550,Redacted Personal Data
http://statistics.data.gov.uk/id/local-authority/38,Oxfordshire County Council,Homes for Ukraine - Guests,25/12/2023,5896,Adult Social Care - Other Transfer Pay,3500102040,550,Redacted Personal Data
http://statistics.data.gov.uk/id/local-authority/38,Oxfordshire County Council,Support at Home U65 Physical Support,05/12/2023,5227,Other Transport Arrangements,3111561761,550,Her Ride Limited
http://statistics.data.gov.uk/id/local-authority/38,Oxfordshire County Council,Homes for Ukraine - Guests,25/12/2023,5896,Adult Social Care - Other Transfer Pay,3500102017,550,Redacted Personal Data
http://statistics.data.gov.uk/id/local-authority/38,Oxfordshire County Council,Homes for Ukraine - Guests,20/12/2023,5896,Adult Social Care - Other Transfer Pay,3500101968,550,Redacted Personal Data
http://statistics.data.gov.uk/id/local-authority/38,Oxfordshire County Council,Homes for Ukraine - Guests,04/12/2023,5896,Adult Social Care - Other Transfer Pay,3500101589,550,Redacted Personal Data
http://statistics.data.gov.uk/id/local-authority/38,Oxfordshire County Council,Homes for Ukraine - Guests,06/12/2023,5896,Adult Social Care - Other Transfer Pay,3500101654,550,Redacted Personal Data
http://statistics.data.gov.uk/id/local-authority/38,Oxfordshire County Council,Homes for Ukraine - Guests,19/12/2023,5896,Adult Social Care - Other Transfer Pay,3500101885,550,Redacted Personal Data
http://statistics.data.gov.uk/id/local-authority/38,Oxfordshire County Council,Homes for Ukraine - Guests,08/12/2023,5896,Adult Social Care - Other Transfer Pay,3500101709,550,Redacted Personal Data
http://statistics.data.gov.uk/id/local-authority/38,Oxfordshire County Council,Homes for Ukraine - Guests,25/12/2023,5896,Adult Social Care - Other Transfer Pay,3500102009,550,Redacted Personal Data
http://statistics.data.gov.uk/id/local-authority/38,Oxfordshire County Council,Homes for Ukraine - Guests,11/12/2023,5896,Adult Social Care - Other Transfer Pay,3500101778,550,Redacted Personal Data
http://statistics.data.gov.uk/id/local-authority/38,Oxfordshire County Council,Homes for Ukraine - Guests,05/12/2023,5896,Adult Social Care - Other Transfer Pay,3500101607,550,Redacted Personal Data
http://statistics.data.gov.uk/id/local-authority/38,Oxfordshire County Council,Homes for Ukraine - Guests,08/12/2023,5896,Adult Social Care - Other Transfer Pay,3500101697,550,Redacted Personal Data
http://statistics.data.gov.uk/id/local-authority/38,Oxfordshire County Council,Homes for Ukraine - Guests,01/12/2023,5896,Adult Social Care - Other Transfer Pay,3500101570,550,Redacted Personal Data
http://statistics.data.gov.uk/id/local-authority/38,Oxfordshire County Council,Homes for Ukraine - Guests,08/12/2023,5896,Adult Social Care - Other Transfer Pay,3500101699,550,Redacted Personal Data
http://statistics.data.gov.uk/id/local-authority/38,Oxfordshire County Council,Homes for Ukraine - Guests,18/12/2023,5896,Adult Social Care - Other Transfer Pay,3500101881,550,Redacted Personal Data
http://statistics.data.gov.uk/id/local-authority/38,Oxfordshire County Council,Homes for Ukraine - Guests,26/12/2023,5896,Adult Social Care - Other Transfer Pay,3500102056,550,Redacted Personal Data
http://statistics.data.gov.uk/id/local-authority/38,Oxfordshire County Council,Homes for Ukraine - Guests,20/12/2023,5896,Adult Social Care - Other Transfer Pay,3500101977,550,Redacted Personal Data
http://statistics.data.gov.uk/id/local-authority/38,Oxfordshire County Council,Homes for Ukraine - Guests,29/12/2023,5896,Adult Social Care - Other Transfer Pay,3500102308,550,Redacted Personal Data
http://statistics.data.gov.uk/id/local-authority/38,Oxfordshire County Council,Homes for Ukraine - Guests,22/12/2023,5896,Adult Social Care - Other Transfer Pay,3500102002,550,Redacted Personal Data
http://statistics.data.gov.uk/id/local-authority/38,Oxfordshire County Council,Homes for Ukraine - Guests,06/12/2023,5896,Adult Social Care - Other Transfer Pay,3500101674,550,Redacted Personal Data
http://statistics.data.gov.uk/id/local-authority/38,Oxfordshire County Council,Homes for Ukraine - Guests,22/12/2023,5896,Adult Social Care - Other Transfer Pay,3500102003,550,Redacted Personal Data
http://statistics.data.gov.uk/id/local-authority/38,Oxfordshire County Council,Homes for Ukraine - Guests,06/12/2023,5896,Adult Social Care - Other Transfer Pay,3500101651,550,Redacted Personal Data
http://statistics.data.gov.uk/id/local-authority/38,Oxfordshire County Council,Homes for Ukraine - Guests,13/12/2023,5896,Adult Social Care - Other Transfer Pay,3500101825,550,Redacted Personal Data
http://statistics.data.gov.uk/id/local-authority/38,Oxfordshire County Council,Homes for Ukraine - Guests,06/12/2023,5896,Adult Social Care - Other Transfer Pay,3500101671,550,Redacted Personal Data
http://statistics.data.gov.uk/id/local-authority/38,Oxfordshire County Council,Homes for Ukraine - Guests,08/12/2023,5896,Adult Social Care - Other Transfer Pay,3500101702,550,Redacted Personal Data
http://statistics.data.gov.uk/id/local-authority/38,Oxfordshire County Council,Homes for Ukraine - Guests,25/12/2023,5896,Adult Social Care - Other Transfer Pay,3500102034,550,Redacted Personal Data
http://statistics.data.gov.uk/id/local-authority/38,Oxfordshire County Council,Homes for Ukraine - Guests,01/12/2023,5896,Adult Social Care - Other Transfer Pay,3500101566,550,Redacted Personal Data
http://statistics.data.gov.uk/id/local-authority/38,Oxfordshire County Council,Homes for Ukraine - Guests,28/12/2023,5896,Adult Social Care - Other Transfer Pay,3500102102,550,Redacted Personal Data
http://statistics.data.gov.uk/id/local-authority/38,Oxfordshire County Council,Homes for Ukraine - Guests,06/12/2023,5896,Adult Social Care - Other Transfer Pay,3500101666,550,Redacted Personal Data
http://statistics.data.gov.uk/id/local-authority/38,Oxfordshire County Council,Homes for Ukraine - Guests,20/12/2023,5896,Adult Social Care - Other Transfer Pay,3500101951,550,Redacted Personal Data
http://statistics.data.gov.uk/id/local-authority/38,Oxfordshire County Council,Homes for Ukraine - Guests,25/12/2023,5896,Adult Social Care - Other Transfer Pay,3500102046,550,Redacted Personal Data
http://statistics.data.gov.uk/id/local-authority/38,Oxfordshire County Council,Homes for Ukraine - Guests,28/12/2023,5896,Adult Social Care - Other Transfer Pay,3500102119,550,Redacted Personal Data
http://statistics.data.gov.uk/id/local-authority/38,Oxfordshire County Council,Homes for Ukraine - Guests,25/12/2023,5896,Adult Social Care - Other Transfer Pay,3500102021,550,Redacted Personal Data
http://statistics.data.gov.uk/id/local-authority/38,Oxfordshire County Council,Homes for Ukraine - Guests,04/12/2023,5896,Adult Social Care - Other Transfer Pay,3500101594,550,Redacted Personal Data
http://statistics.data.gov.uk/id/local-authority/38,Oxfordshire County Council,Homes for Ukraine - Guests,12/12/2023,5896,Adult Social Care - Other Transfer Pay,3500101806,550,Redacted Personal Data
http://statistics.data.gov.uk/id/local-authority/38,Oxfordshire County Council,Homes for Ukraine - Guests,06/12/2023,5896,Adult Social Care - Other Transfer Pay,3500101676,550,Redacted Personal Data
http://statistics.data.gov.uk/id/local-authority/38,Oxfordshire County Council,Homes for Ukraine - Guests,06/12/2023,5896,Adult Social Care - Other Transfer Pay,3500101656,550,Redacted Personal Data
http://statistics.data.gov.uk/id/local-authority/38,Oxfordshire County Council,Homes for Ukraine - Guests,14/12/2023,5896,Adult Social Care - Other Transfer Pay,3500101848,550,Redacted Personal Data
http://statistics.data.gov.uk/id/local-authority/38,Oxfordshire County Council,Homes for Ukraine - Guests,26/12/2023,5896,Adult Social Care - Other Transfer Pay,3500102060,550,Redacted Personal Data
http://statistics.data.gov.uk/id/local-authority/38,Oxfordshire County Council,Homes for Ukraine - Guests,25/12/2023,5896,Adult Social Care - Other Transfer Pay,3500102023,550,Redacted Personal Data
http://statistics.data.gov.uk/id/local-authority/38,Oxfordshire County Council,Homes for Ukraine - Guests,08/12/2023,5896,Adult Social Care - Other Transfer Pay,3500101703,550,Redacted Personal Data
http://statistics.data.gov.uk/id/local-authority/38,Oxfordshire County Council,Homes for Ukraine - Guests,04/12/2023,5896,Adult Social Care - Other Transfer Pay,3500101606,550,Redacted Personal Data
http://statistics.data.gov.uk/id/local-authority/38,Oxfordshire County Council,Homes for Ukraine - Guests,04/12/2023,5896,Adult Social Care - Other Transfer Pay,3500101604,550,Redacted Personal Data
http://statistics.data.gov.uk/id/local-authority/38,Oxfordshire County Council,Homes for Ukraine - Guests,12/12/2023,5896,Adult Social Care - Other Transfer Pay,3500101798,550,Redacted Personal Data
http://statistics.data.gov.uk/id/local-authority/38,Oxfordshire County Council,Homes for Ukraine - Guests,26/12/2023,5896,Adult Social Care - Other Transfer Pay,3500102055,550,Redacted Personal Data
http://statistics.data.gov.uk/id/local-authority/38,Oxfordshire County Council,Homes for Ukraine - Guests,25/12/2023,5896,Adult Social Care - Other Transfer Pay,3500102042,550,Redacted Personal Data
http://statistics.data.gov.uk/id/local-authority/38,Oxfordshire County Council,Homes for Ukraine - Guests,05/12/2023,5896,Adult Social Care - Other Transfer Pay,3500101634,550,Redacted Personal Data
http://statistics.data.gov.uk/id/local-authority/38,Oxfordshire County Council,Homes for Ukraine - Guests,27/12/2023,5896,Adult Social Care - Other Transfer Pay,3500102085,550,Redacted Personal Data
http://statistics.data.gov.uk/id/local-authority/38,Oxfordshire County Council,Homes for Ukraine - Guests,14/12/2023,5896,Adult Social Care - Other Transfer Pay,3500101845,550,Redacted Personal Data
http://statistics.data.gov.uk/id/local-authority/38,Oxfordshire County Council,Homes for Ukraine - Guests,05/12/2023,5896,Adult Social Care - Other Transfer Pay,3500101617,550,Redacted Personal Data
http://statistics.data.gov.uk/id/local-authority/38,Oxfordshire County Council,Homes for Ukraine - Guests,18/12/2023,5896,Adult Social Care - Other Transfer Pay,3500101875,550,Redacted Personal Data
http://statistics.data.gov.uk/id/local-authority/38,Oxfordshire County Council,Homes for Ukraine - Guests,20/12/2023,5896,Adult Social Care - Other Transfer Pay,3500101943,550,Redacted Personal Data
http://statistics.data.gov.uk/id/local-authority/38,Oxfordshire County Council,Homes for Ukraine - Guests,18/12/2023,5896,Adult Social Care - Other Transfer Pay,3500101866,550,Redacted Personal Data
http://statistics.data.gov.uk/id/local-authority/38,Oxfordshire County Council,Homes for Ukraine - Guests,11/12/2023,5896,Adult Social Care - Other Transfer Pay,3500101775,550,Redacted Personal Data
http://statistics.data.gov.uk/id/local-authority/38,Oxfordshire County Council,Homes for Ukraine - Guests,13/12/2023,5896,Adult Social Care - Other Transfer Pay,3500101815,550,Redacted Personal Data
http://statistics.data.gov.uk/id/local-authority/38,Oxfordshire County Council,Homes for Ukraine - Guests,28/12/2023,5896,Adult Social Care - Other Transfer Pay,3500102130,550,Redacted Personal Data
http://statistics.data.gov.uk/id/local-authority/38,Oxfordshire County Council,Homes for Ukraine - Guests,20/12/2023,5896,Adult Social Care - Other Transfer Pay,3500101962,550,Redacted Personal Data
http://statistics.data.gov.uk/id/local-authority/38,Oxfordshire County Council,Homes for Ukraine - Guests,20/12/2023,5896,Adult Social Care - Other Transfer Pay,3500101972,550,Redacted Personal Data
http://statistics.data.gov.uk/id/local-authority/38,Oxfordshire County Council,Homes for Ukraine - Guests,22/12/2023,5896,Adult Social Care - Other Transfer Pay,3500101998,550,Redacted Personal Data
http://statistics.data.gov.uk/id/local-authority/38,Oxfordshire County Council,Homes for Ukraine - Guests,05/12/2023,5896,Adult Social Care - Other Transfer Pay,3500101623,550,Redacted Personal Data
http://statistics.data.gov.uk/id/local-authority/38,Oxfordshire County Council,Homes for Ukraine - Guests,07/12/2023,5896,Adult Social Care - Other Transfer Pay,3500101683,550,Redacted Personal Data
http://statistics.data.gov.uk/id/local-authority/38,Oxfordshire County Council,Homes for Ukraine - Guests,01/12/2023,5896,Adult Social Care - Other Transfer Pay,3500101563,550,Redacted Personal Data
http://statistics.data.gov.uk/id/local-authority/38,Oxfordshire County Council,Homes for Ukraine - Guests,27/12/2023,5896,Adult Social Care - Other Transfer Pay,3500102088,550,Redacted Personal Data
http://statistics.data.gov.uk/id/local-authority/38,Oxfordshire County Council,Homes for Ukraine - Guests,20/12/2023,5896,Adult Social Care - Other Transfer Pay,3500101939,550,Redacted Personal Data
http://statistics.data.gov.uk/id/local-authority/38,Oxfordshire County Council,Homes for Ukraine - Guests,25/12/2023,5896,Adult Social Care - Other Transfer Pay,3500102047,550,Redacted Personal Data
http://statistics.data.gov.uk/id/local-authority/38,Oxfordshire County Council,Homes for Ukraine - Guests,28/12/2023,5896,Adult Social Care - Other Transfer Pay,3500102106,550,Redacted Personal Data
http://statistics.data.gov.uk/id/local-authority/38,Oxfordshire County Council,Homes for Ukraine - Guests,27/12/2023,5896,Adult Social Care - Other Transfer Pay,3500102087,550,Redacted Personal Data
http://statistics.data.gov.uk/id/local-authority/38,Oxfordshire County Council,Homes for Ukraine - Guests,13/12/2023,5896,Adult Social Care - Other Transfer Pay,3500101833,550,Redacted Personal Data
http://statistics.data.gov.uk/id/local-authority/38,Oxfordshire County Council,Homes for Ukraine - Guests,27/12/2023,5896,Adult Social Care - Other Transfer Pay,3500102089,550,Redacted Personal Data
http://statistics.data.gov.uk/id/local-authority/38,Oxfordshire County Council,Homes for Ukraine - Guests,25/12/2023,5896,Adult Social Care - Other Transfer Pay,3500102026,550,Redacted Personal Data
http://statistics.data.gov.uk/id/local-authority/38,Oxfordshire County Council,Homes for Ukraine - Guests,29/12/2023,5896,Adult Social Care - Other Transfer Pay,3500102311,550,Redacted Personal Data
http://statistics.data.gov.uk/id/local-authority/38,Oxfordshire County Council,Homes for Ukraine - Guests,25/12/2023,5896,Adult Social Care - Other Transfer Pay,3500102015,550,Redacted Personal Data
http://statistics.data.gov.uk/id/local-authority/38,Oxfordshire County Council,Homes for Ukraine - Guests,20/12/2023,5896,Adult Social Care - Other Transfer Pay,3500101938,550,Redacted Personal Data
http://statistics.data.gov.uk/id/local-authority/38,Oxfordshire County Council,Homes for Ukraine - Guests,13/12/2023,5896,Adult Social Care - Other Transfer Pay,3500101834,550,Redacted Personal Data
http://statistics.data.gov.uk/id/local-authority/38,Oxfordshire County Council,Homes for Ukraine - Guests,06/12/2023,5896,Adult Social Care - Other Transfer Pay,3500101653,550,Redacted Personal Data
http://statistics.data.gov.uk/id/local-authority/38,Oxfordshire County Council,Homes for Ukraine - Guests,05/12/2023,5896,Adult Social Care - Other Transfer Pay,3500101627,550,Redacted Personal Data
http://statistics.data.gov.uk/id/local-authority/38,Oxfordshire County Council,Homes for Ukraine - Guests,20/12/2023,5896,Adult Social Care - Other Transfer Pay,3500101966,550,Redacted Personal Data
http://statistics.data.gov.uk/id/local-authority/38,Oxfordshire County Council,Homes for Ukraine - Guests,08/12/2023,5896,Adult Social Care - Other Transfer Pay,3500101708,550,Redacted Personal Data
http://statistics.data.gov.uk/id/local-authority/38,Oxfordshire County Council,Homes for Ukraine - Guests,19/12/2023,5896,Adult Social Care - Other Transfer Pay,3500101898,550,Redacted Personal Data
http://statistics.data.gov.uk/id/local-authority/38,Oxfordshire County Council,Homes for Ukraine - Guests,06/12/2023,5896,Adult Social Care - Other Transfer Pay,3500101677,550,Redacted Personal Data
http://statistics.data.gov.uk/id/local-authority/38,Oxfordshire County Council,Homes for Ukraine - Guests,01/12/2023,5896,Adult Social Care - Other Transfer Pay,3500101574,550,Redacted Personal Data
http://statistics.data.gov.uk/id/local-authority/38,Oxfordshire County Council,Homes for Ukraine - Guests,25/12/2023,5896,Adult Social Care - Other Transfer Pay,3500102039,550,Redacted Personal Data
http://statistics.data.gov.uk/id/local-authority/38,Oxfordshire County Council,Homes for Ukraine - Guests,27/12/2023,5896,Adult Social Care - Other Transfer Pay,3500102076,550,Redacted Personal Data
http://statistics.data.gov.uk/id/local-authority/38,Oxfordshire County Council,Homes for Ukraine - Guests,11/12/2023,5896,Adult Social Care - Other Transfer Pay,3500101776,550,Redacted Personal Data
http://statistics.data.gov.uk/id/local-authority/38,Oxfordshire County Council,Homes for Ukraine - Guests,05/12/2023,5896,Adult Social Care - Other Transfer Pay,3500101613,550,Redacted Personal Data
http://statistics.data.gov.uk/id/local-authority/38,Oxfordshire County Council,Homes for Ukraine - Guests,05/12/2023,5896,Adult Social Care - Other Transfer Pay,3500101620,550,Redacted Personal Data
http://statistics.data.gov.uk/id/local-authority/38,Oxfordshire County Council,Homes for Ukraine - Guests,27/12/2023,5896,Adult Social Care - Other Transfer Pay,3500102090,550,Redacted Personal Data
http://statistics.data.gov.uk/id/local-authority/38,Oxfordshire County Council,Homes for Ukraine - Guests,28/12/2023,5896,Adult Social Care - Other Transfer Pay,3500102105,550,Redacted Personal Data
http://statistics.data.gov.uk/id/local-authority/38,Oxfordshire County Council,Homes for Ukraine - Guests,11/12/2023,5896,Adult Social Care - Other Transfer Pay,3500101770,550,Redacted Personal Data
http://statistics.data.gov.uk/id/local-authority/38,Oxfordshire County Council,Homes for Ukraine - Guests,06/12/2023,5896,Adult Social Care - Other Transfer Pay,3500101648,550,Redacted Personal Data
http://statistics.data.gov.uk/id/local-authority/38,Oxfordshire County Council,Homes for Ukraine - Guests,26/12/2023,5896,Adult Social Care - Other Transfer Pay,3500102058,550,Redacted Personal Data
http://statistics.data.gov.uk/id/local-authority/38,Oxfordshire County Council,Homes for Ukraine - Guests,08/12/2023,5896,Adult Social Care - Other Transfer Pay,3500101711,550,Redacted Personal Data
http://statistics.data.gov.uk/id/local-authority/38,Oxfordshire County Council,Homes for Ukraine - Guests,06/12/2023,5896,Adult Social Care - Other Transfer Pay,3500101675,550,Redacted Personal Data
http://statistics.data.gov.uk/id/local-authority/38,Oxfordshire County Council,Homes for Ukraine - Guests,18/12/2023,5896,Adult Social Care - Other Transfer Pay,3500101868,550,Redacted Personal Data
http://statistics.data.gov.uk/id/local-authority/38,Oxfordshire County Council,Homes for Ukraine - Guests,06/12/2023,5896,Adult Social Care - Other Transfer Pay,3500101673,550,Redacted Personal Data
http://statistics.data.gov.uk/id/local-authority/38,Oxfordshire County Council,Homes for Ukraine - Guests,25/12/2023,5896,Adult Social Care - Other Transfer Pay,3500102045,550,Redacted Personal Data
http://statistics.data.gov.uk/id/local-authority/38,Oxfordshire County Council,Homes for Ukraine - Guests,06/12/2023,5896,Adult Social Care - Other Transfer Pay,3500101672,550,Redacted Personal Data
http://statistics.data.gov.uk/id/local-authority/38,Oxfordshire County Council,Homes for Ukraine - Guests,05/12/2023,5896,Adult Social Care - Other Transfer Pay,3500101615,550,Redacted Personal Data
http://statistics.data.gov.uk/id/local-authority/38,Oxfordshire County Council,Homes for Ukraine - Guests,01/12/2023,5896,Adult Social Care - Other Transfer Pay,3500101579,550,Redacted Personal Data
http://statistics.data.gov.uk/id/local-authority/38,Oxfordshire County Council,Homes for Ukraine - Guests,08/12/2023,5896,Adult Social Care - Other Transfer Pay,3500101695,550,Redacted Personal Data
http://statistics.data.gov.uk/id/local-authority/38,Oxfordshire County Council,Homes for Ukraine - Guests,08/12/2023,5896,Adult Social Care - Other Transfer Pay,3500101707,550,Redacted Personal Data
http://statistics.data.gov.uk/id/local-authority/38,Oxfordshire County Council,Homes for Ukraine - Guests,20/12/2023,5896,Adult Social Care - Other Transfer Pay,3500101954,550,Redacted Personal Data
http://statistics.data.gov.uk/id/local-authority/38,Oxfordshire County Council,Homes for Ukraine - Guests,04/12/2023,5896,Adult Social Care - Other Transfer Pay,3500101591,550,Redacted Personal Data
http://statistics.data.gov.uk/id/local-authority/38,Oxfordshire County Council,Homes for Ukraine - Guests,20/12/2023,5896,Adult Social Care - Other Transfer Pay,3500101975,550,Redacted Personal Data
http://statistics.data.gov.uk/id/local-authority/38,Oxfordshire County Council,Homes for Ukraine - Guests,13/12/2023,5896,Adult Social Care - Other Transfer Pay,3500101839,550,Redacted Personal Data
http://statistics.data.gov.uk/id/local-authority/38,Oxfordshire County Council,Homes for Ukraine - Guests,22/12/2023,5896,Adult Social Care - Other Transfer Pay,3500102004,550,Redacted Personal Data
http://statistics.data.gov.uk/id/local-authority/38,Oxfordshire County Council,Homes for Ukraine - Guests,04/12/2023,5896,Adult Social Care - Other Transfer Pay,3500101598,550,Redacted Personal Data
http://statistics.data.gov.uk/id/local-authority/38,Oxfordshire County Council,Homes for Ukraine - Guests,29/12/2023,5896,Adult Social Care - Other Transfer Pay,3500102304,550,Redacted Personal Data
http://statistics.data.gov.uk/id/local-authority/38,Oxfordshire County Council,Homes for Ukraine - Guests,01/12/2023,5896,Adult Social Care - Other Transfer Pay,3500101573,550,Redacted Personal Data
http://statistics.data.gov.uk/id/local-authority/38,Oxfordshire County Council,Homes for Ukraine - Guests,15/12/2023,5896,Adult Social Care - Other Transfer Pay,3500101863,550,Redacted Personal Data
http://statistics.data.gov.uk/id/local-authority/38,Oxfordshire County Council,Homes for Ukraine - Guests,20/12/2023,5896,Adult Social Care - Other Transfer Pay,3500101960,550,Redacted Personal Data
http://statistics.data.gov.uk/id/local-authority/38,Oxfordshire County Council,Homes for Ukraine - Guests,21/12/2023,5896,Adult Social Care - Other Transfer Pay,3500101988,550,Redacted Personal Data
http://statistics.data.gov.uk/id/local-authority/38,Oxfordshire County Council,Homes for Ukraine - Guests,28/12/2023,5896,Adult Social Care - Other Transfer Pay,3500102128,550,Redacted Personal Data
http://statistics.data.gov.uk/id/local-authority/38,Oxfordshire County Council,Homes for Ukraine - Guests,27/12/2023,5896,Adult Social Care - Other Transfer Pay,3500102079,550,Redacted Personal Data
http://statistics.data.gov.uk/id/local-authority/38,Oxfordshire County Council,Homes for Ukraine - Guests,20/12/2023,5896,Adult Social Care - Other Transfer Pay,3500101973,550,Redacted Personal Data
http://statistics.data.gov.uk/id/local-authority/38,Oxfordshire County Council,Homes for Ukraine - Guests,01/12/2023,5896,Adult Social Care - Other Transfer Pay,3500101578,550,Redacted Personal Data
http://statistics.data.gov.uk/id/local-authority/38,Oxfordshire County Council,Homes for Ukraine - Guests,05/12/2023,5896,Adult Social Care - Other Transfer Pay,3500101614,550,Redacted Personal Data
http://statistics.data.gov.uk/id/local-authority/38,Oxfordshire County Council,Homes for Ukraine - Guests,25/12/2023,5896,Adult Social Care - Other Transfer Pay,3500102043,550,Redacted Personal Data
http://statistics.data.gov.uk/id/local-authority/38,Oxfordshire County Council,Homes for Ukraine - Guests,12/12/2023,5896,Adult Social Care - Other Transfer Pay,3500101802,550,Redacted Personal Data
http://statistics.data.gov.uk/id/local-authority/38,Oxfordshire County Council,Homes for Ukraine - Guests,04/12/2023,5896,Adult Social Care - Other Transfer Pay,3500101595,550,Redacted Personal Data
http://statistics.data.gov.uk/id/local-authority/38,Oxfordshire County Council,Homes for Ukraine - Guests,20/12/2023,5896,Adult Social Care - Other Transfer Pay,3500101967,550,Redacted Personal Data
http://statistics.data.gov.uk/id/local-authority/38,Oxfordshire County Council,Homes for Ukraine - Guests,18/12/2023,5896,Adult Social Care - Other Transfer Pay,3500101877,550,Redacted Personal Data
http://statistics.data.gov.uk/id/local-authority/38,Oxfordshire County Council,Homes for Ukraine - Guests,19/12/2023,5896,Adult Social Care - Other Transfer Pay,3500101895,550,Redacted Personal Data
http://statistics.data.gov.uk/id/local-authority/38,Oxfordshire County Council,Homes for Ukraine - Guests,28/12/2023,5896,Adult Social Care - Other Transfer Pay,3500102107,550,Redacted Personal Data
http://statistics.data.gov.uk/id/local-authority/38,Oxfordshire County Council,Homes for Ukraine - Guests,26/12/2023,5896,Adult Social Care - Other Transfer Pay,3500102057,550,Redacted Personal Data
http://statistics.data.gov.uk/id/local-authority/38,Oxfordshire County Council,Homes for Ukraine - Guests,12/12/2023,5896,Adult Social Care - Other Transfer Pay,3500101792,550,Redacted Personal Data
http://statistics.data.gov.uk/id/local-authority/38,Oxfordshire County Council,Homes for Ukraine - Guests,21/12/2023,5896,Adult Social Care - Other Transfer Pay,3500101989,550,Redacted Personal Data
http://statistics.data.gov.uk/id/local-authority/38,Oxfordshire County Council,Homes for Ukraine - Guests,20/12/2023,5896,Adult Social Care - Other Transfer Pay,3500101979,550,Redacted Personal Data
http://statistics.data.gov.uk/id/local-authority/38,Oxfordshire County Council,Homes for Ukraine - Guests,28/12/2023,5896,Adult Social Care - Other Transfer Pay,3500102129,550,Redacted Personal Data
http://statistics.data.gov.uk/id/local-authority/38,Oxfordshire County Council,Homes for Ukraine - Guests,20/12/2023,5896,Adult Social Care - Other Transfer Pay,3500101978,550,Redacted Personal Data
http://statistics.data.gov.uk/id/local-authority/38,Oxfordshire County Council,Homes for Ukraine - Guests,04/12/2023,5896,Adult Social Care - Other Transfer Pay,3500101592,550,Redacted Personal Data
http://statistics.data.gov.uk/id/local-authority/38,Oxfordshire County Council,Homes for Ukraine - Guests,25/12/2023,5896,Adult Social Care - Other Transfer Pay,3500102044,550,Redacted Personal Data
http://statistics.data.gov.uk/id/local-authority/38,Oxfordshire County Council,Homes for Ukraine - Guests,18/12/2023,5896,Adult Social Care - Other Transfer Pay,3500101882,550,Redacted Personal Data
http://statistics.data.gov.uk/id/local-authority/38,Oxfordshire County Council,Homes for Ukraine - Guests,07/12/2023,5896,Adult Social Care - Other Transfer Pay,3500101684,550,Redacted Personal Data
http://statistics.data.gov.uk/id/local-authority/38,Oxfordshire County Council,Homes for Ukraine - Guests,06/12/2023,5896,Adult Social Care - Other Transfer Pay,3500101660,550,Redacted Personal Data
http://statistics.data.gov.uk/id/local-authority/38,Oxfordshire County Council,Homes for Ukraine - Guests,14/12/2023,5896,Adult Social Care - Other Transfer Pay,3500101852,550,Redacted Personal Data
http://statistics.data.gov.uk/id/local-authority/38,Oxfordshire County Council,Homes for Ukraine - Guests,26/12/2023,5896,Adult Social Care - Other Transfer Pay,3500102053,550,Redacted Personal Data
http://statistics.data.gov.uk/id/local-authority/38,Oxfordshire County Council,Homes for Ukraine - Guests,12/12/2023,4940,Other Services,3111566785,550,OCC One Time Vendor
http://statistics.data.gov.uk/id/local-authority/38,Oxfordshire County Council,Homes for Ukraine - Guests,07/12/2023,5896,Adult Social Care - Other Transfer Pay,3500101685,550,Redacted Personal Data
http://statistics.data.gov.uk/id/local-authority/38,Oxfordshire County Council,Homes for Ukraine - Guests,28/12/2023,5896,Adult Social Care - Other Transfer Pay,3500102121,550,Redacted Personal Data
http://statistics.data.gov.uk/id/local-authority/38,Oxfordshire County Council,Homes for Ukraine - Guests,28/12/2023,5896,Adult Social Care - Other Transfer Pay,3500102126,550,Redacted Personal Data
http://statistics.data.gov.uk/id/local-authority/38,Oxfordshire County Council,Homes for Ukraine - Guests,11/12/2023,5896,Adult Social Care - Other Transfer Pay,3500101779,550,Redacted Personal Data
http://statistics.data.gov.uk/id/local-authority/38,Oxfordshire County Council,Homes for Ukraine - Guests,25/12/2023,5896,Adult Social Care - Other Transfer Pay,3500102049,550,Redacted Personal Data
http://statistics.data.gov.uk/id/local-authority/38,Oxfordshire County Council,Homes for Ukraine - Guests,14/12/2023,5896,Adult Social Care - Other Transfer Pay,3500101850,550,Redacted Personal Data
http://statistics.data.gov.uk/id/local-authority/38,Oxfordshire County Council,Homes for Ukraine - Guests,05/12/2023,5896,Adult Social Care - Other Transfer Pay,3500101631,550,Redacted Personal Data
http://statistics.data.gov.uk/id/local-authority/38,Oxfordshire County Council,Homes for Ukraine - Guests,13/12/2023,5896,Adult Social Care - Other Transfer Pay,3500101836,550,Redacted Personal Data
http://statistics.data.gov.uk/id/local-authority/38,Oxfordshire County Council,Homes for Ukraine - Guests,20/12/2023,5896,Adult Social Care - Other Transfer Pay,3500101937,550,Redacted Personal Data
http://statistics.data.gov.uk/id/local-authority/38,Oxfordshire County Council,Homes for Ukraine - Guests,18/12/2023,5896,Adult Social Care - Other Transfer Pay,3500101870,550,Redacted Personal Data
http://statistics.data.gov.uk/id/local-authority/38,Oxfordshire County Council,Homes for Ukraine - Guests,06/12/2023,5896,Adult Social Care - Other Transfer Pay,3500101678,550,Redacted Personal Data
http://statistics.data.gov.uk/id/local-authority/38,Oxfordshire County Council,Homes for Ukraine - Guests,27/12/2023,5896,Adult Social Care - Other Transfer Pay,3500102077,550,Redacted Personal Data
http://statistics.data.gov.uk/id/local-authority/38,Oxfordshire County Council,Homes for Ukraine - Guests,13/12/2023,5896,Adult Social Care - Other Transfer Pay,3500101827,550,Redacted Personal Data
http://statistics.data.gov.uk/id/local-authority/38,Oxfordshire County Council,Homes for Ukraine - Guests,04/12/2023,5896,Adult Social Care - Other Transfer Pay,3500101602,550,Redacted Personal Data
http://statistics.data.gov.uk/id/local-authority/38,Oxfordshire County Council,Homes for Ukraine - Guests,12/12/2023,5896,Adult Social Care - Other Transfer Pay,3500101795,550,Redacted Personal Data
http://statistics.data.gov.uk/id/local-authority/38,Oxfordshire County Council,Homes for Ukraine - Guests,12/12/2023,5896,Adult Social Care - Other Transfer Pay,3500101793,550,Redacted Personal Data
http://statistics.data.gov.uk/id/local-authority/38,Oxfordshire County Council,Homes for Ukraine - Guests,20/12/2023,5896,Adult Social Care - Other Transfer Pay,3500101952,550,Redacted Personal Data
http://statistics.data.gov.uk/id/local-authority/38,Oxfordshire County Council,Homes for Ukraine - Guests,08/12/2023,5896,Adult Social Care - Other Transfer Pay,3500101701,550,Redacted Personal Data
http://statistics.data.gov.uk/id/local-authority/38,Oxfordshire County Council,Homes for Ukraine - Guests,07/12/2023,5896,Adult Social Care - Other Transfer Pay,3500101687,550,Redacted Personal Data
http://statistics.data.gov.uk/id/local-authority/38,Oxfordshire County Council,Homes for Ukraine - Guests,19/12/2023,5896,Adult Social Care - Other Transfer Pay,3500101892,550,Redacted Personal Data
http://statistics.data.gov.uk/id/local-authority/38,Oxfordshire County Council,Homes for Ukraine - Guests,14/12/2023,5896,Adult Social Care - Other Transfer Pay,3500101857,550,Redacted Personal Data
http://statistics.data.gov.uk/id/local-authority/38,Oxfordshire County Council,Homes for Ukraine - Guests,28/12/2023,5896,Adult Social Care - Other Transfer Pay,3500102113,550,Redacted Personal Data
http://statistics.data.gov.uk/id/local-authority/38,Oxfordshire County Council,Homes for Ukraine - Guests,27/12/2023,5896,Adult Social Care - Other Transfer Pay,3500102086,550,Redacted Personal Data
http://statistics.data.gov.uk/id/local-authority/38,Oxfordshire County Council,Support at Home U65 Physical Support,01/12/2023,5689,,3111560641,550,PLL Care Services
http://statistics.data.gov.uk/id/local-authority/38,Oxfordshire County Council,Homes for Ukraine - Guests,05/12/2023,5896,Adult Social Care - Other Transfer Pay,3500101630,550,PRASHANT BRAHMBHATT
http://statistics.data.gov.uk/id/local-authority/38,Oxfordshire County Council,L&D CORE PROGRAMME,08/12/2023,3103,Other Training Courses and Qualification,2201178114,550,Premier Partnership
http://statistics.data.gov.uk/id/local-authority/38,Oxfordshire County Council,Homes for Ukraine - Guests,25/12/2023,5896,Adult Social Care - Other Transfer Pay,3500102036,550,Redacted Personal Data
http://statistics.data.gov.uk/id/local-authority/38,Oxfordshire County Council,Homes for Ukraine - Guests,20/12/2023,5896,Adult Social Care - Other Transfer Pay,3500101976,550,Redacted Personal Data
http://statistics.data.gov.uk/id/local-authority/38,Oxfordshire County Council,Homes for Ukraine - Guests,06/12/2023,5896,Adult Social Care - Other Transfer Pay,3500101664,550,Redacted Personal Data
http://statistics.data.gov.uk/id/local-authority/38,Oxfordshire County Council,Homes for Ukraine - Guests,07/12/2023,5896,Adult Social Care - Other Transfer Pay,3500101689,550,Redacted Personal Data
http://statistics.data.gov.uk/id/local-authority/38,Oxfordshire County Council,Homes for Ukraine - Guests,28/12/2023,5896,Adult Social Care - Other Transfer Pay,3500102117,550,Redacted Personal Data
http://statistics.data.gov.uk/id/local-authority/38,Oxfordshire County Council,Homes for Ukraine - Guests,20/12/2023,5896,Adult Social Care - Other Transfer Pay,3500101971,550,Redacted Personal Data
http://statistics.data.gov.uk/id/local-authority/38,Oxfordshire County Council,Homes for Ukraine - Guests,01/12/2023,5896,Adult Social Care - Other Transfer Pay,3500101585,550,Redacted Personal Data
http://statistics.data.gov.uk/id/local-authority/38,Oxfordshire County Council,Homes for Ukraine - Guests,27/12/2023,5896,Adult Social Care - Other Transfer Pay,3500102075,550,Redacted Personal Data
http://statistics.data.gov.uk/id/local-authority/38,Oxfordshire County Council,Homes for Ukraine - Guests,25/12/2023,5896,Adult Social Care - Other Transfer Pay,3500102050,550,Redacted Personal Data
http://statistics.data.gov.uk/id/local-authority/38,Oxfordshire County Council,Homes for Ukraine - Guests,06/12/2023,5896,Adult Social Care - Other Transfer Pay,3500101669,550,Redacted Personal Data
http://statistics.data.gov.uk/id/local-authority/38,Oxfordshire County Council,Homes for Ukraine - Guests,19/12/2023,5896,Adult Social Care - Other Transfer Pay,3500101884,550,Redacted Personal Data
http://statistics.data.gov.uk/id/local-authority/38,Oxfordshire County Council,Homes for Ukraine - Guests,19/12/2023,5896,Adult Social Care - Other Transfer Pay,3500101896,550,Redacted Personal Data
http://statistics.data.gov.uk/id/local-authority/38,Oxfordshire County Council,Homes for Ukraine - Guests,18/12/2023,5896,Adult Social Care - Other Transfer Pay,3500101867,550,Redacted Personal Data
http://statistics.data.gov.uk/id/local-authority/38,Oxfordshire County Council,Homes for Ukraine - Guests,19/12/2023,5896,Adult Social Care - Other Transfer Pay,3500101893,550,Redacted Personal Data
http://statistics.data.gov.uk/id/local-authority/38,Oxfordshire County Council,Homes for Ukraine - Guests,05/12/2023,5896,Adult Social Care - Other Transfer Pay,3500101618,550,Redacted Personal Data
http://statistics.data.gov.uk/id/local-authority/38,Oxfordshire County Council,Homes for Ukraine - Guests,04/12/2023,5896,Adult Social Care - Other Transfer Pay,3500101605,550,Redacted Personal Data
http://statistics.data.gov.uk/id/local-authority/38,Oxfordshire County Council,Homes for Ukraine - Guests,18/12/2023,5896,Adult Social Care - Other Transfer Pay,3500101871,550,Redacted Personal Data
http://statistics.data.gov.uk/id/local-authority/38,Oxfordshire County Council,Homes for Ukraine - Guests,18/12/2023,5896,Adult Social Care - Other Transfer Pay,3500101876,550,Redacted Personal Data
http://statistics.data.gov.uk/id/local-authority/38,Oxfordshire County Council,Homes for Ukraine - Guests,25/12/2023,5896,Adult Social Care - Other Transfer Pay,3500102010,550,Redacted Personal Data
http://statistics.data.gov.uk/id/local-authority/38,Oxfordshire County Council,Homes for Ukraine - Guests,12/12/2023,5896,Adult Social Care - Other Transfer Pay,3500101781,550,Redacted Personal Data
http://statistics.data.gov.uk/id/local-authority/38,Oxfordshire County Council,Homes for Ukraine - Guests,13/12/2023,5896,Adult Social Care - Other Transfer Pay,3500101840,550,Redacted Personal Data
http://statistics.data.gov.uk/id/local-authority/38,Oxfordshire County Council,Homes for Ukraine - Guests,12/12/2023,5896,Adult Social Care - Other Transfer Pay,3500101807,550,Redacted Personal Data
http://statistics.data.gov.uk/id/local-authority/38,Oxfordshire County Council,Homes for Ukraine - Guests,25/12/2023,5896,Adult Social Care - Other Transfer Pay,3500102020,550,Redacted Personal Data
http://statistics.data.gov.uk/id/local-authority/38,Oxfordshire County Council,Homes for Ukraine - Guests,27/12/2023,5896,Adult Social Care - Other Transfer Pay,3500102083,550,Redacted Personal Data
http://statistics.data.gov.uk/id/local-authority/38,Oxfordshire County Council,Homes for Ukraine - Guests,01/12/2023,5896,Adult Social Care - Other Transfer Pay,3500101583,550,Redacted Personal Data
http://statistics.data.gov.uk/id/local-authority/38,Oxfordshire County Council,Homes for Ukraine - Guests,21/12/2023,5896,Adult Social Care - Other Transfer Pay,3500101983,550,Redacted Personal Data
http://statistics.data.gov.uk/id/local-authority/38,Oxfordshire County Council,Homes for Ukraine - Guests,28/12/2023,5896,Adult Social Care - Other Transfer Pay,3500102114,550,Redacted Personal Data
http://statistics.data.gov.uk/id/local-authority/38,Oxfordshire County Council,Homes for Ukraine - Guests,19/12/2023,5896,Adult Social Care - Other Transfer Pay,3500101891,550,Redacted Personal Data
http://statistics.data.gov.uk/id/local-authority/38,Oxfordshire County Council,Homes for Ukraine - Guests,27/12/2023,5896,Adult Social Care - Other Transfer Pay,3500102084,550,Redacted Personal Data
http://statistics.data.gov.uk/id/local-authority/38,Oxfordshire County Council,Homes for Ukraine - Guests,19/12/2023,5896,Adult Social Care - Other Transfer Pay,3500101897,550,Redacted Personal Data
http://statistics.data.gov.uk/id/local-authority/38,Oxfordshire County Council,Homes for Ukraine - Guests,13/12/2023,5896,Adult Social Care - Other Transfer Pay,3500101838,550,Redacted Personal Data
http://statistics.data.gov.uk/id/local-authority/38,Oxfordshire County Council,Homes for Ukraine - Guests,19/12/2023,5896,Adult Social Care - Other Transfer Pay,3500101909,550,Redacted Personal Data
http://statistics.data.gov.uk/id/local-authority/38,Oxfordshire County Council,Homes for Ukraine - Guests,20/12/2023,5896,Adult Social Care - Other Transfer Pay,3500101965,550,Redacted Personal Data
http://statistics.data.gov.uk/id/local-authority/38,Oxfordshire County Council,Homes for Ukraine - Guests,20/12/2023,5896,Adult Social Care - Other Transfer Pay,3500101980,550,Redacted Personal Data
http://statistics.data.gov.uk/id/local-authority/38,Oxfordshire County Council,Homes for Ukraine - Guests,20/12/2023,5896,Adult Social Care - Other Transfer Pay,3500101949,550,Redacted Personal Data
http://statistics.data.gov.uk/id/local-authority/38,Oxfordshire County Council,Homes for Ukraine - Guests,10/12/2023,5896,Adult Social Care - Other Transfer Pay,3500101766,550,Redacted Personal Data
http://statistics.data.gov.uk/id/local-authority/38,Oxfordshire County Council,Homes for Ukraine - Guests,12/12/2023,5896,Adult Social Care - Other Transfer Pay,3500101808,550,Redacted Personal Data
http://statistics.data.gov.uk/id/local-authority/38,Oxfordshire County Council,Homes for Ukraine - Guests,28/12/2023,5896,Adult Social Care - Other Transfer Pay,3500102115,550,Redacted Personal Data
http://statistics.data.gov.uk/id/local-authority/38,Oxfordshire County Council,Homes for Ukraine - Guests,19/12/2023,5896,Adult Social Care - Other Transfer Pay,3500101899,550,Redacted Personal Data
http://statistics.data.gov.uk/id/local-authority/38,Oxfordshire County Council,Homes for Ukraine - Guests,12/12/2023,5896,Adult Social Care - Other Transfer Pay,3500101787,550,Redacted Personal Data
http://statistics.data.gov.uk/id/local-authority/38,Oxfordshire County Council,Homes for Ukraine - Guests,08/12/2023,5896,Adult Social Care - Other Transfer Pay,3500101705,550,Redacted Personal Data
http://statistics.data.gov.uk/id/local-authority/38,Oxfordshire County Council,Homes for Ukraine - Guests,20/12/2023,5896,Adult Social Care - Other Transfer Pay,3500101959,550,Redacted Personal Data
http://statistics.data.gov.uk/id/local-authority/38,Oxfordshire County Council,Homes for Ukraine - Guests,21/12/2023,5896,Adult Social Care - Other Transfer Pay,3500101987,550,Redacted Personal Data
http://statistics.data.gov.uk/id/local-authority/38,Oxfordshire County Council,Homes for Ukraine - Guests,14/12/2023,5896,Adult Social Care - Other Transfer Pay,3500101854,550,Redacted Personal Data
http://statistics.data.gov.uk/id/local-authority/38,Oxfordshire County Council,Homes for Ukraine - Guests,05/12/2023,5896,Adult Social Care - Other Transfer Pay,3500101608,550,Redacted Personal Data
http://statistics.data.gov.uk/id/local-authority/38,Oxfordshire County Council,Homes for Ukraine - Guests,19/12/2023,5896,Adult Social Care - Other Transfer Pay,3500101901,550,Redacted Personal Data
http://statistics.data.gov.uk/id/local-authority/38,Oxfordshire County Council,Homes for Ukraine - Guests,20/12/2023,5896,Adult Social Care - Other Transfer Pay,3500101956,550,Redacted Personal Data
http://statistics.data.gov.uk/id/local-authority/38,Oxfordshire County Council,Homes for Ukraine - Guests,20/12/2023,5896,Adult Social Care - Other Transfer Pay,3500101955,550,Redacted Personal Data
http://statistics.data.gov.uk/id/local-authority/38,Oxfordshire County Council,Homes for Ukraine - Guests,19/12/2023,5896,Adult Social Care - Other Transfer Pay,3500101889,550,Redacted Personal Data
http://statistics.data.gov.uk/id/local-authority/38,Oxfordshire County Council,Homes for Ukraine - Guests,18/12/2023,5896,Adult Social Care - Other Transfer Pay,3500101878,550,Redacted Personal Data
http://statistics.data.gov.uk/id/local-authority/38,Oxfordshire County Council,Homes for Ukraine - Guests,25/12/2023,5896,Adult Social Care - Other Transfer Pay,3500102033,550,Redacted Personal Data
http://statistics.data.gov.uk/id/local-authority/38,Oxfordshire County Council,Homes for Ukraine - Guests,12/12/2023,5896,Adult Social Care - Other Transfer Pay,3500101804,550,Redacted Personal Data
http://statistics.data.gov.uk/id/local-authority/38,Oxfordshire County Council,Homes for Ukraine - Guests,06/12/2023,5896,Adult Social Care - Other Transfer Pay,3500101667,550,Redacted Personal Data
http://statistics.data.gov.uk/id/local-authority/38,Oxfordshire County Council,Homes for Ukraine - Guests,14/12/2023,5896,Adult Social Care - Other Transfer Pay,3500101849,550,Redacted Personal Data
http://statistics.data.gov.uk/id/local-authority/38,Oxfordshire County Council,Homes for Ukraine - Guests,12/12/2023,5896,Adult Social Care - Other Transfer Pay,3500101800,550,Redacted Personal Data
http://statistics.data.gov.uk/id/local-authority/38,Oxfordshire County Council,Homes for Ukraine - Guests,15/12/2023,5896,Adult Social Care - Other Transfer Pay,3500101864,550,Redacted Personal Data
http://statistics.data.gov.uk/id/local-authority/38,Oxfordshire County Council,Homes for Ukraine - Guests,25/12/2023,5896,Adult Social Care - Other Transfer Pay,3500102027,550,Redacted Personal Data
http://statistics.data.gov.uk/id/local-authority/38,Oxfordshire County Council,Homes for Ukraine - Guests,12/12/2023,5896,Adult Social Care - Other Transfer Pay,3500101791,550,Redacted Personal Data
http://statistics.data.gov.uk/id/local-authority/38,Oxfordshire County Council,Homes for Ukraine - Guests,04/12/2023,5896,Adult Social Care - Other Transfer Pay,3500101596,550,Redacted Personal Data
http://statistics.data.gov.uk/id/local-authority/38,Oxfordshire County Council,Homes for Ukraine - Guests,08/12/2023,5896,Adult Social Care - Other Transfer Pay,3500101698,550,Redacted Personal Data
http://statistics.data.gov.uk/id/local-authority/38,Oxfordshire County Council,Homes for Ukraine - Guests,20/12/2023,5896,Adult Social Care - Other Transfer Pay,3500101946,550,Redacted Personal Data
http://statistics.data.gov.uk/id/local-authority/38,Oxfordshire County Council,Homes for Ukraine - Guests,13/12/2023,5896,Adult Social Care - Other Transfer Pay,3500101820,550,Redacted Personal Data
http://statistics.data.gov.uk/id/local-authority/38,Oxfordshire County Council,Homes for Ukraine - Guests,06/12/2023,5896,Adult Social Care - Other Transfer Pay,3500101652,550,Redacted Personal Data
http://statistics.data.gov.uk/id/local-authority/38,Oxfordshire County Council,Homes for Ukraine - Guests,18/12/2023,5896,Adult Social Care - Other Transfer Pay,3500101879,550,Redacted Personal Data
http://statistics.data.gov.uk/id/local-authority/38,Oxfordshire County Council,Homes for Ukraine - Guests,08/12/2023,5896,Adult Social Care - Other Transfer Pay,3500101713,550,Redacted Personal Data
http://statistics.data.gov.uk/id/local-authority/38,Oxfordshire County Council,Homes for Ukraine - Guests,27/12/2023,5896,Adult Social Care - Other Transfer Pay,3500102072,550,Redacted Personal Data
http://statistics.data.gov.uk/id/local-authority/38,Oxfordshire County Council,Homes for Ukraine - Guests,19/12/2023,5896,Adult Social Care - Other Transfer Pay,3500101888,550,Redacted Personal Data
http://statistics.data.gov.uk/id/local-authority/38,Oxfordshire County Council,Homes for Ukraine - Guests,25/12/2023,5896,Adult Social Care - Other Transfer Pay,3500102028,550,Redacted Personal Data
http://statistics.data.gov.uk/id/local-authority/38,Oxfordshire County Council,Homes for Ukraine - Guests,04/12/2023,5896,Adult Social Care - Other Transfer Pay,3500101588,550,Redacted Personal Data
http://statistics.data.gov.uk/id/local-authority/38,Oxfordshire County Council,Homes for Ukraine - Guests,06/12/2023,5896,Adult Social Care - Other Transfer Pay,3500101659,550,Redacted Personal Data
http://statistics.data.gov.uk/id/local-authority/38,Oxfordshire County Council,Homes for Ukraine - Guests,28/12/2023,5896,Adult Social Care - Other Transfer Pay,3500102124,550,Redacted Personal Data
http://statistics.data.gov.uk/id/local-authority/38,Oxfordshire County Council,Homes for Ukraine - Guests,27/12/2023,5896,Adult Social Care - Other Transfer Pay,3500102080,550,Redacted Personal Data
http://statistics.data.gov.uk/id/local-authority/38,Oxfordshire County Council,Homes for Ukraine - Guests,25/12/2023,5896,Adult Social Care - Other Transfer Pay,3500102025,550,Redacted Personal Data
http://statistics.data.gov.uk/id/local-authority/38,Oxfordshire County Council,Homes for Ukraine - Guests,05/12/2023,5896,Adult Social Care - Other Transfer Pay,3500101619,550,Redacted Personal Data
http://statistics.data.gov.uk/id/local-authority/38,Oxfordshire County Council,Homes for Ukraine - Guests,13/12/2023,5896,Adult Social Care - Other Transfer Pay,3500101829,550,Redacted Personal Data
